Workbook

Sheet PORTADA
A1: EMPRESA: | B1: HERES GESTION EMPRESARIAL
A2: CORTE: | B2: Al 31 de diciembre del 2016
A3: GERENTE: | B3: Gerente General
A4: C.I.: | B4: 171717171-2
A5: CONTADOR: | B5: HERES
A6: RUC: | B6: 1717171717001
A7: REG.: | B7: Nº 17-00001

Sheet DEFINICION
A1: Estado de costo de producción
A2: 1- Concepto
A3: Es un estado financiero secundario en el que se determina el costo de los productos. Representa todas las operaciones realizadas, dese la adquisición de Materia Prima, hasta sus transformaciones en artículos.
A5: 2- Importancia
A6: • Determinación y comprobación del presupuesto.
A7: • Proveer información.
A8: • Control de los tres elementos del costo.
A9: • Conoce la eficiencia de la producción.
A10: • Saber el costo de cada unidad fabricada
A11: 3- Empresas que lo preparan.
A12: • Empresas Manufactureras.
A13: • Empresas Comerciales.
A14: • Empresas de Servicios.
A15: 4- ¿Qué especialidad tiene el contador que lo prepara?
A16: • Contador de costo
A17: 5- Su estructura
A18: • Materia Prima.
A19: • Mano de Obra Directa.
A20: • Costo directo de fabricación.
A21: 6- ¿Cómo se determina la Materia Prima usada?
A22: Inventario Inicial Materia Prima
A23: (+) Compra Materia Prima.
A24: (=) Materia Prima disponible para su uso.
A25: (-) Inventario Final Materia Prima.
A26: (=) Materia Prima usada.
A27: 7- ¿Qué es mano de obra directa?
A28: Es el esfuerzo humano, Necesario para la transformación de la Materia Prima.
A29: 8- ¿Qué son los costos Indirectos de fabricación?
A30: Son los elementos necesarios que no se relacionan directamente con la Manufactura: Ej. Seguros, planta eléctrica energía eléctrica Mantenimiento el edificio entre otros.
A31: 9- Tipos de Inventarios
A32: • Inventario de mercancías.
A33: • Inventario de productos terminados.
A34: • Inventario de productos en proceso.
A35: • Inventario de Materia Prima.
A36: • Inventario de Suministro de Fabrica
A37: 10- ¿Cómo se determina el Costo Unitario?
A38: CU | B38: = | C38: Costo total producción
C39: Cantidad productos

Sheet MAYOR DE INVENTARIOS
F1: APR
B2: MAYORES DE CUENTAS DE INVENTARIOS | D2: Etiquetas de fila | F2: INICIAL | G2: FINAL
D3: 1130101 | E3: =+VLOOKUP(D3,A11:B12136,2,0) -> INV. PRODUCTO TERMINADO | F3: =+SUMIF(D:D,CONCATENATE($F$1,D3),G:G) -> 112899.32 | G3: =+SUMIF(A:A,D3,G:G) -> 91006.9
D4: 1130102 | E4: =+VLOOKUP(D4,A11:B12136,2,0) -> INV. MATERIA PRIMA | F4: =+SUMIF(D:D,CONCATENATE($F$1,D4),G:G) -> 126065.91 | G4: =+SUMIF(A:A,D4,G:G) -> 145692.7
D5: (en blanco) | E5: =IFERROR(+VLOOKUP(D5,A11:B12136,2,0)," ") ->  | F5: =+SUMIF(D:D,CONCATENATE($F$1,D5),G:G) -> 0 | G5: =+SUMIF(A:A,D5,F:F) -> 0
D6: Total general | E6: =IFERROR(+VLOOKUP(D6,A12:B12137,2,0)," ") ->  | F6: =+SUMIF(D:D,CONCATENATE($F$1,D6),G:G) -> 0 | G6: =+SUMIF(A:A,D6,F:F) -> 0
A10: 1130101 al 1130102
A11: codigo | B11: nombre | C11: fecha | D11: TIPO | E11: cmpbte | F11: concepto | G11: SALDOS | H11: debito | I11: credito
A12: 1130101 | B12: INV. PRODUCTO TERMINADO | C12: 2016-01-01 | D12: =CONCATENATE(LEFT(E12,3),A12) -> CDS1130101 | E12: CDS41160101 | F12: Costo de Venta del 01 de Ene del 2016 (INV) | G12: =+H12-I12 -> -2071.17 | H12: 0 | I12: 2071.17
A13: 1130101 | B13: INV. PRODUCTO TERMINADO | C13: 2016-01-01 | D13: APR1130101 | E13: APR00000001 | F13: ASIENTO INICIAL DEL 2016 | G13: 112899.32 | H13: 112899.32 | I13: 0
A14: 1130101 | B14: INV. PRODUCTO TERMINADO | C14: 2016-01-04 | D14: CDS1130101 | E14: CDS36000001 | F14: ODP / 00000001 | G14: 894.2 | H14: 894.2 | I14: 0
A15: 1130101 | B15: INV. PRODUCTO TERMINADO | C15: 2016-01-04 | D15: CDS1130101 | E15: CDS36000009 | F15: ODP / 00000009 | G15: 677.86 | H15: 677.86 | I15: 0
A16: 1130101 | B16: INV. PRODUCTO TERMINADO | C16: 2016-01-04 | D16: CDS1130101 | E16: CDS41160104 | F16: Costo de Venta del 04 de Ene del 2016 (INV) | G16: -5563.41 | H16: 0 | I16: 5563.41
A17: 1130101 | B17: INV. PRODUCTO TERMINADO | C17: 2016-01-05 | D17: CDS1130101 | E17: CDS36000002 | F17: ODP / 00000002 | G17: 2679.21 | H17: 2679.21 | I17: 0
A18: 1130101 | B18: INV. PRODUCTO TERMINADO | C18: 2016-01-05 | D18: CDS1130101 | E18: CDS36000003 | F18: ODP / 00000003 | G18: 439.62 | H18: 439.62 | I18: 0
A19: 1130101 | B19: INV. PRODUCTO TERMINADO | C19: 2016-01-05 | D19: CDS1130101 | E19: CDS36000004 | F19: ODP / 00000004 | G19: 879.63 | H19: 879.63 | I19: 0
A20: 1130101 | B20: INV. PRODUCTO TERMINADO | C20: 2016-01-05 | D20: CDS1130101 | E20: CDS36000005 | F20: ODP / 00000005 | G20: 939.86 | H20: 939.86 | I20: 0
A21: 1130101 | B21: INV. PRODUCTO TERMINADO | C21: 2016-01-05 | D21: CDS1130101 | E21: CDS36000006 | F21: ODP / 00000006 | G21: 669.68 | H21: 669.68 | I21: 0
A22: 1130101 | B22: INV. PRODUCTO TERMINADO | C22: 2016-01-05 | D22: CDS1130101 | E22: CDS36000007 | F22: ODP / 00000007 | G22: 524.37 | H22: 524.37 | I22: 0
A23: 1130101 | B23: INV. PRODUCTO TERMINADO | C23: 2016-01-05 | D23: CDS1130101 | E23: CDS36000008 | F23: ODP / 00000008 | G23: 533.34 | H23: 533.34 | I23: 0
A24: 1130101 | B24: INV. PRODUCTO TERMINADO | C24: 2016-01-05 | D24: CDS1130101 | E24: CDS36000028 | F24: ODP / 00000028 | G24: 1033.16 | H24: 1033.16 | I24: 0
A25: 1130101 | B25: INV. PRODUCTO TERMINADO | C25: 2016-01-05 | D25: CDS1130101 | E25: CDS36000158 | F25: ODP / 00000158 | G25: 2550.97 | H25: 2550.97 | I25: 0
A26: 1130101 | B26: INV. PRODUCTO TERMINADO | C26: 2016-01-05 | D26: CDS1130101 | E26: CDS41160105 | F26: Costo de Venta del 05 de Ene del 2016 (INV) | G26: -12376.31 | H26: 0 | I26: 12376.31
A27: 1130101 | B27: INV. PRODUCTO TERMINADO | C27: 2016-01-05 | D27: CDS1130101 | E27: CDS42160105 | F27: DV. Costo de Venta del 05 de Ene del 2016 (INV) | G27: 1509.23 | H27: 1509.23 | I27: 0
A28: 1130101 | B28: INV. PRODUCTO TERMINADO | C28: 2016-01-06 | D28: CDS1130101 | E28: CDS36000010 | F28: ODP / 00000010 | G28: 632.76 | H28: 632.76 | I28: 0
A29: 1130101 | B29: INV. PRODUCTO TERMINADO | C29: 2016-01-06 | D29: CDS1130101 | E29: CDS36000011 | F29: ODP / 00000011 | G29: 501.05 | H29: 501.05 | I29: 0
A30: 1130101 | B30: INV. PRODUCTO TERMINADO | C30: 2016-01-06 | D30: CDS1130101 | E30: CDS36000012 | F30: ODP / 00000012 | G30: 324.46 | H30: 324.46 | I30: 0
A31: 1130101 | B31: INV. PRODUCTO TERMINADO | C31: 2016-01-06 | D31: CDS1130101 | E31: CDS36000013 | F31: ODP / 00000013 | G31: 523.2 | H31: 523.2 | I31: 0
A32: 1130101 | B32: INV. PRODUCTO TERMINADO | C32: 2016-01-06 | D32: CDS1130101 | E32: CDS36000014 | F32: ODP / 00000014 | G32: 552.59 | H32: 552.59 | I32: 0
A33: 1130101 | B33: INV. PRODUCTO TERMINADO | C33: 2016-01-06 | D33: CDS1130101 | E33: CDS41160106 | F33: Costo de Venta del 06 de Ene del 2016 (INV) | G33: -2082.55 | H33: 0 | I33: 2082.55
A34: 1130101 | B34: INV. PRODUCTO TERMINADO | C34: 2016-01-07 | D34: CDS1130101 | E34: CDS36000015 | F34: ODP / 00000015 | G34: 778.99 | H34: 778.99 | I34: 0
A35: 1130101 | B35: INV. PRODUCTO TERMINADO | C35: 2016-01-07 | D35: CDS1130101 | E35: CDS36000016 | F35: ODP / 00000016 | G35: 789.76 | H35: 789.76 | I35: 0
A36: 1130101 | B36: INV. PRODUCTO TERMINADO | C36: 2016-01-07 | D36: CDS1130101 | E36: CDS36000017 | F36: ODP / 00000017 | G36: 570.3 | H36: 570.3 | I36: 0
A37: 1130101 | B37: INV. PRODUCTO TERMINADO | C37: 2016-01-07 | D37: CDS1130101 | E37: CDS36000159 | F37: ODP / 00000159 | G37: 2238.2 | H37: 2238.2 | I37: 0
A38: 1130101 | B38: INV. PRODUCTO TERMINADO | C38: 2016-01-07 | D38: CDS1130101 | E38: CDS41160107 | F38: Costo de Venta del 07 de Ene del 2016 (INV) | G38: -5348.4 | H38: 0 | I38: 5348.4
A39: 1130101 | B39: INV. PRODUCTO TERMINADO | C39: 2016-01-08 | D39: CDS1130101 | E39: CDS36000020 | F39: ODP / 00000020 | G39: 499.46 | H39: 499.46 | I39: 0
A40: 1130101 | B40: INV. PRODUCTO TERMINADO | C40: 2016-01-08 | D40: CDS1130101 | E40: CDS36000021 | F40: ODP / 00000021 | G40: 876.99 | H40: 876.99 | I40: 0
A41: 1130101 | B41: INV. PRODUCTO TERMINADO | C41: 2016-01-08 | D41: CDS1130101 | E41: CDS36000022 | F41: ODP / 00000022 | G41: 574.33 | H41: 574.33 | I41: 0
A42: 1130101 | B42: INV. PRODUCTO TERMINADO | C42: 2016-01-08 | D42: CDS1130101 | E42: CDS36000023 | F42: ODP / 00000023 | G42: 573.62 | H42: 573.62 | I42: 0
A43: 1130101 | B43: INV. PRODUCTO TERMINADO | C43: 2016-01-08 | D43: CDS1130101 | E43: CDS36000024 | F43: ODP / 00000024 | G43: 889.15 | H43: 889.15 | I43: 0
A44: 1130101 | B44: INV. PRODUCTO TERMINADO | C44: 2016-01-08 | D44: CDS1130101 | E44: CDS36000025 | F44: ODP / 00000025 | G44: 430.68 | H44: 430.68 | I44: 0
A45: 1130101 | B45: INV. PRODUCTO TERMINADO | C45: 2016-01-08 | D45: CDS1130101 | E45: CDS36000026 | F45: ODP / 00000026 | G45: 1009.79 | H45: 1009.79 | I45: 0
A46: 1130101 | B46: INV. PRODUCTO TERMINADO | C46: 2016-01-08 | D46: CDS1130101 | E46: CDS36000027 | F46: ODP / 00000027 | G46: 407.74 | H46: 407.74 | I46: 0
A47: 1130101 | B47: INV. PRODUCTO TERMINADO | C47: 2016-01-08 | D47: CDS1130101 | E47: CDS41160108 | F47: Costo de Venta del 08 de Ene del 2016 (INV) | G47: -10443.74 | H47: 0 | I47: 10443.74
A48: 1130101 | B48: INV. PRODUCTO TERMINADO | C48: 2016-01-11 | D48: CDS1130101 | E48: CDS36000029 | F48: ODP / 00000029 | G48: 577.06 | H48: 577.06 | I48: 0
A49: 1130101 | B49: INV. PRODUCTO TERMINADO | C49: 2016-01-11 | D49: CDS1130101 | E49: CDS36000030 | F49: ODP / 00000030 | G49: 559.99 | H49: 559.99 | I49: 0
A50: 1130101 | B50: INV. PRODUCTO TERMINADO | C50: 2016-01-11 | D50: CDS1130101 | E50: CDS36000031 | F50: ODP / 00000031 | G50: 439.55 | H50: 439.55 | I50: 0
A51: 1130101 | B51: INV. PRODUCTO TERMINADO | C51: 2016-01-11 | D51: CDS1130101 | E51: CDS36000032 | F51: ODP / 00000032 | G51: 896.9 | H51: 896.9 | I51: 0
A52: 1130101 | B52: INV. PRODUCTO TERMINADO | C52: 2016-01-11 | D52: CDS1130101 | E52: CDS36000033 | F52: ODP / 00000033 | G52: 897.09 | H52: 897.09 | I52: 0
A53: 1130101 | B53: INV. PRODUCTO TERMINADO | C53: 2016-01-11 | D53: CDS1130101 | E53: CDS36000034 | F53: ODP / 00000034 | G53: 977.48 | H53: 977.48 | I53: 0
A54: 1130101 | B54: INV. PRODUCTO TERMINADO | C54: 2016-01-11 | D54: CDS1130101 | E54: CDS36000035 | F54: ODP / 00000035 | G54: 439.26 | H54: 439.26 | I54: 0
A55: 1130101 | B55: INV. PRODUCTO TERMINADO | C55: 2016-01-11 | D55: CDS1130101 | E55: CDS36000036 | F55: ODP / 00000036 | G55: 339.09 | H55: 339.09 | I55: 0
A56: 1130101 | B56: INV. PRODUCTO TERMINADO | C56: 2016-01-11 | D56: CDS1130101 | E56: CDS41160111 | F56: Costo de Venta del 11 de Ene del 2016 (INV) | G56: -11279.29 | H56: 0 | I56: 11279.29
A57: 1130101 | B57: INV. PRODUCTO TERMINADO | C57: 2016-01-12 | D57: CDS1130101 | E57: CDS36000045 | F57: ODP / 00000045 | G57: 978.17 | H57: 978.17 | I57: 0
A58: 1130101 | B58: INV. PRODUCTO TERMINADO | C58: 2016-01-12 | D58: CDS1130101 | E58: CDS36000046 | F58: ODP / 00000046 | G58: 856.34 | H58: 856.34 | I58: 0
A59: 1130101 | B59: INV. PRODUCTO TERMINADO | C59: 2016-01-12 | D59: CDS1130101 | E59: CDS41160112 | F59: Costo de Venta del 12 de Ene del 2016 (INV) | G59: -7662.64 | H59: 0 | I59: 7662.64
A60: 1130101 | B60: INV. PRODUCTO TERMINADO | C60: 2016-01-13 | D60: CDS1130101 | E60: CDS22160113 | F60: Compras del 13 de Ene del 2016 (INV) | G60: 5242.19 | H60: 5242.19 | I60: 0
A61: 1130101 | B61: INV. PRODUCTO TERMINADO | C61: 2016-01-13 | D61: CDS1130101 | E61: CDS36000047 | F61: ODP / 00000047 | G61: 611.61 | H61: 611.61 | I61: 0
A62: 1130101 | B62: INV. PRODUCTO TERMINADO | C62: 2016-01-13 | D62: CDS1130101 | E62: CDS36000048 | F62: ODP / 00000048 | G62: 854.66 | H62: 854.66 | I62: 0
A63: 1130101 | B63: INV. PRODUCTO TERMINADO | C63: 2016-01-13 | D63: CDS1130101 | E63: CDS36000049 | F63: ODP / 00000049 | G63: 905.01 | H63: 905.01 | I63: 0
A64: 1130101 | B64: INV. PRODUCTO TERMINADO | C64: 2016-01-13 | D64: CDS1130101 | E64: CDS36000050 | F64: ODP / 00000050 | G64: 934.44 | H64: 934.44 | I64: 0
A65: 1130101 | B65: INV. PRODUCTO TERMINADO | C65: 2016-01-13 | D65: CDS1130101 | E65: CDS36000051 | F65: ODP / 00000051 | G65: 1287.05 | H65: 1287.05 | I65: 0
A66: 1130101 | B66: INV. PRODUCTO TERMINADO | C66: 2016-01-13 | D66: CDS1130101 | E66: CDS36000052 | F66: ODP / 00000052 | G66: 102.08 | H66: 102.08 | I66: 0
A67: 1130101 | B67: INV. PRODUCTO TERMINADO | C67: 2016-01-13 | D67: CDS1130101 | E67: CDS36000053 | F67: ODP / 00000053 | G67: 941.95 | H67: 941.95 | I67: 0
A68: 1130101 | B68: INV. PRODUCTO TERMINADO | C68: 2016-01-13 | D68: CDS1130101 | E68: CDS36000055 | F68: ODP / 00000055 | G68: 1047.6 | H68: 1047.6 | I68: 0
A69: 1130101 | B69: INV. PRODUCTO TERMINADO | C69: 2016-01-13 | D69: CDS1130101 | E69: CDS36000056 | F69: ODP / 00000056 | G69: 958.2 | H69: 958.2 | I69: 0
A70: 1130101 | B70: INV. PRODUCTO TERMINADO | C70: 2016-01-13 | D70: CDS1130101 | E70: CDS36000057 | F70: ODP / 00000057 | G70: 598.43 | H70: 598.43 | I70: 0
A71: 1130101 | B71: INV. PRODUCTO TERMINADO | C71: 2016-01-13 | D71: CDS1130101 | E71: CDS36000058 | F71: ODP / 00000058 | G71: 742.83 | H71: 742.83 | I71: 0
A72: 1130101 | B72: INV. PRODUCTO TERMINADO | C72: 2016-01-13 | D72: CDS1130101 | E72: CDS36000059 | F72: ODP / 00000059 | G72: 2460.08 | H72: 2460.08 | I72: 0
A73: 1130101 | B73: INV. PRODUCTO TERMINADO | C73: 2016-01-13 | D73: CDS1130101 | E73: CDS36000160 | F73: ODP / 00000160 | G73: 2517.97 | H73: 2517.97 | I73: 0
A74: 1130101 | B74: INV. PRODUCTO TERMINADO | C74: 2016-01-13 | D74: CDS1130101 | E74: CDS41160113 | F74: Costo de Venta del 13 de Ene del 2016 (INV) | G74: -7594.03 | H74: 0 | I74: 7594.03
A75: 1130101 | B75: INV. PRODUCTO TERMINADO | C75: 2016-01-14 | D75: CDS1130101 | E75: CDS36000060 | F75: ODP / 00000060 | G75: 948.74 | H75: 948.74 | I75: 0
A76: 1130101 | B76: INV. PRODUCTO TERMINADO | C76: 2016-01-14 | D76: =CONCATENATE(LEFT(E76,3),A76) -> CDS1130101 | E76: CDS36000061 | F76: ODP / 00000061 | G76: =+H76-I76 -> 778.83 | H76: 778.83 | I76: 0
A77: 1130101 | B77: INV. PRODUCTO TERMINADO | C77: 2016-01-14 | D77: CDS1130101 | E77: CDS36000062 | F77: ODP / 00000062 | G77: 868.36 | H77: 868.36 | I77: 0
A78: 1130101 | B78: INV. PRODUCTO TERMINADO | C78: 2016-01-14 | D78: CDS1130101 | E78: CDS36000063 | F78: ODP / 00000063 | G78: 603.13 | H78: 603.13 | I78: 0
A79: 1130101 | B79: INV. PRODUCTO TERMINADO | C79: 2016-01-14 | D79: CDS1130101 | E79: CDS36000064 | F79: ODP / 00000064 | G79: 1037.6 | H79: 1037.6 | I79: 0
A80: 1130101 | B80: INV. PRODUCTO TERMINADO | C80: 2016-01-14 | D80: CDS1130101 | E80: CDS36000065 | F80: ODP / 00000065 | G80: 505.33 | H80: 505.33 | I80: 0
A81: 1130101 | B81: INV. PRODUCTO TERMINADO | C81: 2016-01-14 | D81: CDS1130101 | E81: CDS41160114 | F81: Costo de Venta del 14 de Ene del 2016 (INV) | G81: -4148.35 | H81: 0 | I81: 4148.35
A82: 1130101 | B82: INV. PRODUCTO TERMINADO | C82: 2016-01-15 | D82: CDS1130101 | E82: CDS36000066 | F82: ODP / 00000066 | G82: 852.57 | H82: 852.57 | I82: 0
A83: 1130101 | B83: INV. PRODUCTO TERMINADO | C83: 2016-01-15 | D83: CDS1130101 | E83: CDS36000069 | F83: ODP / 00000069 | G83: 861.31 | H83: 861.31 | I83: 0
A84: 1130101 | B84: INV. PRODUCTO TERMINADO | C84: 2016-01-15 | D84: CDS1130101 | E84: CDS36000070 | F84: ODP / 00000070 | G84: 662.73 | H84: 662.73 | I84: 0
A85: 1130101 | B85: INV. PRODUCTO TERMINADO | C85: 2016-01-15 | D85: CDS1130101 | E85: CDS36000071 | F85: ODP / 00000071 | G85: 1195.28 | H85: 1195.28 | I85: 0
A86: 1130101 | B86: INV. PRODUCTO TERMINADO | C86: 2016-01-15 | D86: CDS1130101 | E86: CDS36000072 | F86: ODP / 00000072 | G86: 888.52 | H86: 888.52 | I86: 0
A87: 1130101 | B87: INV. PRODUCTO TERMINADO | C87: 2016-01-15 | D87: CDS1130101 | E87: CDS36000073 | F87: ODP / 00000073 | G87: 792.4 | H87: 792.4 | I87: 0
A88: 1130101 | B88: INV. PRODUCTO TERMINADO | C88: 2016-01-15 | D88: CDS1130101 | E88: CDS36000074 | F88: ODP / 00000074 | G88: 1431.89 | H88: 1431.89 | I88: 0
A89: 1130101 | B89: INV. PRODUCTO TERMINADO | C89: 2016-01-15 | D89: CDS1130101 | E89: CDS36000075 | F89: ODP / 00000075 | G89: 1117.36 | H89: 1117.36 | I89: 0
A90: 1130101 | B90: INV. PRODUCTO TERMINADO | C90: 2016-01-15 | D90: CDS1130101 | E90: CDS41160115 | F90: Costo de Venta del 15 de Ene del 2016 (INV) | G90: -12813.88 | H90: 0 | I90: 12813.88
A91: 1130101 | B91: INV. PRODUCTO TERMINADO | C91: 2016-01-15 | D91: CDS1130101 | E91: CDS42160115 | F91: DV. Costo de Venta del 15 de Ene del 2016 (INV) | G91: 213.1 | H91: 213.1 | I91: 0
A92: 1130101 | B92: INV. PRODUCTO TERMINADO | C92: 2016-01-18 | D92: CDS1130101 | E92: CDS36000080 | F92: ODP / 00000080 | G92: 907.84 | H92: 907.84 | I92: 0
A93: 1130101 | B93: INV. PRODUCTO TERMINADO | C93: 2016-01-18 | D93: CDS1130101 | E93: CDS36000081 | F93: ODP / 00000081 | G93: 348.35 | H93: 348.35 | I93: 0
A94: 1130101 | B94: INV. PRODUCTO TERMINADO | C94: 2016-01-18 | D94: CDS1130101 | E94: CDS36000082 | F94: ODP / 00000082 | G94: 1086.43 | H94: 1086.43 | I94: 0
A95: 1130101 | B95: INV. PRODUCTO TERMINADO | C95: 2016-01-18 | D95: CDS1130101 | E95: CDS36000083 | F95: ODP / 00000083 | G95: 475.49 | H95: 475.49 | I95: 0
A96: 1130101 | B96: INV. PRODUCTO TERMINADO | C96: 2016-01-18 | D96: CDS1130101 | E96: CDS36000084 | F96: ODP / 00000084 | G96: 555.89 | H96: 555.89 | I96: 0
A97: 1130101 | B97: INV. PRODUCTO TERMINADO | C97: 2016-01-18 | D97: CDS1130101 | E97: CDS36000085 | F97: ODP / 00000085 | G97: 588.92 | H97: 588.92 | I97: 0
A98: 1130101 | B98: INV. PRODUCTO TERMINADO | C98: 2016-01-18 | D98: CDS1130101 | E98: CDS41160118 | F98: Costo de Venta del 18 de Ene del 2016 (INV) | G98: -4265.5 | H98: 0 | I98: 4265.5
A99: 1130101 | B99: INV. PRODUCTO TERMINADO | C99: 2016-01-19 | D99: CDS1130101 | E99: CDS35000097 | F99: Comsumos ODP 00000097 | G99: -110.37 | H99: 0 | I99: 110.37
A100: 1130101 | B100: INV. PRODUCTO TERMINADO | C100: 2016-01-19 | D100: CDS1130101 | E100: CDS36000086 | F100: ODP / 00000086 | G100: 942.17 | H100: 942.17 | I100: 0
A101: 1130101 | B101: INV. PRODUCTO TERMINADO | C101: 2016-01-19 | D101: CDS1130101 | E101: CDS36000087 | F101: ODP / 00000087 | G101: 509.24 | H101: 509.24 | I101: 0
A102: 1130101 | B102: INV. PRODUCTO TERMINADO | C102: 2016-01-19 | D102: CDS1130101 | E102: CDS36000088 | F102: ODP / 00000088 | G102: 42.89 | H102: 42.89 | I102: 0
A103: 1130101 | B103: INV. PRODUCTO TERMINADO | C103: 2016-01-19 | D103: CDS1130101 | E103: CDS36000089 | F103: ODP / 00000089 | G103: 975.41 | H103: 975.41 | I103: 0
A104: 1130101 | B104: INV. PRODUCTO TERMINADO | C104: 2016-01-19 | D104: CDS1130101 | E104: CDS36000090 | F104: ODP / 00000090 | G104: 601.55 | H104: 601.55 | I104: 0
A105: 1130101 | B105: INV. PRODUCTO TERMINADO | C105: 2016-01-19 | D105: CDS1130101 | E105: CDS36000091 | F105: ODP / 00000091 | G105: 603.44 | H105: 603.44 | I105: 0
A106: 1130101 | B106: INV. PRODUCTO TERMINADO | C106: 2016-01-19 | D106: CDS1130101 | E106: CDS36000092 | F106: ODP / 00000092 | G106: 1523.23 | H106: 1523.23 | I106: 0
A107: 1130101 | B107: INV. PRODUCTO TERMINADO | C107: 2016-01-19 | D107: CDS1130101 | E107: CDS36000093 | F107: ODP / 00000093 | G107: 1079.24 | H107: 1079.24 | I107: 0
A108: 1130101 | B108: INV. PRODUCTO TERMINADO | C108: 2016-01-19 | D108: CDS1130101 | E108: CDS36000094 | F108: ODP / 00000094 | G108: 169.86 | H108: 169.86 | I108: 0
A109: 1130101 | B109: INV. PRODUCTO TERMINADO | C109: 2016-01-19 | D109: CDS1130101 | E109: CDS36000095 | F109: ODP / 00000095 | G109: 790.06 | H109: 790.06 | I109: 0
A110: 1130101 | B110: INV. PRODUCTO TERMINADO | C110: 2016-01-19 | D110: CDS1130101 | E110: CDS36000096 | F110: ODP / 00000096 | G110: 2259.71 | H110: 2259.71 | I110: 0
A111: 1130101 | B111: INV. PRODUCTO TERMINADO | C111: 2016-01-19 | D111: CDS1130101 | E111: CDS36000097 | F111: ODP / 00000097 | G111: 332.75 | H111: 332.75 | I111: 0
A112: 1130101 | B112: INV. PRODUCTO TERMINADO | C112: 2016-01-19 | D112: CDS1130101 | E112: CDS36000098 | F112: ODP / 00000098 | G112: 448.03 | H112: 448.03 | I112: 0
A113: 1130101 | B113: INV. PRODUCTO TERMINADO | C113: 2016-01-19 | D113: CDS1130101 | E113: CDS36000099 | F113: ODP / 00000099 | G113: 691.11 | H113: 691.11 | I113: 0
A114: 1130101 | B114: INV. PRODUCTO TERMINADO | C114: 2016-01-19 | D114: CDS1130101 | E114: CDS41160119 | F114: Costo de Venta del 19 de Ene del 2016 (INV) | G114: -15387.61 | H114: 0 | I114: 15387.61
A115: 1130101 | B115: INV. PRODUCTO TERMINADO | C115: 2016-01-20 | D115: CDS1130101 | E115: CDS36000101 | F115: ODP / 00000101 | G115: 811.68 | H115: 811.68 | I115: 0
A116: 1130101 | B116: INV. PRODUCTO TERMINADO | C116: 2016-01-20 | D116: CDS1130101 | E116: CDS36000102 | F116: ODP / 00000102 | G116: 31.96 | H116: 31.96 | I116: 0
A117: 1130101 | B117: INV. PRODUCTO TERMINADO | C117: 2016-01-20 | D117: CDS1130101 | E117: CDS36000103 | F117: ODP / 00000103 | G117: 46.3 | H117: 46.3 | I117: 0
A118: 1130101 | B118: INV. PRODUCTO TERMINADO | C118: 2016-01-20 | D118: CDS1130101 | E118: CDS36000104 | F118: ODP / 00000104 | G118: 569.83 | H118: 569.83 | I118: 0
A119: 1130101 | B119: INV. PRODUCTO TERMINADO | C119: 2016-01-20 | D119: CDS1130101 | E119: CDS36000105 | F119: ODP / 00000105 | G119: 904.03 | H119: 904.03 | I119: 0
A120: 1130101 | B120: INV. PRODUCTO TERMINADO | C120: 2016-01-20 | D120: CDS1130101 | E120: CDS36000106 | F120: ODP / 00000106 | G120: 571.87 | H120: 571.87 | I120: 0
A121: 1130101 | B121: INV. PRODUCTO TERMINADO | C121: 2016-01-20 | D121: CDS1130101 | E121: CDS36000107 | F121: ODP / 00000107 | G121: 247.61 | H121: 247.61 | I121: 0
A122: 1130101 | B122: INV. PRODUCTO TERMINADO | C122: 2016-01-20 | D122: CDS1130101 | E122: CDS36000108 | F122: ODP / 00000108 | G122: 458.77 | H122: 458.77 | I122: 0
A123: 1130101 | B123: INV. PRODUCTO TERMINADO | C123: 2016-01-20 | D123: CDS1130101 | E123: CDS36000157 | F123: ODP / 00000157 | G123: 918.49 | H123: 918.49 | I123: 0
A124: 1130101 | B124: INV. PRODUCTO TERMINADO | C124: 2016-01-20 | D124: CDS1130101 | E124: CDS36000161 | F124: ODP / 00000161 | G124: 1097.75 | H124: 1097.75 | I124: 0
A125: 1130101 | B125: INV. PRODUCTO TERMINADO | C125: 2016-01-20 | D125: CDS1130101 | E125: CDS41160120 | F125: Costo de Venta del 20 de Ene del 2016 (INV) | G125: -3060.4 | H125: 0 | I125: 3060.4
A126: 1130101 | B126: INV. PRODUCTO TERMINADO | C126: 2016-01-21 | D126: CDS1130101 | E126: CDS36000109 | F126: ODP / 00000109 | G126: 895.11 | H126: 895.11 | I126: 0
A127: 1130101 | B127: INV. PRODUCTO TERMINADO | C127: 2016-01-21 | D127: CDS1130101 | E127: CDS36000110 | F127: ODP / 00000110 | G127: 1270.86 | H127: 1270.86 | I127: 0
A128: 1130101 | B128: INV. PRODUCTO TERMINADO | C128: 2016-01-21 | D128: CDS1130101 | E128: CDS36000111 | F128: ODP / 00000111 | G128: 745.91 | H128: 745.91 | I128: 0
A129: 1130101 | B129: INV. PRODUCTO TERMINADO | C129: 2016-01-21 | D129: CDS1130101 | E129: CDS36000112 | F129: ODP / 00000112 | G129: 544.83 | H129: 544.83 | I129: 0
A130: 1130101 | B130: INV. PRODUCTO TERMINADO | C130: 2016-01-21 | D130: CDS1130101 | E130: CDS36000113 | F130: ODP / 00000113 | G130: 289.43 | H130: 289.43 | I130: 0
A131: 1130101 | B131: INV. PRODUCTO TERMINADO | C131: 2016-01-21 | D131: CDS1130101 | E131: CDS36000114 | F131: ODP / 00000114 | G131: 259.45 | H131: 259.45 | I131: 0
A132: 1130101 | B132: INV. PRODUCTO TERMINADO | C132: 2016-01-21 | D132: CDS1130101 | E132: CDS36000115 | F132: ODP / 00000115 | G132: 839.07 | H132: 839.07 | I132: 0
A133: 1130101 | B133: INV. PRODUCTO TERMINADO | C133: 2016-01-21 | D133: CDS1130101 | E133: CDS41160121 | F133: Costo de Venta del 21 de Ene del 2016 (INV) | G133: -11597.18 | H133: 0 | I133: 11597.18
A134: 1130101 | B134: INV. PRODUCTO TERMINADO | C134: 2016-01-21 | D134: CDS1130101 | E134: CDS42160121 | F134: DV. Costo de Venta del 21 de Ene del 2016 (INV) | G134: 1792.37 | H134: 1792.37 | I134: 0
A135: 1130101 | B135: INV. PRODUCTO TERMINADO | C135: 2016-01-21 | D135: CDS1130101 | E135: CDS70000003 | F135: Ingresos # 000003 | G135: 1128.22 | H135: 1128.22 | I135: 0
A136: 1130101 | B136: INV. PRODUCTO TERMINADO | C136: 2016-01-22 | D136: CDS1130101 | E136: CDS22160122 | F136: Compras del 22 de Ene del 2016 (INV) | G136: 178.75 | H136: 178.75 | I136: 0
A137: 1130101 | B137: INV. PRODUCTO TERMINADO | C137: 2016-01-22 | D137: CDS1130101 | E137: CDS36000116 | F137: ODP / 00000116 | G137: 410 | H137: 410 | I137: 0
A138: 1130101 | B138: INV. PRODUCTO TERMINADO | C138: 2016-01-22 | D138: CDS1130101 | E138: CDS36000117 | F138: ODP / 00000117 | G138: 1343.8 | H138: 1343.8 | I138: 0
A139: 1130101 | B139: INV. PRODUCTO TERMINADO | C139: 2016-01-22 | D139: CDS1130101 | E139: CDS36000118 | F139: ODP / 00000118 | G139: 777.6 | H139: 777.6 | I139: 0
A140: 1130101 | B140: INV. PRODUCTO TERMINADO | C140: 2016-01-22 | D140: =CONCATENATE(LEFT(E140,3),A140) -> CDS1130101 | E140: CDS36000119 | F140: ODP / 00000119 | G140: =+H140-I140 -> 583.16 | H140: 583.16 | I140: 0
A141: 1130101 | B141: INV. PRODUCTO TERMINADO | C141: 2016-01-22 | D141: CDS1130101 | E141: CDS36000120 | F141: ODP / 00000120 | G141: 655.54 | H141: 655.54 | I141: 0
A142: 1130101 | B142: INV. PRODUCTO TERMINADO | C142: 2016-01-22 | D142: CDS1130101 | E142: CDS36000128 | F142: ODP / 00000128 | G142: 174.1 | H142: 174.1 | I142: 0
A143: 1130101 | B143: INV. PRODUCTO TERMINADO | C143: 2016-01-22 | D143: CDS1130101 | E143: CDS36000149 | F143: ODP / 00000149 | G143: 449.74 | H143: 449.74 | I143: 0
A144: 1130101 | B144: INV. PRODUCTO TERMINADO | C144: 2016-01-22 | D144: CDS1130101 | E144: CDS41160122 | F144: Costo de Venta del 22 de Ene del 2016 (INV) | G144: -12004.97 | H144: 0 | I144: 12004.97
A145: 1130101 | B145: INV. PRODUCTO TERMINADO | C145: 2016-01-22 | D145: CDS1130101 | E145: CDS42160122 | F145: DV. Costo de Venta del 22 de Ene del 2016 (INV) | G145: 14.73 | H145: 14.73 | I145: 0
A146: 1130101 | B146: INV. PRODUCTO TERMINADO | C146: 2016-01-25 | D146: CDS1130101 | E146: CDS36000121 | F146: ODP / 00000121 | G146: 593.12 | H146: 593.12 | I146: 0
A147: 1130101 | B147: INV. PRODUCTO TERMINADO | C147: 2016-01-25 | D147: CDS1130101 | E147: CDS36000123 | F147: ODP / 00000123 | G147: 484.98 | H147: 484.98 | I147: 0
A148: 1130101 | B148: INV. PRODUCTO TERMINADO | C148: 2016-01-25 | D148: CDS1130101 | E148: CDS36000124 | F148: ODP / 00000124 | G148: 665.23 | H148: 665.23 | I148: 0
A149: 1130101 | B149: INV. PRODUCTO TERMINADO | C149: 2016-01-25 | D149: CDS1130101 | E149: CDS36000125 | F149: ODP / 00000125 | G149: 193.37 | H149: 193.37 | I149: 0
A150: 1130101 | B150: INV. PRODUCTO TERMINADO | C150: 2016-01-25 | D150: CDS1130101 | E150: CDS36000126 | F150: ODP / 00000126 | G150: 1105.45 | H150: 1105.45 | I150: 0
A151: 1130101 | B151: INV. PRODUCTO TERMINADO | C151: 2016-01-25 | D151: CDS1130101 | E151: CDS36000127 | F151: ODP / 00000127 | G151: 559.6 | H151: 559.6 | I151: 0
A152: 1130101 | B152: INV. PRODUCTO TERMINADO | C152: 2016-01-25 | D152: CDS1130101 | E152: CDS36000129 | F152: ODP / 00000129 | G152: 738.34 | H152: 738.34 | I152: 0
A153: 1130101 | B153: INV. PRODUCTO TERMINADO | C153: 2016-01-25 | D153: CDS1130101 | E153: CDS36000130 | F153: ODP / 00000130 | G153: 389.05 | H153: 389.05 | I153: 0
A154: 1130101 | B154: INV. PRODUCTO TERMINADO | C154: 2016-01-25 | D154: CDS1130101 | E154: CDS36000136 | F154: ODP / 00000136 | G154: 1385.42 | H154: 1385.42 | I154: 0
A155: 1130101 | B155: INV. PRODUCTO TERMINADO | C155: 2016-01-25 | D155: CDS1130101 | E155: CDS36000137 | F155: ODP / 00000137 | G155: 675.49 | H155: 675.49 | I155: 0
A156: 1130101 | B156: INV. PRODUCTO TERMINADO | C156: 2016-01-25 | D156: CDS1130101 | E156: CDS41160125 | F156: Costo de Venta del 25 de Ene del 2016 (INV) | G156: -7497.59 | H156: 0 | I156: 7497.59
A157: 1130101 | B157: INV. PRODUCTO TERMINADO | C157: 2016-01-25 | D157: CDS1130101 | E157: CDS42160125 | F157: DV. Costo de Venta del 25 de Ene del 2016 (INV) | G157: 6.69 | H157: 6.69 | I157: 0
A158: 1130101 | B158: INV. PRODUCTO TERMINADO | C158: 2016-01-26 | D158: CDS1130101 | E158: CDS35000147 | F158: Comsumos ODP 00000147 | G158: -132.44 | H158: 0 | I158: 132.44
A159: 1130101 | B159: INV. PRODUCTO TERMINADO | C159: 2016-01-26 | D159: CDS1130101 | E159: CDS36000139 | F159: ODP / 00000139 | G159: 1242.78 | H159: 1242.78 | I159: 0
A160: 1130101 | B160: INV. PRODUCTO TERMINADO | C160: 2016-01-26 | D160: CDS1130101 | E160: CDS36000140 | F160: ODP / 00000140 | G160: 1434.81 | H160: 1434.81 | I160: 0
A161: 1130101 | B161: INV. PRODUCTO TERMINADO | C161: 2016-01-26 | D161: CDS1130101 | E161: CDS36000141 | F161: ODP / 00000141 | G161: 589.74 | H161: 589.74 | I161: 0
A162: 1130101 | B162: INV. PRODUCTO TERMINADO | C162: 2016-01-26 | D162: CDS1130101 | E162: CDS36000142 | F162: ODP / 00000142 | G162: 778.19 | H162: 778.19 | I162: 0
A163: 1130101 | B163: INV. PRODUCTO TERMINADO | C163: 2016-01-26 | D163: CDS1130101 | E163: CDS36000143 | F163: ODP / 00000143 | G163: 567.98 | H163: 567.98 | I163: 0
A164: 1130101 | B164: INV. PRODUCTO TERMINADO | C164: 2016-01-26 | D164: CDS1130101 | E164: CDS36000144 | F164: ODP / 00000144 | G164: 810.66 | H164: 810.66 | I164: 0
A165: 1130101 | B165: INV. PRODUCTO TERMINADO | C165: 2016-01-26 | D165: CDS1130101 | E165: CDS36000145 | F165: ODP / 00000145 | G165: 607.23 | H165: 607.23 | I165: 0
A166: 1130101 | B166: INV. PRODUCTO TERMINADO | C166: 2016-01-26 | D166: CDS1130101 | E166: CDS36000146 | F166: ODP / 00000146 | G166: 650.14 | H166: 650.14 | I166: 0
A167: 1130101 | B167: INV. PRODUCTO TERMINADO | C167: 2016-01-26 | D167: CDS1130101 | E167: CDS36000147 | F167: ODP / 00000147 | G167: 367.72 | H167: 367.72 | I167: 0
A168: 1130101 | B168: INV. PRODUCTO TERMINADO | C168: 2016-01-26 | D168: CDS1130101 | E168: CDS36000148 | F168: ODP / 00000148 | G168: 628.27 | H168: 628.27 | I168: 0
A169: 1130101 | B169: INV. PRODUCTO TERMINADO | C169: 2016-01-26 | D169: CDS1130101 | E169: CDS36000152 | F169: ODP / 00000152 | G169: 1157.39 | H169: 1157.39 | I169: 0
A170: 1130101 | B170: INV. PRODUCTO TERMINADO | C170: 2016-01-26 | D170: CDS1130101 | E170: CDS36000153 | F170: ODP / 00000153 | G170: 920.24 | H170: 920.24 | I170: 0
A171: 1130101 | B171: INV. PRODUCTO TERMINADO | C171: 2016-01-26 | D171: CDS1130101 | E171: CDS36000167 | F171: ODP / 00000167 | G171: 443.61 | H171: 443.61 | I171: 0
A172: 1130101 | B172: INV. PRODUCTO TERMINADO | C172: 2016-01-26 | D172: CDS1130101 | E172: CDS41160126 | F172: Costo de Venta del 26 de Ene del 2016 (INV) | G172: -6174.56 | H172: 0 | I172: 6174.56
A173: 1130101 | B173: INV. PRODUCTO TERMINADO | C173: 2016-01-26 | D173: CDS1130101 | E173: CDS42160126 | F173: DV. Costo de Venta del 26 de Ene del 2016 (INV) | G173: 36.73 | H173: 36.73 | I173: 0
A174: 1130101 | B174: INV. PRODUCTO TERMINADO | C174: 2016-01-27 | D174: CDS1130101 | E174: CDS35000153 | F174: Comsumos ODP 00000153 | G174: -150.04 | H174: 0 | I174: 150.04
A175: 1130101 | B175: INV. PRODUCTO TERMINADO | C175: 2016-01-27 | D175: CDS1130101 | E175: CDS36000150 | F175: ODP / 00000150 | G175: 992.75 | H175: 992.75 | I175: 0
A176: 1130101 | B176: INV. PRODUCTO TERMINADO | C176: 2016-01-27 | D176: CDS1130101 | E176: CDS36000151 | F176: ODP / 00000151 | G176: 725.27 | H176: 725.27 | I176: 0
A177: 1130101 | B177: INV. PRODUCTO TERMINADO | C177: 2016-01-27 | D177: CDS1130101 | E177: CDS36000154 | F177: ODP / 00000154 | G177: 585.95 | H177: 585.95 | I177: 0
A178: 1130101 | B178: INV. PRODUCTO TERMINADO | C178: 2016-01-27 | D178: CDS1130101 | E178: CDS36000155 | F178: ODP / 00000155 | G178: 648.35 | H178: 648.35 | I178: 0
A179: 1130101 | B179: INV. PRODUCTO TERMINADO | C179: 2016-01-27 | D179: CDS1130101 | E179: CDS36000156 | F179: ODP / 00000156 | G179: 229.1 | H179: 229.1 | I179: 0
A180: 1130101 | B180: INV. PRODUCTO TERMINADO | C180: 2016-01-27 | D180: CDS1130101 | E180: CDS41160127 | F180: Costo de Venta del 27 de Ene del 2016 (INV) | G180: -481.94 | H180: 0 | I180: 481.94
A181: 1130101 | B181: INV. PRODUCTO TERMINADO | C181: 2016-01-28 | D181: CDS1130101 | E181: CDS22160128 | F181: Compras del 28 de Ene del 2016 (INV) | G181: 3243.6 | H181: 3243.6 | I181: 0
A182: 1130101 | B182: INV. PRODUCTO TERMINADO | C182: 2016-01-28 | D182: CDS1130101 | E182: CDS36000162 | F182: ODP / 00000162 | G182: 639.48 | H182: 639.48 | I182: 0
A183: 1130101 | B183: INV. PRODUCTO TERMINADO | C183: 2016-01-28 | D183: CDS1130101 | E183: CDS36000163 | F183: ODP / 00000163 | G183: 1076.41 | H183: 1076.41 | I183: 0
A184: 1130101 | B184: INV. PRODUCTO TERMINADO | C184: 2016-01-28 | D184: CDS1130101 | E184: CDS36000164 | F184: ODP / 00000164 | G184: 1114.88 | H184: 1114.88 | I184: 0
A185: 1130101 | B185: INV. PRODUCTO TERMINADO | C185: 2016-01-28 | D185: CDS1130101 | E185: CDS36000165 | F185: ODP / 00000165 | G185: 1278.53 | H185: 1278.53 | I185: 0
A186: 1130101 | B186: INV. PRODUCTO TERMINADO | C186: 2016-01-28 | D186: CDS1130101 | E186: CDS36000166 | F186: ODP / 00000166 | G186: 566.19 | H186: 566.19 | I186: 0
A187: 1130101 | B187: INV. PRODUCTO TERMINADO | C187: 2016-01-28 | D187: CDS1130101 | E187: CDS36000168 | F187: ODP / 00000168 | G187: 810.66 | H187: 810.66 | I187: 0
A188: 1130101 | B188: INV. PRODUCTO TERMINADO | C188: 2016-01-28 | D188: CDS1130101 | E188: CDS41160128 | F188: Costo de Venta del 28 de Ene del 2016 (INV) | G188: -792.55 | H188: 0 | I188: 792.55
A189: 1130101 | B189: INV. PRODUCTO TERMINADO | C189: 2016-01-29 | D189: CDS1130101 | E189: CDS36000169 | F189: ODP / 00000169 | G189: 1413.63 | H189: 1413.63 | I189: 0
A190: 1130101 | B190: INV. PRODUCTO TERMINADO | C190: 2016-01-29 | D190: CDS1130101 | E190: CDS36000170 | F190: ODP / 00000170 | G190: 639.48 | H190: 639.48 | I190: 0
A191: 1130101 | B191: INV. PRODUCTO TERMINADO | C191: 2016-01-29 | D191: CDS1130101 | E191: CDS36000171 | F191: ODP / 00000171 | G191: 866.9 | H191: 866.9 | I191: 0
A192: 1130101 | B192: INV. PRODUCTO TERMINADO | C192: 2016-01-29 | D192: CDS1130101 | E192: CDS36000172 | F192: ODP / 00000172 | G192: 443.85 | H192: 443.85 | I192: 0
A193: 1130101 | B193: INV. PRODUCTO TERMINADO | C193: 2016-01-29 | D193: CDS1130101 | E193: CDS36000173 | F193: ODP / 00000173 | G193: 679.23 | H193: 679.23 | I193: 0
A194: 1130101 | B194: INV. PRODUCTO TERMINADO | C194: 2016-01-29 | D194: CDS1130101 | E194: CDS36000174 | F194: ODP / 00000174 | G194: 684.83 | H194: 684.83 | I194: 0
A195: 1130101 | B195: INV. PRODUCTO TERMINADO | C195: 2016-01-29 | D195: CDS1130101 | E195: CDS36000176 | F195: ODP / 00000176 | G195: 688.45 | H195: 688.45 | I195: 0
A196: 1130101 | B196: INV. PRODUCTO TERMINADO | C196: 2016-01-29 | D196: CDS1130101 | E196: CDS36000177 | F196: ODP / 00000177 | G196: 1138.44 | H196: 1138.44 | I196: 0
A197: 1130101 | B197: INV. PRODUCTO TERMINADO | C197: 2016-01-29 | D197: CDS1130101 | E197: CDS36000178 | F197: ODP / 00000178 | G197: 449.83 | H197: 449.83 | I197: 0
A198: 1130101 | B198: INV. PRODUCTO TERMINADO | C198: 2016-01-29 | D198: CDS1130101 | E198: CDS36000181 | F198: ODP / 00000181 | G198: 1614.83 | H198: 1614.83 | I198: 0
A199: 1130101 | B199: INV. PRODUCTO TERMINADO | C199: 2016-01-29 | D199: CDS1130101 | E199: CDS41160129 | F199: Costo de Venta del 29 de Ene del 2016 (INV) | G199: -4125.44 | H199: 0 | I199: 4125.44
A200: 1130101 | B200: INV. PRODUCTO TERMINADO | C200: 2016-02-01 | D200: CDS1130101 | E200: CDS36000182 | F200: ODP / 00000182 | G200: 938.23 | H200: 938.23 | I200: 0
A201: 1130101 | B201: INV. PRODUCTO TERMINADO | C201: 2016-02-01 | D201: CDS1130101 | E201: CDS36000183 | F201: ODP / 00000183 | G201: 1337.42 | H201: 1337.42 | I201: 0
A202: 1130101 | B202: INV. PRODUCTO TERMINADO | C202: 2016-02-01 | D202: CDS1130101 | E202: CDS36000184 | F202: ODP / 00000184 | G202: 553.66 | H202: 553.66 | I202: 0
A203: 1130101 | B203: INV. PRODUCTO TERMINADO | C203: 2016-02-01 | D203: CDS1130101 | E203: CDS36000185 | F203: ODP / 00000185 | G203: 338.17 | H203: 338.17 | I203: 0
... 6259 more rows

Sheet CMP
A1: tipodocu | B1: serie_inv | C1: numero | D1: fechaemisi | E1: subtotmo1 | F1: codclipro | G1: codclipro1 | H1: codigprodu | I1: descripcio
A2: CMP | B2: 001001 | C2: 98082779 | D2: 2016-10-11 | E2: 2525.59134 | F2: 000428 | G2: 1791179382001 | H2: COD_PRODU | I2: NOMB_PRODUCTO
A3: CMP | B3: 001001 | C3: 98082779 | D3: 2016-10-11 | E3: 1624 | F3: 000428 | G3: 1791179382001 | H3: COD_PRODU | I3: NOMB_PRODUCTO
A4: CMP | B4: 001001 | C4: 00007946 | D4: 2016-01-13 | E4: 5404.32 | F4: 000818 | G4: 1790876896001 | H4: COD_PRODU | I4: NOMB_PRODUCTO
A5: CMP | B5: 001001 | C5: 00002962 | D5: 2016-01-28 | E5: 3243.6 | F5: 000819 | G5: 0928944693001 | H5: COD_PRODU | I5: NOMB_PRODUCTO
A6: CMP | B6: 001001 | C6: 00003115 | D6: 2016-03-11 | E6: 3672 | F6: 000819 | G6: 0928944693001 | H6: COD_PRODU | I6: NOMB_PRODUCTO
A7: CMP | B7: 001001 | C7: 00006464 | D7: 2016-03-22 | E7: 2752.2 | F7: 001004 | G7: 1792433304001 | H7: COD_PRODU | I7: NOMB_PRODUCTO
A8: CMP | B8: 001001 | C8: 00006521 | D8: 2016-03-30 | E8: 2642.2 | F8: 001004 | G8: 1792433304001 | H8: COD_PRODU | I8: NOMB_PRODUCTO
A9: CMP | B9: 001001 | C9: 00009693 | D9: 2016-04-11 | E9: 1620 | F9: 000818 | G9: 1790876896001 | H9: COD_PRODU | I9: NOMB_PRODUCTO
A10: CMP | B10: 001001 | C10: 00003386 | D10: 2016-05-17 | E10: 2520 | F10: 000819 | G10: 0928944693001 | H10: COD_PRODU | I10: NOMB_PRODUCTO
A11: CMP | B11: 001001 | C11: 00003395 | D11: 2016-05-18 | E11: 2469.6 | F11: 000819 | G11: 0928944693001 | H11: COD_PRODU | I11: NOMB_PRODUCTO
A12: CMP | B12: 001001 | C12: 00010977 | D12: 2016-06-09 | E12: 1296 | F12: 000818 | G12: 1790876896001 | H12: COD_PRODU | I12: NOMB_PRODUCTO
A13: CMP | B13: 001002 | C13: 00002884 | D13: 2016-08-29 | E13: 1900 | F13: 000819 | G13: 0928944693001 | H13: COD_PRODU | I13: NOMB_PRODUCTO
A14: CMP | B14: 001001 | C14: 00003870 | D14: 2016-10-01 | E14: 3500 | F14: 000819 | G14: 0928944693001 | H14: COD_PRODU | I14: NOMB_PRODUCTO
A15: CMP | B15: 001001 | C15: 00003870 | D15: 2016-10-01 | E15: 80 | F15: 000819 | G15: 0928944693001 | H15: COD_PRODU | I15: NOMB_PRODUCTO
A16: CMP | B16: 001001 | C16: 00000491 | D16: 2016-10-11 | E16: 1520 | F16: 001069 | G16: 0992847859001 | H16: COD_PRODU | I16: NOMB_PRODUCTO
A17: CMP | B17: 001001 | C17: 00003919 | D17: 2016-10-12 | E17: 1050 | F17: 000819 | G17: 0928944693001 | H17: COD_PRODU | I17: NOMB_PRODUCTO
A18: CMP | B18: 001001 | C18: 00003958 | D18: 2016-10-20 | E18: 800.4 | F18: 000819 | G18: 0928944693001 | H18: COD_PRODU | I18: NOMB_PRODUCTO
A19: DVC | B19: 001001 | C19: 00000154 | D19: 2016-05-18 | E19: -50.4 | F19: 000819 | G19: 0928944693001 | H19: COD_PRODU | I19: NOMB_PRODUCTO
A20: CMP | B20: 001001 | C20: 00006521 | D20: 2016-03-30 | E20: 110 | F20: 001004 | G20: 1792433304001 | H20: COD_PRODU | I20: NOMB_PRODUCTO
A21: CMP | B21: 001001 | C21: 00009693 | D21: 2016-04-11 | E21: 1082.16 | F21: 000818 | G21: 1790876896001 | H21: COD_PRODU | I21: NOMB_PRODUCTO
A22: CMP | B22: 001001 | C22: 00000491 | D22: 2016-10-11 | E22: 304 | F22: 001069 | G22: 0992847859001 | H22: COD_PRODU | I22: NOMB_PRODUCTO
A23: CMP | B23: 001001 | C23: 00003118 | D23: 2016-01-22 | E23: 178.75 | F23: 000019 | G23: 0501795181001 | H23: COD_PRODU | I23: NOMB_PRODUCTO
A24: CMP | B24: 001001 | C24: 00003137 | D24: 2016-02-03 | E24: 165 | F24: 000019 | G24: 0501795181001 | H24: COD_PRODU | I24: NOMB_PRODUCTO
A25: CMP | B25: 001001 | C25: 00003156 | D25: 2016-03-03 | E25: 55 | F25: 000019 | G25: 0501795181001 | H25: COD_PRODU | I25: NOMB_PRODUCTO
A26: CMP | B26: 001001 | C26: 00003185 | D26: 2016-04-05 | E26: 82.5 | F26: 000019 | G26: 0501795181001 | H26: COD_PRODU | I26: NOMB_PRODUCTO
A27: CMP | B27: 001001 | C27: 00003208 | D27: 2016-05-03 | E27: 99 | F27: 000019 | G27: 0501795181001 | H27: COD_PRODU | I27: NOMB_PRODUCTO
A28: CMP | B28: 001001 | C28: 00003241 | D28: 2016-06-09 | E28: 55 | F28: 000019 | G28: 0501795181001 | H28: COD_PRODU | I28: NOMB_PRODUCTO
A29: CMP | B29: 001001 | C29: 00003266 | D29: 2016-07-25 | E29: 220 | F29: 000019 | G29: 0501795181001 | H29: COD_PRODU | I29: NOMB_PRODUCTO
A30: CMP | B30: 001001 | C30: 00003302 | D30: 2016-08-31 | E30: 55 | F30: 000019 | G30: 0501795181001 | H30: COD_PRODU | I30: NOMB_PRODUCTO
A31: CMP | B31: 001001 | C31: 00003307 | D31: 2016-09-02 | E31: 82.5 | F31: 000019 | G31: 0501795181001 | H31: COD_PRODU | I31: NOMB_PRODUCTO
A32: CMP | B32: 001001 | C32: 00003551 | D32: 2016-10-20 | E32: 110 | F32: 000019 | G32: 0501795181001 | H32: COD_PRODU | I32: NOMB_PRODUCTO
A33: CMP | B33: 001001 | C33: 00003559 | D33: 2016-11-01 | E33: 110 | F33: 000019 | G33: 0501795181001 | H33: COD_PRODU | I33: NOMB_PRODUCTO
A34: CMP | B34: 001001 | C34: 00003576 | D34: 2016-11-24 | E34: 220 | F34: 000019 | G34: 0501795181001 | H34: COD_PRODU | I34: NOMB_PRODUCTO
A35: CMP | B35: 001001 | C35: 00011186 | D35: 2016-04-20 | E35: 963 | F35: 000613 | G35: 1791776070001 | H35: COD_PRODU | I35: NOMB_PRODUCTO
A36: CMP | B36: 001001 | C36: 00043427 | D36: 2016-06-06 | E36: 300 | F36: 000011 | G36: 1706293139001 | H36: COD_PRODU | I36: NOMB_PRODUCTO
A37: CMP | B37: 001001 | C37: 00011273 | D37: 2016-06-08 | E37: 636 | F37: 000613 | G37: 1791776070001 | H37: COD_PRODU | I37: NOMB_PRODUCTO
A38: CMP | B38: 001001 | C38: 00011334 | D38: 2016-07-13 | E38: 660 | F38: 000613 | G38: 1791776070001 | H38: COD_PRODU | I38: NOMB_PRODUCTO
A39: CMP | B39: 001001 | C39: 00011428 | D39: 2016-08-29 | E39: 966 | F39: 000613 | G39: 1791776070001 | H39: COD_PRODU | I39: NOMB_PRODUCTO
A40: CMP | B40: 001001 | C40: 00011511 | D40: 2016-10-05 | E40: 648 | F40: 000613 | G40: 1791776070001 | H40: COD_PRODU | I40: NOMB_PRODUCTO
A41: CMP | B41: 001001 | C41: 00008130 | D41: 2016-07-28 | E41: 122.4 | F41: 000796 | G41: 1707454672001 | H41: COD_PRODU | I41: NOMB_PRODUCTO
A42: CMP | B42: 001001 | C42: 00023030 | D42: 2016-03-09 | E42: 70.47 | F42: 000534 | G42: 1706866371001 | H42: COD_PRODU | I42: NOMB_PRODUCTO
A43: CMP | B43: 001001 | C43: 00023253 | D43: 2016-04-22 | E43: 71.55 | F43: 000534 | G43: 1706866371001 | H43: COD_PRODU | I43: NOMB_PRODUCTO
A44: CMP | B44: 001003 | C44: 00010398 | D44: 2016-11-08 | E44: 120 | F44: 000034 | G44: 1791309839001 | H44: COD_PRODU | I44: NOMB_PRODUCTO
A45: CMP | B45: 001001 | C45: 00001292 | D45: 2016-03-24 | E45: 1400 | F45: 000015 | G45: 1705985511001 | H45: COD_PRODU | I45: NOMB_PRODUCTO
A46: CMP | B46: 001001 | C46: 00024694 | D46: 2016-11-15 | E46: 1185 | F46: 001006 | G46: 1708459837001 | H46: COD_PRODU | I46: NOMB_PRODUCTO
A47: CMP | B47: 001001 | C47: 00095952 | D47: 2016-01-07 | E47: 3091.2 | F47: 000189 | G47: 1791996437001 | H47: COD_PRODU | I47: NOMB_PRODUCTO
A48: CMP | B48: 001001 | C48: 00096351 | D48: 2016-01-26 | E48: 1674.4 | F48: 000189 | G48: 1791996437001 | H48: COD_PRODU | I48: NOMB_PRODUCTO
A49: CMP | B49: 001001 | C49: 00096582 | D49: 2016-02-04 | E49: 1545.6 | F49: 000189 | G49: 1791996437001 | H49: COD_PRODU | I49: NOMB_PRODUCTO
A50: CMP | B50: 001001 | C50: 00096895 | D50: 2016-02-23 | E50: 3220 | F50: 000189 | G50: 1791996437001 | H50: COD_PRODU | I50: NOMB_PRODUCTO
A51: CMP | B51: 001001 | C51: 00097367 | D51: 2016-03-17 | E51: 1932 | F51: 000189 | G51: 1791996437001 | H51: COD_PRODU | I51: NOMB_PRODUCTO
A52: CMP | B52: 001001 | C52: 00097406 | D52: 2016-03-21 | E52: 1288 | F52: 000189 | G52: 1791996437001 | H52: COD_PRODU | I52: NOMB_PRODUCTO
A53: CMP | B53: 001001 | C53: 00097814 | D53: 2016-04-08 | E53: 3220 | F53: 000189 | G53: 1791996437001 | H53: COD_PRODU | I53: NOMB_PRODUCTO
A54: CMP | B54: 001001 | C54: 00098440 | D54: 2016-05-09 | E54: 2640.4 | F54: 000189 | G54: 1791996437001 | H54: COD_PRODU | I54: NOMB_PRODUCTO
A55: CMP | B55: 001001 | C55: 00098764 | D55: 2016-05-24 | E55: 3799.6 | F55: 000189 | G55: 1791996437001 | H55: COD_PRODU | I55: NOMB_PRODUCTO
A56: CMP | B56: 001001 | C56: 00099124 | D56: 2016-06-10 | E56: 3220 | F56: 000189 | G56: 1791996437001 | H56: COD_PRODU | I56: NOMB_PRODUCTO
A57: CMP | B57: 001001 | C57: 00100033 | D57: 2016-07-25 | E57: 3220 | F57: 000189 | G57: 1791996437001 | H57: COD_PRODU | I57: NOMB_PRODUCTO
A58: CMP | B58: 001001 | C58: 00100810 | D58: 2016-08-31 | E58: 3220 | F58: 000189 | G58: 1791996437001 | H58: COD_PRODU | I58: NOMB_PRODUCTO
A59: CMP | B59: 001001 | C59: 00101388 | D59: 2016-09-28 | E59: 3220 | F59: 000189 | G59: 1791996437001 | H59: COD_PRODU | I59: NOMB_PRODUCTO
A60: CMP | B60: 001001 | C60: 00102012 | D60: 2016-10-26 | E60: 3220 | F60: 000189 | G60: 1791996437001 | H60: COD_PRODU | I60: NOMB_PRODUCTO
A61: CMP | B61: 001001 | C61: 00102768 | D61: 2016-12-02 | E61: 779.3 | F61: 000189 | G61: 1791996437001 | H61: COD_PRODU | I61: NOMB_PRODUCTO
A62: CMP | B62: 001001 | C62: 00102773 | D62: 2016-12-02 | E62: 1091.02 | F62: 000189 | G62: 1791996437001 | H62: COD_PRODU | I62: NOMB_PRODUCTO
A63: CMP | B63: 001001 | C63: 00102911 | D63: 2016-12-09 | E63: 2026.18 | F63: 000189 | G63: 1791996437001 | H63: COD_PRODU | I63: NOMB_PRODUCTO
A64: CMP | B64: 001001 | C64: 98070703 | D64: 2016-01-07 | E64: 1165.125 | F64: 000428 | G64: 1791179382001 | H64: COD_PRODU | I64: NOMB_PRODUCTO
A65: CMP | B65: 001001 | C65: 98071865 | D65: 2016-02-01 | E65: 1147.5 | F65: 000428 | G65: 1791179382001 | H65: COD_PRODU | I65: NOMB_PRODUCTO
A66: CMP | B66: 001100 | C66: 00034673 | D66: 2016-02-22 | E66: 1324.4 | F66: 000601 | G66: 0990012202001 | H66: COD_PRODU | I66: NOMB_PRODUCTO
A67: CMP | B67: 001100 | C67: 00038456 | D67: 2016-04-09 | E67: 617.05 | F67: 000601 | G67: 0990012202001 | H67: COD_PRODU | I67: NOMB_PRODUCTO
A68: CMP | B68: 001001 | C68: 98076262 | D68: 2016-05-11 | E68: 1534.125 | F68: 000428 | G68: 1791179382001 | H68: COD_PRODU | I68: NOMB_PRODUCTO
A69: CMP | B69: 001001 | C69: 98077706 | D69: 2016-06-14 | E69: 1172.625 | F69: 000428 | G69: 1791179382001 | H69: COD_PRODU | I69: NOMB_PRODUCTO
A70: CMP | B70: 001001 | C70: 98079970 | D70: 2016-08-08 | E70: 1137.75 | F70: 000428 | G70: 1791179382001 | H70: COD_PRODU | I70: NOMB_PRODUCTO
A71: CMP | B71: 001100 | C71: 00052358 | D71: 2016-09-22 | E71: 933.1 | F71: 000601 | G71: 0990012202001 | H71: COD_PRODU | I71: NOMB_PRODUCTO
A72: CMP | B72: 001001 | C72: 98082983 | D72: 2016-10-16 | E72: 1181.25 | F72: 000428 | G72: 1791179382001 | H72: COD_PRODU | I72: NOMB_PRODUCTO
A73: CMP | B73: 001004 | C73: 00071743 | D73: 2016-11-24 | E73: 1006.47 | F73: 000880 | G73: 0990784884001 | H73: COD_PRODU | I73: NOMB_PRODUCTO
A74: CMP | B74: 001100 | C74: 00031509 | D74: 2016-01-13 | E74: 1650 | F74: 000601 | G74: 0990012202001 | H74: COD_PRODU | I74: NOMB_PRODUCTO
A75: CMP | B75: 001001 | C75: 98071118 | D75: 2016-01-15 | E75: 566.84 | F75: 000428 | G75: 1791179382001 | H75: COD_PRODU | I75: NOMB_PRODUCTO
A76: CMP | B76: 001001 | C76: 98071868 | D76: 2016-02-01 | E76: 2012.686 | F76: 000428 | G76: 1791179382001 | H76: COD_PRODU | I76: NOMB_PRODUCTO
A77: CMP | B77: 001100 | C77: 00034538 | D77: 2016-02-20 | E77: 893.2 | F77: 000601 | G77: 0990012202001 | H77: COD_PRODU | I77: NOMB_PRODUCTO
A78: CMP | B78: 001001 | C78: 98072794 | D78: 2016-02-21 | E78: 836.35 | F78: 000428 | G78: 1791179382001 | H78: COD_PRODU | I78: NOMB_PRODUCTO
A79: CMP | B79: 001001 | C79: 98072810 | D79: 2016-02-22 | E79: 1205.511 | F79: 000428 | G79: 1791179382001 | H79: COD_PRODU | I79: NOMB_PRODUCTO
A80: CMP | B80: 001100 | C80: 00035914 | D80: 2016-03-08 | E80: 893.2 | F80: 000601 | G80: 0990012202001 | H80: COD_PRODU | I80: NOMB_PRODUCTO
A81: CMP | B81: 001100 | C81: 00036669 | D81: 2016-03-17 | E81: 1650 | F81: 000601 | G81: 0990012202001 | H81: COD_PRODU | I81: NOMB_PRODUCTO
A82: CMP | B82: 001001 | C82: 98074769 | D82: 2016-04-07 | E82: 1604.625 | F82: 000428 | G82: 1791179382001 | H82: COD_PRODU | I82: NOMB_PRODUCTO
A83: CMP | B83: 001001 | C83: 98076069 | D83: 2016-05-06 | E83: 1606.57 | F83: 000428 | G83: 1791179382001 | H83: COD_PRODU | I83: NOMB_PRODUCTO
A84: CMP | B84: 001004 | C84: 00045842 | D84: 2016-05-14 | E84: 723.096 | F84: 000880 | G84: 0990784884001 | H84: COD_PRODU | I84: NOMB_PRODUCTO
A85: CMP | B85: 001001 | C85: 98076450 | D85: 2016-05-16 | E85: 389.778 | F85: 000428 | G85: 1791179382001 | H85: COD_PRODU | I85: NOMB_PRODUCTO
A86: CMP | B86: 001004 | C86: 00047042 | D86: 2016-05-24 | E86: 1052.7 | F86: 000880 | G86: 0990784884001 | H86: COD_PRODU | I86: NOMB_PRODUCTO
A87: CMP | B87: 001001 | C87: 98078330 | D87: 2016-06-28 | E87: 1580.896 | F87: 000428 | G87: 1791179382001 | H87: COD_PRODU | I87: NOMB_PRODUCTO
A88: CMP | B88: 001004 | C88: 00054601 | D88: 2016-07-21 | E88: 1459.26 | F88: 000880 | G88: 0990784884001 | H88: COD_PRODU | I88: NOMB_PRODUCTO
A89: CMP | B89: 001001 | C89: 98079922 | D89: 2016-08-08 | E89: 1610.071 | F89: 000428 | G89: 1791179382001 | H89: COD_PRODU | I89: NOMB_PRODUCTO
A90: CMP | B90: 001001 | C90: 98081123 | D90: 2016-09-05 | E90: 1217.181 | F90: 000428 | G90: 1791179382001 | H90: COD_PRODU | I90: NOMB_PRODUCTO
A91: CMP | B91: 001100 | C91: 00052360 | D91: 2016-09-22 | E91: 412.5 | F91: 000601 | G91: 0990012202001 | H91: COD_PRODU | I91: NOMB_PRODUCTO
A92: CMP | B92: 001001 | C92: 98082657 | D92: 2016-10-10 | E92: 509.22 | F92: 000428 | G92: 1791179382001 | H92: COD_PRODU | I92: NOMB_PRODUCTO
A93: CMP | B93: 001001 | C93: 98082871 | D93: 2016-10-13 | E93: 780.52 | F93: 000428 | G93: 1791179382001 | H93: COD_PRODU | I93: NOMB_PRODUCTO
A94: CMP | B94: 001001 | C94: 98083400 | D94: 2016-10-26 | E94: 1162.8 | F94: 000428 | G94: 1791179382001 | H94: COD_PRODU | I94: NOMB_PRODUCTO
A95: CMP | B95: 001001 | C95: 98084305 | D95: 2016-11-15 | E95: 1168.12 | F95: 000428 | G95: 1791179382001 | H95: COD_PRODU | I95: NOMB_PRODUCTO
A96: CMP | B96: 001001 | C96: 98084988 | D96: 2016-11-28 | E96: 1570.54 | F96: 000428 | G96: 1791179382001 | H96: COD_PRODU | I96: NOMB_PRODUCTO
A97: CMP | B97: 001001 | C97: 98086048 | D97: 2016-12-19 | E97: 1160.14 | F97: 000428 | G97: 1791179382001 | H97: COD_PRODU | I97: NOMB_PRODUCTO
A98: CMP | B98: 001001 | C98: 98074664 | D98: 2016-04-05 | E98: 874.65 | F98: 000428 | G98: 1791179382001 | H98: COD_PRODU | I98: NOMB_PRODUCTO
A99: CMP | B99: 001001 | C99: 98079923 | D99: 2016-08-08 | E99: 871.25 | F99: 000428 | G99: 1791179382001 | H99: COD_PRODU | I99: NOMB_PRODUCTO
A100: CMP | B100: 001001 | C100: 98084792 | D100: 2016-11-24 | E100: 849.15 | F100: 000428 | G100: 1791179382001 | H100: COD_PRODU | I100: NOMB_PRODUCTO
A101: CMP | B101: 001001 | C101: 98070888 | D101: 2016-01-11 | E101: 1037.047 | F101: 000428 | G101: 1791179382001 | H101: COD_PRODU | I101: NOMB_PRODUCTO
A102: CMP | B102: 001001 | C102: 98072873 | D102: 2016-02-23 | E102: 1038.954 | F102: 000428 | G102: 1791179382001 | H102: COD_PRODU | I102: NOMB_PRODUCTO
A103: CMP | B103: 001001 | C103: 98073749 | D103: 2016-03-14 | E103: 1313.07 | F103: 000428 | G103: 1791179382001 | H103: COD_PRODU | I103: NOMB_PRODUCTO
A104: CMP | B104: 001001 | C104: 98076089 | D104: 2016-05-06 | E104: 850.164 | F104: 000428 | G104: 1791179382001 | H104: COD_PRODU | I104: NOMB_PRODUCTO
A105: CMP | B105: 001001 | C105: 98078330 | D105: 2016-06-28 | E105: 838.999 | F105: 000428 | G105: 1791179382001 | H105: COD_PRODU | I105: NOMB_PRODUCTO
A106: CMP | B106: 001100 | C106: 00050988 | D106: 2016-09-07 | E106: 378 | F106: 000601 | G106: 0990012202001 | H106: COD_PRODU | I106: NOMB_PRODUCTO
A107: CMP | B107: 001001 | C107: 98083133 | D107: 2016-10-18 | E107: 785.312 | F107: 000428 | G107: 1791179382001 | H107: COD_PRODU | I107: NOMB_PRODUCTO
A108: CMP | B108: 001004 | C108: 00071743 | D108: 2016-11-24 | E108: 677.369035 | F108: 000880 | G108: 0990784884001 | H108: COD_PRODU | I108: NOMB_PRODUCTO
A109: CMP | B109: 001100 | C109: 00033089 | D109: 2016-02-02 | E109: 668.8 | F109: 000601 | G109: 0990012202001 | H109: COD_PRODU | I109: NOMB_PRODUCTO
A110: CMP | B110: 001001 | C110: 98073996 | D110: 2016-03-18 | E110: 613.988 | F110: 000428 | G110: 1791179382001 | H110: COD_PRODU | I110: NOMB_PRODUCTO
A111: CMP | B111: 001001 | C111: 98076856 | D111: 2016-05-23 | E111: 587.128 | F111: 000428 | G111: 1791179382001 | H111: COD_PRODU | I111: NOMB_PRODUCTO
A112: CMP | B112: 001001 | C112: 98077795 | D112: 2016-06-15 | E112: 796.32 | F112: 000428 | G112: 1791179382001 | H112: COD_PRODU | I112: NOMB_PRODUCTO
A113: CMP | B113: 001004 | C113: 00059026 | D113: 2016-08-24 | E113: 466.61 | F113: 000880 | G113: 0990784884001 | H113: COD_PRODU | I113: NOMB_PRODUCTO
A114: CMP | B114: 001004 | C114: 00059121 | D114: 2016-08-25 | E114: 154.28 | F114: 000880 | G114: 0990784884001 | H114: COD_PRODU | I114: NOMB_PRODUCTO
A115: CMP | B115: 001100 | C115: 00053569 | D115: 2016-10-06 | E115: 448.4 | F115: 000601 | G115: 0990012202001 | H115: COD_PRODU | I115: NOMB_PRODUCTO
A116: CMP | B116: 001001 | C116: 98084349 | D116: 2016-11-16 | E116: 656.964 | F116: 000428 | G116: 1791179382001 | H116: COD_PRODU | I116: NOMB_PRODUCTO
A117: CMP | B117: 001004 | C117: 00047042 | D117: 2016-05-24 | E117: 304.92 | F117: 000880 | G117: 0990784884001 | H117: COD_PRODU | I117: NOMB_PRODUCTO
A118: CMP | B118: 001004 | C118: 00047042 | D118: 2016-05-24 | E118: 137.577 | F118: 000880 | G118: 0990784884001 | H118: COD_PRODU | I118: NOMB_PRODUCTO
A119: CMP | B119: 001001 | C119: 98077706 | D119: 2016-06-14 | E119: 70.67 | F119: 000428 | G119: 1791179382001 | H119: COD_PRODU | I119: NOMB_PRODUCTO
A120: CMP | B120: 001004 | C120: 00051414 | D120: 2016-06-27 | E120: 776.457 | F120: 000880 | G120: 0990784884001 | H120: COD_PRODU | I120: NOMB_PRODUCTO
A121: CMP | B121: 001004 | C121: 00059507 | D121: 2016-08-27 | E121: 387.321 | F121: 000880 | G121: 0990784884001 | H121: COD_PRODU | I121: NOMB_PRODUCTO
A122: CMP | B122: 001004 | C122: 00064643 | D122: 2016-10-04 | E122: 751.41 | F122: 000880 | G122: 0990784884001 | H122: COD_PRODU | I122: NOMB_PRODUCTO
A123: CMP | B123: 001001 | C123: 98077706 | D123: 2016-06-14 | E123: 682.65 | F123: 000428 | G123: 1791179382001 | H123: COD_PRODU | I123: NOMB_PRODUCTO
A124: CMP | B124: 001001 | C124: 00007625 | D124: 2016-01-05 | E124: 259.2 | F124: 000796 | G124: 1707454672001 | H124: COD_PRODU | I124: NOMB_PRODUCTO
A125: CMP | B125: 001001 | C125: 00007681 | D125: 2016-01-28 | E125: 129.6 | F125: 000796 | G125: 1707454672001 | H125: COD_PRODU | I125: NOMB_PRODUCTO
A126: CMP | B126: 001001 | C126: 00007703 | D126: 2016-02-11 | E126: 129.6 | F126: 000796 | G126: 1707454672001 | H126: COD_PRODU | I126: NOMB_PRODUCTO
A127: CMP | B127: 001001 | C127: 00007752 | D127: 2016-03-01 | E127: 129.6 | F127: 000796 | G127: 1707454672001 | H127: COD_PRODU | I127: NOMB_PRODUCTO
A128: CMP | B128: 001001 | C128: 00007776 | D128: 2016-03-10 | E128: 50.4 | F128: 000796 | G128: 1707454672001 | H128: COD_PRODU | I128: NOMB_PRODUCTO
A129: CMP | B129: 001001 | C129: 00007776 | D129: 2016-03-10 | E129: 183.6 | F129: 000796 | G129: 1707454672001 | H129: COD_PRODU | I129: NOMB_PRODUCTO
A130: CMP | B130: 001001 | C130: 00007842 | D130: 2016-04-08 | E130: 129.6 | F130: 000796 | G130: 1707454672001 | H130: COD_PRODU | I130: NOMB_PRODUCTO
A131: CMP | B131: 001001 | C131: 00007872 | D131: 2016-04-20 | E131: 194.4 | F131: 000796 | G131: 1707454672001 | H131: COD_PRODU | I131: NOMB_PRODUCTO
A132: CMP | B132: 001001 | C132: 00007938 | D132: 2016-05-12 | E132: 183.6 | F132: 000796 | G132: 1707454672001 | H132: COD_PRODU | I132: NOMB_PRODUCTO
A133: CMP | B133: 001001 | C133: 00007987 | D133: 2016-06-03 | E133: 122.4 | F133: 000796 | G133: 1707454672001 | H133: COD_PRODU | I133: NOMB_PRODUCTO
A134: CMP | B134: 001001 | C134: 00008036 | D134: 2016-06-21 | E134: 122.4 | F134: 000796 | G134: 1707454672001 | H134: COD_PRODU | I134: NOMB_PRODUCTO
A135: CMP | B135: 001001 | C135: 00008101 | D135: 2016-07-18 | E135: 122.4 | F135: 000796 | G135: 1707454672001 | H135: COD_PRODU | I135: NOMB_PRODUCTO
A136: CMP | B136: 001001 | C136: 00008175 | D136: 2016-08-16 | E136: 122.4 | F136: 000796 | G136: 1707454672001 | H136: COD_PRODU | I136: NOMB_PRODUCTO
A137: CMP | B137: 001001 | C137: 00003381 | D137: 2016-09-05 | E137: 118.08 | F137: 001056 | G137: 1792464579001 | H137: COD_PRODU | I137: NOMB_PRODUCTO
A138: CMP | B138: 001001 | C138: 00035905 | D138: 2016-09-22 | E138: 160 | F138: 000345 | G138: 1791399285001 | H138: COD_PRODU | I138: NOMB_PRODUCTO
A139: CMP | B139: 001001 | C139: 00003606 | D139: 2016-10-17 | E139: 113.76 | F139: 001056 | G139: 1792464579001 | H139: COD_PRODU | I139: NOMB_PRODUCTO
A140: CMP | B140: 001001 | C140: 00003696 | D140: 2016-11-07 | E140: 113.76 | F140: 001056 | G140: 1792464579001 | H140: COD_PRODU | I140: NOMB_PRODUCTO
A141: CMP | B141: 001001 | C141: 00003778 | D141: 2016-11-21 | E141: 113.76 | F141: 001056 | G141: 1792464579001 | H141: COD_PRODU | I141: NOMB_PRODUCTO
A142: CMP | B142: 001001 | C142: 00003856 | D142: 2016-12-02 | E142: 113.76 | F142: 001056 | G142: 1792464579001 | H142: COD_PRODU | I142: NOMB_PRODUCTO
A143: CMP | B143: 001001 | C143: 00003944 | D143: 2016-12-20 | E143: 113.76 | F143: 001056 | G143: 1792464579001 | H143: COD_PRODU | I143: NOMB_PRODUCTO
A144: CMP | B144: 001001 | C144: 00022682 | D144: 2016-01-04 | E144: 256.5 | F144: 000534 | G144: 1706866371001 | H144: COD_PRODU | I144: NOMB_PRODUCTO
A145: CMP | B145: 001001 | C145: 00022728 | D145: 2016-01-13 | E145: 109.39725 | F145: 000534 | G145: 1706866371001 | H145: COD_PRODU | I145: NOMB_PRODUCTO
A146: CMP | B146: 001001 | C146: 00022780 | D146: 2016-01-22 | E146: 75.6 | F146: 000534 | G146: 1706866371001 | H146: COD_PRODU | I146: NOMB_PRODUCTO
A147: CMP | B147: 001001 | C147: 00022826 | D147: 2016-02-01 | E147: 86.7825 | F147: 000534 | G147: 1706866371001 | H147: COD_PRODU | I147: NOMB_PRODUCTO
A148: CMP | B148: 001001 | C148: 00022855 | D148: 2016-02-10 | E148: 52.164 | F148: 000534 | G148: 1706866371001 | H148: COD_PRODU | I148: NOMB_PRODUCTO
A149: CMP | B149: 001001 | C149: 00022923 | D149: 2016-02-19 | E149: 193.059 | F149: 000534 | G149: 1706866371001 | H149: COD_PRODU | I149: NOMB_PRODUCTO
A150: CMP | B150: 001001 | C150: 00022923 | D150: 2016-02-19 | E150: 89.775 | F150: 000534 | G150: 1706866371001 | H150: COD_PRODU | I150: NOMB_PRODUCTO
A151: CMP | B151: 001001 | C151: 00022924 | D151: 2016-02-19 | E151: 106.875 | F151: 000534 | G151: 1706866371001 | H151: COD_PRODU | I151: NOMB_PRODUCTO
A152: CMP | B152: 001001 | C152: 00023150 | D152: 2016-04-04 | E152: 345.42 | F152: 000534 | G152: 1706866371001 | H152: COD_PRODU | I152: NOMB_PRODUCTO
A153: CMP | B153: 001001 | C153: 00023150 | D153: 2016-04-04 | E153: 36 | F153: 000534 | G153: 1706866371001 | H153: COD_PRODU | I153: NOMB_PRODUCTO
A154: CMP | B154: 001001 | C154: 00023151 | D154: 2016-04-04 | E154: 88.02225 | F154: 000534 | G154: 1706866371001 | H154: COD_PRODU | I154: NOMB_PRODUCTO
A155: CMP | B155: 001001 | C155: 00023151 | D155: 2016-04-04 | E155: 93.195 | F155: 000534 | G155: 1706866371001 | H155: COD_PRODU | I155: NOMB_PRODUCTO
A156: CMP | B156: 001001 | C156: 00023414 | D156: 2016-05-24 | E156: 108.585 | F156: 000534 | G156: 1706866371001 | H156: COD_PRODU | I156: NOMB_PRODUCTO
A157: CMP | B157: 001001 | C157: 00023449 | D157: 2016-05-31 | E157: 86.9535 | F157: 000534 | G157: 1706866371001 | H157: COD_PRODU | I157: NOMB_PRODUCTO
A158: CMP | B158: 001001 | C158: 00023450 | D158: 2016-05-31 | E158: 85.502 | F158: 000534 | G158: 1706866371001 | H158: COD_PRODU | I158: NOMB_PRODUCTO
A159: CMP | B159: 001001 | C159: 00023450 | D159: 2016-05-31 | E159: 85.502 | F159: 000534 | G159: 1706866371001 | H159: COD_PRODU | I159: NOMB_PRODUCTO
A160: CMP | B160: 001001 | C160: 00023450 | D160: 2016-05-31 | E160: 85.5 | F160: 000534 | G160: 1706866371001 | H160: COD_PRODU | I160: NOMB_PRODUCTO
A161: CMP | B161: 001001 | C161: 00023450 | D161: 2016-05-31 | E161: 86.228767 | F161: 000534 | G161: 1706866371001 | H161: COD_PRODU | I161: NOMB_PRODUCTO
A162: CMP | B162: 001001 | C162: 00023451 | D162: 2016-05-31 | E162: 112.5 | F162: 000534 | G162: 1706866371001 | H162: COD_PRODU | I162: NOMB_PRODUCTO
A163: CMP | B163: 001001 | C163: 00023533 | D163: 2016-06-14 | E163: 138.0825 | F163: 000534 | G163: 1706866371001 | H163: COD_PRODU | I163: NOMB_PRODUCTO
A164: CMP | B164: 001001 | C164: 00023662 | D164: 2016-07-08 | E164: 267.5295 | F164: 000534 | G164: 1706866371001 | H164: COD_PRODU | I164: NOMB_PRODUCTO
A165: CMP | B165: 001001 | C165: 00023662 | D165: 2016-07-08 | E165: 127.38904 | F165: 000534 | G165: 1706866371001 | H165: COD_PRODU | I165: NOMB_PRODUCTO
A166: CMP | B166: 001001 | C166: 00023663 | D166: 2016-07-08 | E166: 25.2 | F166: 000534 | G166: 1706866371001 | H166: COD_PRODU | I166: NOMB_PRODUCTO
A167: CMP | B167: 001001 | C167: 00023939 | D167: 2016-08-23 | E167: 148.5 | F167: 000534 | G167: 1706866371001 | H167: COD_PRODU | I167: NOMB_PRODUCTO
A168: CMP | B168: 001001 | C168: 00023956 | D168: 2016-08-25 | E168: 358.45875 | F168: 000534 | G168: 1706866371001 | H168: COD_PRODU | I168: NOMB_PRODUCTO
A169: CMP | B169: 001001 | C169: 00024076 | D169: 2016-09-19 | E169: 43.81875 | F169: 000534 | G169: 1706866371001 | H169: COD_PRODU | I169: NOMB_PRODUCTO
A170: CMP | B170: 001003 | C170: 00009977 | D170: 2016-10-07 | E170: 77.5 | F170: 000034 | G170: 1791309839001 | H170: COD_PRODU | I170: NOMB_PRODUCTO
A171: CMP | B171: 001003 | C171: 00010086 | D171: 2016-10-14 | E171: 182.466 | F171: 000034 | G171: 1791309839001 | H171: COD_PRODU | I171: NOMB_PRODUCTO
A172: CMP | B172: 001003 | C172: 00010587 | D172: 2016-11-18 | E172: 120 | F172: 000034 | G172: 1791309839001 | H172: COD_PRODU | I172: NOMB_PRODUCTO
A173: CMP | B173: 001003 | C173: 00010587 | D173: 2016-11-18 | E173: 52.5 | F173: 000034 | G173: 1791309839001 | H173: COD_PRODU | I173: NOMB_PRODUCTO
A174: CMP | B174: 001003 | C174: 00010587 | D174: 2016-11-18 | E174: 57.5 | F174: 000034 | G174: 1791309839001 | H174: COD_PRODU | I174: NOMB_PRODUCTO
A175: CMP | B175: 001003 | C175: 00010756 | D175: 2016-12-01 | E175: 60 | F175: 000034 | G175: 1791309839001 | H175: COD_PRODU | I175: NOMB_PRODUCTO
A176: CMP | B176: 001003 | C176: 00010756 | D176: 2016-12-01 | E176: 105 | F176: 000034 | G176: 1791309839001 | H176: COD_PRODU | I176: NOMB_PRODUCTO
A177: CMP | B177: 001001 | C177: 00022682 | D177: 2016-01-04 | E177: 151.47 | F177: 000534 | G177: 1706866371001 | H177: COD_PRODU | I177: NOMB_PRODUCTO
A178: CMP | B178: 001001 | C178: 00022711 | D178: 2016-01-11 | E178: 99 | F178: 000534 | G178: 1706866371001 | H178: COD_PRODU | I178: NOMB_PRODUCTO
A179: CMP | B179: 001001 | C179: 00022747 | D179: 2016-01-15 | E179: 68.4 | F179: 000534 | G179: 1706866371001 | H179: COD_PRODU | I179: NOMB_PRODUCTO
A180: CMP | B180: 001001 | C180: 00022825 | D180: 2016-02-01 | E180: 330.3135 | F180: 000534 | G180: 1706866371001 | H180: COD_PRODU | I180: NOMB_PRODUCTO
A181: CMP | B181: 001001 | C181: 00022826 | D181: 2016-02-01 | E181: 85.05 | F181: 000534 | G181: 1706866371001 | H181: COD_PRODU | I181: NOMB_PRODUCTO
A182: CMP | B182: 001001 | C182: 00022923 | D182: 2016-02-19 | E182: 103.4341 | F182: 000534 | G182: 1706866371001 | H182: COD_PRODU | I182: NOMB_PRODUCTO
A183: CMP | B183: 001001 | C183: 00022924 | D183: 2016-02-19 | E183: 58.41 | F183: 000534 | G183: 1706866371001 | H183: COD_PRODU | I183: NOMB_PRODUCTO
A184: CMP | B184: 001001 | C184: 00022924 | D184: 2016-02-19 | E184: 49.5 | F184: 000534 | G184: 1706866371001 | H184: COD_PRODU | I184: NOMB_PRODUCTO
A185: CMP | B185: 001001 | C185: 00022945 | D185: 2016-02-24 | E185: 140.7672 | F185: 000534 | G185: 1706866371001 | H185: COD_PRODU | I185: NOMB_PRODUCTO
A186: CMP | B186: 001001 | C186: 00023148 | D186: 2016-04-04 | E186: 136.8 | F186: 000534 | G186: 1706866371001 | H186: COD_PRODU | I186: NOMB_PRODUCTO
A187: CMP | B187: 001001 | C187: 00023150 | D187: 2016-04-04 | E187: 81 | F187: 000534 | G187: 1706866371001 | H187: COD_PRODU | I187: NOMB_PRODUCTO
A188: CMP | B188: 001001 | C188: 00023150 | D188: 2016-04-04 | E188: 99 | F188: 000534 | G188: 1706866371001 | H188: COD_PRODU | I188: NOMB_PRODUCTO
A189: CMP | B189: 001001 | C189: 00023151 | D189: 2016-04-04 | E189: 49.5 | F189: 000534 | G189: 1706866371001 | H189: COD_PRODU | I189: NOMB_PRODUCTO
A190: CMP | B190: 001001 | C190: 00023151 | D190: 2016-04-04 | E190: 102.366 | F190: 000534 | G190: 1706866371001 | H190: COD_PRODU | I190: NOMB_PRODUCTO
A191: CMP | B191: 001001 | C191: 00023417 | D191: 2016-05-24 | E191: 136.8 | F191: 000534 | G191: 1706866371001 | H191: COD_PRODU | I191: NOMB_PRODUCTO
A192: CMP | B192: 001001 | C192: 00023434 | D192: 2016-05-26 | E192: 53.172 | F192: 000534 | G192: 1706866371001 | H192: COD_PRODU | I192: NOMB_PRODUCTO
A193: CMP | B193: 001001 | C193: 00023449 | D193: 2016-05-31 | E193: 99 | F193: 000534 | G193: 1706866371001 | H193: COD_PRODU | I193: NOMB_PRODUCTO
A194: CMP | B194: 001001 | C194: 00023449 | D194: 2016-05-31 | E194: 102.465 | F194: 000534 | G194: 1706866371001 | H194: COD_PRODU | I194: NOMB_PRODUCTO
A195: CMP | B195: 001001 | C195: 00023449 | D195: 2016-05-31 | E195: 36 | F195: 000534 | G195: 1706866371001 | H195: COD_PRODU | I195: NOMB_PRODUCTO
A196: CMP | B196: 001001 | C196: 00023450 | D196: 2016-05-31 | E196: 90 | F196: 000534 | G196: 1706866371001 | H196: COD_PRODU | I196: NOMB_PRODUCTO
A197: CMP | B197: 001001 | C197: 00023450 | D197: 2016-05-31 | E197: 99 | F197: 000534 | G197: 1706866371001 | H197: COD_PRODU | I197: NOMB_PRODUCTO
A198: CMP | B198: 001001 | C198: 00023450 | D198: 2016-05-31 | E198: 101.2275 | F198: 000534 | G198: 1706866371001 | H198: COD_PRODU | I198: NOMB_PRODUCTO
A199: CMP | B199: 001001 | C199: 00023533 | D199: 2016-06-14 | E199: 125.55 | F199: 000534 | G199: 1706866371001 | H199: COD_PRODU | I199: NOMB_PRODUCTO
A200: CMP | B200: 001001 | C200: 00023561 | D200: 2016-06-17 | E200: 141.73516 | F200: 000534 | G200: 1706866371001 | H200: COD_PRODU | I200: NOMB_PRODUCTO
... 465 more rows

Sheet IMP
A1: VER SI HAY REPUESTOS ESOS SE LOS QUITA
A2: tipodocu | B2: fechaemisi | C2: numero | D2: subtotmo1 | E2: codclipro | F2: codclipro1 | G2: codigprodu | H2: descripcio
A3: IMP | B3: 2016-02-03 | C3: 00000003 | D3: 30205.6344 | E3: 000096 | F3: MANUFACT | G3: COD_PRODU | H3: NOMB_PRODUCTO
A4: IMP | B4: 2016-02-03 | C4: 00000003 | D4: 3660.591648 | E4: 000096 | F4: MANUFACT | G4: COD_PRODU | H4: NOMB_PRODUCTO
A5: IMP | B5: 2016-04-07 | C5: 00000007 | D5: 28294.72112 | E5: 000096 | F5: MANUFACT | G5: COD_PRODU | H5: NOMB_PRODUCTO
A6: IMP | B6: 2016-04-07 | C6: 00000007 | D6: 3625.569427 | E6: 000096 | F6: MANUFACT | G6: COD_PRODU | H6: NOMB_PRODUCTO
A7: IMP | B7: 2016-04-07 | C7: 00000007 | D7: 716.3946 | E7: 000096 | F7: MANUFACT | G7: COD_PRODU | H7: NOMB_PRODUCTO
A8: IMP | B8: 2016-05-17 | C8: 00000012 | D8: 27936.567 | E8: 000123 | F8: ALGI | G8: COD_PRODU | H8: NOMB_PRODUCTO
A9: IMP | B9: 2016-06-24 | C9: 00000013 | D9: 14324.84036 | E9: 001036 | F9: 809539008 | G9: COD_PRODU | H9: NOMB_PRODUCTO
A10: IMP | B10: 2016-06-24 | C10: 00000013 | D10: 695.3806 | E10: 001036 | F10: 809539008 | G10: COD_PRODU | H10: NOMB_PRODUCTO
A11: IMP | B11: 2016-09-13 | C11: 00000022 | D11: 12708.3602 | E11: 001036 | F11: 809539008 | G11: COD_PRODU | H11: NOMB_PRODUCTO
A12: IMP | B12: 2016-10-21 | C12: 00000025 | D12: 26517.12493 | E12: 001036 | F12: 809539008 | G12: COD_PRODU | H12: NOMB_PRODUCTO
A13: IMP | B13: 2016-11-15 | C13: 00000027 | D13: 4934.89584 | E13: 000096 | F13: MANUFACT | G13: COD_PRODU | H13: NOMB_PRODUCTO
A14: IMP | B14: 2016-11-28 | C14: 00000029 | D14: 26865.731 | E14: 000123 | F14: ALGI | G14: COD_PRODU | H14: NOMB_PRODUCTO
A15: IMP | B15: 2016-02-03 | C15: 00000003 | D15: 14567.66101 | E15: 000096 | F15: MANUFACT | G15: COD_PRODU | H15: NOMB_PRODUCTO
A16: IMP | B16: 2016-11-15 | C16: 00000027 | D16: 9529.4556 | E16: 000096 | F16: MANUFACT | G16: COD_PRODU | H16: NOMB_PRODUCTO
A17: IMP | B17: 2016-04-07 | C17: 00000007 | D17: 1074.5919 | E17: 000096 | F17: MANUFACT | G17: COD_PRODU | H17: NOMB_PRODUCTO
A18: IMP | B18: 2016-09-13 | C18: 00000022 | D18: 1868.8765 | E18: 001036 | F18: 809539008 | G18: COD_PRODU | H18: NOMB_PRODUCTO
A19: IMP | B19: 2016-10-21 | C19: 00000025 | D19: 3533.731 | E19: 001036 | F19: 809539008 | G19: COD_PRODU | H19: NOMB_PRODUCTO
A20: IMP | B20: 2016-11-28 | C20: 00000029 | D20: 2997.337 | E20: 000123 | F20: ALGI | G20: COD_PRODU | H20: NOMB_PRODUCTO
A21: IMP | B21: 2016-04-07 | C21: 00000007 | D21: 1790.9865 | E21: 000096 | F21: MANUFACT | G21: COD_PRODU | H21: NOMB_PRODUCTO
A22: IMP | B22: 2016-06-24 | C22: 00000013 | D22: 1043.0709 | E22: 001036 | F22: 809539008 | G22: COD_PRODU | H22: NOMB_PRODUCTO
A23: IMP | B23: 2016-09-13 | C23: 00000022 | D23: 2242.6518 | E23: 001036 | F23: 809539008 | G23: COD_PRODU | H23: NOMB_PRODUCTO
A24: IMP | B24: 2016-10-21 | C24: 00000025 | D24: 3533.731 | E24: 001036 | F24: 809539008 | G24: COD_PRODU | H24: NOMB_PRODUCTO
A25: IMP | B25: 2016-11-28 | C25: 00000029 | D25: 2997.337 | E25: 000123 | F25: ALGI | G25: COD_PRODU | H25: NOMB_PRODUCTO
A26: IMP | B26: 2016-04-01 | C26: 00000006 | D26: 2993.9262 | E26: 000144 | F26: 10942078 | G26: COD_PRODU | H26: NOMB_PRODUCTO
A27: IMP | B27: 2016-08-09 | C27: 00000017 | D27: 3555.4788 | E27: 000144 | F27: 10942078 | G27: COD_PRODU | H27: NOMB_PRODUCTO
A28: IMP | B28: 2016-10-26 | C28: 00000024 | D28: 4007.6064 | E28: 000144 | F28: 10942078 | G28: COD_PRODU | H28: NOMB_PRODUCTO
A29: IMP | B29: 2016-12-19 | C29: 00000030 | D29: 2452 | E29: 000708 | F29: 1111111111111 | G29: COD_PRODU | H29: NOMB_PRODUCTO
A30: IMP | B30: 2016-01-18 | C30: 00000001 | D30: 9497.9616 | E30: 000997 | F30: 8888888888888 | G30: COD_PRODU | H30: NOMB_PRODUCTO
A31: IMP | B31: 2016-01-18 | C31: 00000001 | D31: 16915.4432 | E31: 000997 | F31: 8888888888888 | G31: COD_PRODU | H31: NOMB_PRODUCTO
A32: IMP | B32: 2016-03-03 | C32: 00000004 | D32: 10286.4 | E32: 000998 | F32: 711741709 | G32: COD_PRODU | H32: NOMB_PRODUCTO
A33: IMP | B33: 2016-04-01 | C33: 00000006 | D33: 19354.13088 | E33: 000144 | F33: 10942078 | G33: COD_PRODU | H33: NOMB_PRODUCTO
A34: IMP | B34: 2016-04-01 | C34: 00000006 | D34: 4176.809 | E34: 000144 | F34: 10942078 | G34: COD_PRODU | H34: NOMB_PRODUCTO
A35: IMP | B35: 2016-04-22 | C35: 00000009 | D35: 10470.7309 | E35: 000997 | F35: 8888888888888 | G35: COD_PRODU | H35: NOMB_PRODUCTO
A36: IMP | B36: 2016-04-22 | C36: 00000009 | D36: 20470.8968 | E36: 000997 | F36: 8888888888888 | G36: COD_PRODU | H36: NOMB_PRODUCTO
A37: IMP | B37: 2016-08-09 | C37: 00000017 | D37: 17092.87272 | E37: 000144 | F37: 10942078 | G37: COD_PRODU | H37: NOMB_PRODUCTO
A38: IMP | B38: 2016-08-09 | C38: 00000017 | D38: 4266.57456 | E38: 000144 | F38: 10942078 | G38: COD_PRODU | H38: NOMB_PRODUCTO
A39: IMP | B39: 2016-10-26 | C39: 00000024 | D39: 3952.2154 | E39: 000144 | F39: 10942078 | G39: COD_PRODU | H39: NOMB_PRODUCTO
A40: IMP | B40: 2016-10-26 | C40: 00000024 | D40: 18724.576 | E40: 000144 | F40: 10942078 | G40: COD_PRODU | H40: NOMB_PRODUCTO
A41: IMP | B41: 2016-10-31 | C41: 00000026 | D41: 21191.7037 | E41: 000170 | F41: 406113 | G41: COD_PRODU | H41: NOMB_PRODUCTO
A42: IMP | B42: 2016-12-19 | C42: 00000030 | D42: 1620.6505 | E42: 000708 | F42: 1111111111111 | G42: COD_PRODU | H42: NOMB_PRODUCTO
A43: IMP | B43: 2016-12-19 | C43: 00000030 | D43: 1773.6084 | E43: 000708 | F43: 1111111111111 | G43: COD_PRODU | H43: NOMB_PRODUCTO
A44: IMP | B44: 2016-01-18 | C44: 00000001 | D44: 5878.872 | E44: 000997 | F44: 8888888888888 | G44: COD_PRODU | H44: NOMB_PRODUCTO
A45: IMP | B45: 2016-04-21 | C45: 00000010 | D45: 26971.89 | E45: 000708 | F45: 1111111111111 | G45: COD_PRODU | H45: NOMB_PRODUCTO
A46: IMP | B46: 2016-12-19 | C46: 00000030 | D46: 20839.548 | E46: 000708 | F46: 1111111111111 | G46: COD_PRODU | H46: NOMB_PRODUCTO
A47: IMP | B47: 2016-10-31 | C47: 00000026 | D47: 5382.5508 | E47: 000170 | F47: 406113 | G47: COD_PRODU | H47: NOMB_PRODUCTO
A48: IMP | B48: 2016-01-23 | C48: 00000002 | D48: 26223.7563 | E48: 000824 | F48: 4689000 | G48: COD_PRODU | H48: NOMB_PRODUCTO
A49: IMP | B49: 2016-03-31 | C49: 00000005 | D49: 24791.7657 | E49: 000824 | F49: 4689000 | G49: COD_PRODU | H49: NOMB_PRODUCTO
A50: IMP | B50: 2016-06-16 | C50: 00000011 | D50: 37734.4074 | E50: 000400 | F50: 111111 | G50: COD_PRODU | H50: NOMB_PRODUCTO
A51: IMP | B51: 2016-10-04 | C51: 00000023 | D51: 26876.388 | E51: 000824 | F51: 4689000 | G51: COD_PRODU | H51: NOMB_PRODUCTO
A52: IMP | B52: 2016-06-03 | C52: 00000008 | D52: 7306.85043 | E52: 000392 | F52: DECO1234 | G52: COD_PRODU | H52: NOMB_PRODUCTO
A53: IMP | B53: 2016-02-11 | C53: 00000016 | D53: 14055.66021 | E53: 000145 | F53: 20374518519 | G53: COD_PRODU | H53: NOMB_PRODUCTO
A54: IMP | B54: 2016-04-04 | C54: 00000019 | D54: 11124.7404 | E54: 001045 | F54: 02101630503 | G54: COD_PRODU | H54: NOMB_PRODUCTO
A55: IMP | B55: 2016-02-25 | C55: 00000014 | D55: 10832.4189 | E55: 000984 | F55: 6666666666666 | G55: COD_PRODU | H55: NOMB_PRODUCTO
A56: IMP | B56: 2016-11-01 | C56: 00000028 | D56: 13341.11 | E56: 000766 | F56: 01624390470 | G56: COD_PRODU | H56: NOMB_PRODUCTO
A57: IMP | B57: 2016-03-16 | C57: 00000018 | D57: 8940.45 | E57: 001021 | F57: 7777777777777 | G57: COD_PRODU | H57: NOMB_PRODUCTO
A58: IMP | B58: 2016-04-12 | C58: 00000021 | D58: =1164.01*0 -> 0 | E58: 000256 | F58: 2222222222222 | G58: COD_PRODU | H58: NOMB_PRODUCTO

Sheet CV
C1: =+PORTADA!B1 -> HERES GESTION EMPRESARIAL
C2: ANALISIS COSTO DE VENTAS
C3: AL 31 DICIEMBRE 2016
B4: + | C4: I INICIAL | F4: =+SUM(E5:E8) -> 238965.23
C5: =+'MAYOR DE INVENTARIOS'!D3 -> 1130101 | D5: MP | E5: =+'MAYOR DE INVENTARIOS'!F3 -> 112899.32
C6: =+'MAYOR DE INVENTARIOS'!D4 -> 1130102 | D6: PT | E6: =+'MAYOR DE INVENTARIOS'!F4 -> 126065.91
C7: =+'MAYOR DE INVENTARIOS'!D5 -> (en blanco) | D7: =+'MAYOR DE INVENTARIOS'!E5 ->  | E7: =+'MAYOR DE INVENTARIOS'!F5 -> 0
B10: + | C10: CMP NETAS | F10: =+SUM(E11:E12) -> 597340.8951
C11: + | D11: CMP | E11: =+SUMIF(CMP!A:A,CV!D11,CMP!E:E) -> 598963.7951
C12: - | D12: DVC | E12: =+SUMIF(CMP!A:A,CV!D12,CMP!E:E) -> -1622.9
B14: + | C14: CMP IMPORTACION | F14: =+SUM(E15:E16) -> 638769.2345
C15: + | D15: IMP | E15: =+SUMIF(IMP!A:A,CV!D15,IMP!D:D) -> 638769.2345
C16: -
B18: - | C18: INV FINAL | F18: =+SUM(E19:E21) -> -236699.6
C19: - | D19: =+D5 -> MP | E19: =-'MAYOR DE INVENTARIOS'!G3 -> -91006.9
C20: - | D20: =+D6 -> PT | E20: =-'MAYOR DE INVENTARIOS'!G4 -> -145692.7
B22: = | C22: COSTO DE VENTAS INVENTARIOS | F22: =+SUM(F3:F21) -> 1238375.76

Sheet BC
B1: =+PORTADA!B1 -> HERES GESTION EMPRESARIAL
B2: BALANCE DE COMPROBACION
B3: =+PORTADA!B2 -> Al 31 de diciembre del 2016
A5: CODIGO | B5: NOMBRE | C5: DEUDOR | D5: ACREEDOR | E5: SALDOS
A6: 4110101 | B6: VENTAS GRAVADAS 12% LOCALES (4 | C6: 12492.1 | D6: 2653237.94 | E6: -2640745.84
A7: 4110102 | B7: VENTAS GRAVADAS 0% LOCALES ( | C7: 78 | D7: 3278 | E7: -3200
A9: 4110112 | B9: ( - ) DESCUENTOS EN VENTAS | C9: 3104.84 | D9: 532.54 | E9: 2572.3
A10: 4110202 | B10: GANANCIA EN CAMBIO | C10: 0 | D10: 867.3 | E10: -867.3
A11: 4110204 | B11: OTROS INGRESOS | C11: 2446.97 | D11: 7853.53 | E11: -5406.56
A12: 4110206 | B12: OTROS INGRESOS FINANCIEROS | C12: 0 | D12: 54.9 | E12: -54.9
A14: 5110101 | B14: COSTO DE VENTAS | C14: 1721293.67 | D14: 41095.17 | E14: 1680198.5
A17: 5140101 | B17: MOD-SALARIOS PRODUCCION | C17: 118110 | D17: 0 | E17: 118110
A18: 5140102 | B18: MOD-HORAS EXTRAS PRODUCCION | C18: 2293.33 | D18: 0 | E18: 2293.33
A21: 5140201 | B21: MOD-DECIMO TERCER SUELDO PRODU | C21: 10033.65 | D21: 0 | E21: 10033.65
A22: 5140202 | B22: MOD-DECIMO CUARTO SUELDO PROD | C22: 2094.5 | D22: 0 | E22: 2094.5
A23: 5140203 | B23: MOD-VACACIONES PRODUCCION | C23: 3049.91 | D23: 0 | E23: 3049.91
A24: 5140205 | B24: MOD-APORTE PATRONAL PRODUCCION | C24: 14629.1 | D24: 0 | E24: 14629.1
A25: 5140206 | B25: MOD-FONDO DE RESERVA PRODUCCIO | C25: 9829.79 | D25: 0 | E25: 9829.79
A26: 5140207 | B26: MOD-REFRIGERIOS PRODUCCION | C26: 1752.5 | D26: 0 | E26: 1752.5
A27: 5140208 | B27: MOD-JUBILACION PATRONAL-DESAHU | C27: 20567.04 | D27: 5978.88 | E27: 14588.16
A28: 5140301 | B28: ( - ) PROVISION M O D | C28: 30.19 | D28: 176411.13 | E28: -176380.94
A29: 5150102 | B29: CIF-MANO DE OBRA INDIRECTA | C29: 5403.63 | D29: 0 | E29: 5403.63
A30: 5150103 | B30: CIF-TRABAJOS OCACIONALES | C30: 25380.97 | D30: 23.75 | E30: 25357.22
A31: 5150105 | B31: CIF-UNIFORMES PERSONAL PRODUCC | C31: 3107.69 | D31: 0 | E31: 3107.69
A32: 5150106 | B32: CIF-REPUESTOS,HERRAMIENTAS,PIE | C32: 47261.23 | D32: 348.01 | E32: 46913.22
A33: 5150107 | B33: CIF-FLETES Y TRANSPORTES | C33: 29961.83 | D33: 0 | E33: 29961.83
A34: 5150108 | B34: CIF-LUZ ELECTRICA | C34: 32913.56 | D34: 0 | E34: 32913.56
A36: 5150109 | B36: CIF-AGUA POTABLE | C36: 351.29 | D36: 0 | E36: 351.29
A37: 5150110 | B37: CIF-REPARACION Y MANTENIMIENTO | C37: 8584.85 | D37: 0 | E37: 8584.85
A38: 5150111 | B38: CIF-POLIZA SEGUROS MAQUINARIA | C38: 17194.79 | D38: 0 | E38: 17194.79
A39: 5150112 | B39: CIF-MEJORAS INSTALACIONES Y AD | C39: 18387.57 | D39: 0 | E39: 18387.57
A40: 5150114 | B40: CIF-MATERIALES,SUMINISTROS,VAR | C40: 19292.51 | D40: 1736.38 | E40: 17556.13
A41: 5150115 | B41: CIF-DEPRECIACIONES | C41: 55020 | D41: 0 | E41: 55020
A42: 5150116 | B42: CIF-OTROS GASTOS DE FABRICACIO | C42: 345.05 | D42: 45 | E42: 300.05
A43: 5150118 | B43: CIF-OTROS GASTOS ADMINISTRATIV | C43: 320.81 | D43: 0 | E43: 320.81
A44: 5150119 | B44: CIF-TELEFONO, INTERNET | C44: 11229.9 | D44: 164.6 | E44: 11065.3
A45: 5150121 | B45: CIF-GASTOS LEGALES,NOTARIAS | C45: 571.23 | D45: 0 | E45: 571.23
A48: 5150125 | B48: CIF-PUBLICIDAD Y PROPAGANDA | C48: 4540.69 | D48: 0 | E48: 4540.69
A49: 5150126 | B49: CIF-PERDIDA EN CAMBIO | C49: 4449.82 | D49: 0 | E49: 4449.82
A51: 5150127 | B51: CIF-GASTOS NO DEDUCIBLES | C51: 251.05 | D51: 0.7 | E51: 250.35
A54: 5150190 | B54: ( - ) PROVISION C I F | C54: 0.1 | D54: 282250.13 | E54: -282250.03

Sheet ER-FUNCIÓN (hidden)
G1: RAZÓN SOCIAL: | P1: P | Q1: POSITIVO
G2: DIRECCION COMERCIAL: | P2: N | Q2: NEGATIVO
G3: EXPEDIENTE No.: | P3: D | Q3: POSITIVO O NEGATIVO (DUAL)
A4: ESTADO DEL RESULTADO INTEGRAL POR EL AÑO TERMINADO AL (DD/MM/AAAA):
A6: ESTADO DEL RESULTADO INTEGRAL CONSOLIDADO
N8: CODIGO | O8: VALOR US$
A9: INGRESOS
A10: INGRESOS DE ACTIVIDADES ORDINARIAS | N10: 41 | O10: =+SUM(O11:O16)+SUM(O19:O25) -> 
A11: VENTA DE BIENES | N11: 4101 | O11: =-SUMIF(BC!#REF!,N11,BC!$E$6:$E$120) ->  | P11: P
A12: PRESTACION DE SERVICIOS | N12: 4102 | O12: =-SUMIF(BC!#REF!,N12,BC!$E$6:$E$120) ->  | P12: P
A13: CONTRATOS DE CONSTRUCCION | N13: 4103 | O13: =-SUMIF(BC!#REF!,N13,BC!$E$6:$E$120) ->  | P13: P
A14: SUBVENCIONES DEL GOBIERNO | N14: 4104 | O14: =-SUMIF(BC!#REF!,N14,BC!$E$6:$E$120) ->  | P14: P
A15: REGALÍAS | N15: 4105 | O15: =-SUMIF(BC!#REF!,N15,BC!$E$6:$E$120) ->  | P15: P
A16: INTERESES | N16: 4106 | O16: =-SUMIF(BC!#REF!,N16,BC!$E$6:$E$120) ->  | P16: P
A17: INTERESES GENERADOS POR VENTAS A CREDITO | N17: 410601 | O17: =-SUMIF(BC!#REF!,N17,BC!$E$6:$E$120) ->  | P17: P
A18: OTROS INTERESES GENERADOS | N18: 410602 | O18: =-SUMIF(BC!#REF!,N18,BC!$E$6:$E$120) ->  | P18: P
A19: DIVIDENDOS | N19: 4107 | O19: =-SUMIF(BC!#REF!,N19,BC!$E$6:$E$120) ->  | P19: P
A20: GANANCIA POR MEDICION A VALOR RAZONABLE DE ACTIVOS BIOLOGICOS | N20: 4108 | O20: =-SUMIF(BC!#REF!,N20,BC!$E$6:$E$120) ->  | P20: P
A21: OTROS INGRESOS DE ACTIVIDADES ORDINARIAS | N21: 4109 | O21: =-SUMIF(BC!#REF!,N21,BC!$E$6:$E$120) ->  | P21: P
A22: (-) DESCUENTO EN VENTAS | N22: 4110 | O22: =-SUMIF(BC!#REF!,N22,BC!$E$6:$E$120) ->  | P22: N
A23: (-) DEVOLUCIONES EN VENTAS | N23: 4111 | O23: =-SUMIF(BC!#REF!,N23,BC!$E$6:$E$120) ->  | P23: N
A24: (-) BONIFICACIÓN EN PRODUCTO | N24: 4112 | O24: =-SUMIF(BC!#REF!,N24,BC!$E$6:$E$120) ->  | P24: N
A25: (-) OTRAS REBAJAS COMERCIALES | N25: 4113 | O25: =-SUMIF(BC!#REF!,N25,BC!$E$6:$E$120) ->  | P25: N
O26: =-SUMIF(BC!#REF!,N26,BC!$E$6:$E$120) -> 
A27: COSTO DE VENTAS Y PRODUCCIÓN | N27: 51 | O27: =+O29+O42+O45+O48 -> 
A29: MATERIALES UTILIZADOS O PRODUCTOS VENDIDOS | N29: 5101 | O29: =+SUM(O30:O41) -> 
A30: (+) INVENTARIO INICIAL DE BIENES NO PRODUCIDOS POR LA COMPAÑIA | N30: 510101 | O30: =SUMIF(BC!#REF!,N30,BC!$E$6:$E$120) ->  | P30: P
A31: (+) COMPRAS NETAS LOCALES DE BIENES NO PRODUCIDOS POR LA COMPAÑIA | N31: 510102 | O31: =SUMIF(BC!#REF!,N31,BC!$E$6:$E$120) ->  | P31: P
A32: (+) IMPORTACIONES DE BIENES NO PRODUCIDOS POR LA COMPAÑIA | N32: 510103 | O32: =SUMIF(BC!#REF!,N32,BC!$E$6:$E$120) ->  | P32: P
A33: (-) INVENTARIO FINAL DE BIENES NO PRODUCIDOS POR LA COMPAÑIA | N33: 510104 | O33: =SUMIF(BC!#REF!,N33,BC!$E$6:$E$120) ->  | P33: N
A34: (+) INVENTARIO INICIAL DE MATERIA PRIMA | N34: 510105 | O34: =+#REF! ->  | P34: P
A35: (+) COMPRAS NETAS LOCALES DE MATERIA PRIMA | N35: 510106 | O35: =+#REF! ->  | P35: P
A36: (+) IMPORTACIONES DE MATERIA PRIMA | N36: 510107 | O36: =+#REF! ->  | P36: P
A37: (-) INVENTARIO FINAL DE MATERIA PRIMA | N37: 510108 | O37: =+#REF! ->  | P37: N
A38: (+) INVENTARIO INICIAL DE PRODUCTOS EN PROCESO | N38: 510109 | O38: =SUMIF(BC!#REF!,N38,BC!$E$6:$E$120) ->  | P38: P
A39: (-) INVENTARIO FINAL DE PRODUCTOS EN PROCESO | N39: 510110 | O39: =SUMIF(BC!#REF!,N39,BC!$E$6:$E$120) ->  | P39: N
A40: (+) INVENTARIO INICIAL PRODUCTOS TERMINADOS | N40: 510111 | O40: =+#REF! ->  | P40: P
A41: (-) INVENTARIO FINAL DE PRODUCTOS TERMINADOS | N41: 510112 | O41: =+#REF! ->  | P41: N
A42: (+) MANO DE OBRA DIRECTA | N42: 5102 | O42: =+O43+O44 ->  | P42: P
A43: SUELDOS Y BENEFICIOS SOCIALES | N43: 510201 | O43: =SUMIF(BC!#REF!,N43,BC!$E$6:$E$120) ->  | P43: P
A44: GASTO PLANES DE BENEFICIOS A EMPLEADOS | N44: 510202 | O44: =SUMIF(BC!#REF!,N44,BC!$E$6:$E$120) ->  | P44: P
A45: (+) MANO DE OBRA INDIRECTA | N45: 5103 | O45: =+O46+O47 ->  | P45: P
A46: SUELDOS Y BENEFICIOS SOCIALES | N46: 510301 | O46: =SUMIF(BC!#REF!,N46,BC!$E$6:$E$120) ->  | P46: P
A47: GASTO PLANES DE BENEFICIOS A EMPLEADOS | N47: 510302 | O47: =SUMIF(BC!#REF!,N47,BC!$E$6:$E$120) ->  | P47: P
A48: (+) OTROS COSTOS INDIRECTOS DE FABRICACION | N48: 5104 | O48: =+SUM(O49:O56) ->  | P48: P
A49: DEPRECIACIÓN PROPIEDADES, PLANTA Y EQUIPO | N49: 510401 | O49: =SUMIF(BC!#REF!,N49,BC!$E$6:$E$120) ->  | P49: P
A50: DETERIORO O PERDIDAS DE ACTIVOS BIOLOGICOS | N50: 510402 | O50: =SUMIF(BC!#REF!,N50,BC!$E$6:$E$120) ->  | P50: P
A51: DETERIORO DE PROPIEDAD, PLANTA Y EQUIPO | N51: 510403 | O51: =SUMIF(BC!#REF!,N51,BC!$E$6:$E$120) ->  | P51: P
A52: EFECTO VALOR NETO DE REALIZACION DE INVENTARIOS | N52: 510404 | O52: =SUMIF(BC!#REF!,N52,BC!$E$6:$E$120) ->  | P52: P
A53: GASTO POR GARANTIAS EN VENTA DE PRODUCTOS O SERVICIOS | N53: 510405 | O53: =SUMIF(BC!#REF!,N53,BC!$E$6:$E$120) ->  | P53: P
A54: MANTENIMIENTO Y REPARACIONES | N54: 510406 | O54: =SUMIF(BC!#REF!,N54,BC!$E$6:$E$120) ->  | P54: P
A55: SUMINISTROS MATERIALES Y REPUESTOS | N55: 510407 | O55: =SUMIF(BC!#REF!,N55,BC!$E$6:$E$120) ->  | P55: P
A56: OTROS COSTOS DE PRODUCCIÓN | N56: 510408 | O56: =SUMIF(BC!#REF!,N56,BC!$E$6:$E$120) ->  | P56: P
O57: =SUMIF(BC!#REF!,N57,BC!$E$6:$E$120) -> 
A58: GANANCIA BRUTA | N58: 42 | O58: =+O10-O27 ->  | Q58: Subtotal A (41 - 51) | S58: =909229-O58 -> 
A60: OTROS INGRESOS | N60: 43 | O60: =+SUM(O61:O65) -> 
A61: DIVIDENDOS | N61: 4301 | O61: =SUMIF(BC!#REF!,N61,BC!$E$6:$E$120) ->  | P61: P
A62: INTERESES FINANCIEROS | N62: 4302 | O62: =SUMIF(BC!#REF!,N62,BC!$E$6:$E$120) ->  | P62: P
A63: GANANCIA EN INVERSIONES EN ASOCIADAS / SUBSIDIARIAS Y OTRAS | N63: 4303 | O63: =SUMIF(BC!#REF!,N63,BC!$E$6:$E$120) ->  | P63: P
A64: VALUACION DE INSTRUMENTOS FINANCIEROS A VALOR RAZONABLE CON CAMBIO EN RESULTADOS | N64: 4304 | O64: =SUMIF(BC!#REF!,N64,BC!$E$6:$E$120) ->  | P64: P
A65: OTRAS RENTAS | N65: 4305 | O65: =-SUMIF(BC!#REF!,N65,BC!$E$6:$E$120) ->  | P65: P | R65: =+O65-12668 -> 
A67: GASTOS | N67: 52 | O67: =+O70+L70+O113+O120 -> 
L69: DE VENTA | O69: ADMINISTRATIVOS
A70: GASTOS | K70: 5201 | L70: =+SUM(L71:L90)+L91+L94+L97+L104+SUM(L108:L111) ->  | N70: 5202 | O70: =+SUM(O71:O91)+O94+O97+O104+SUM(O108:O111) ->  | R70: =+O70-513303 -> 
A71: SUELDOS, SALARIOS Y DEMÁS REMUNERACIONES | K71: 520101 | L71: =SUMIF(BC!#REF!,K71,BC!$E$6:$E$120) ->  | N71: 520201 | O71: =SUMIF(BC!#REF!,N71,BC!$E$6:$E$120) ->  | P71: P
A72: APORTES A LA SEGURIDAD SOCIAL (incluido fondo de reserva) | K72: 520102 | L72: =SUMIF(BC!#REF!,K72,BC!$E$6:$E$120) ->  | N72: 520202 | O72: =SUMIF(BC!#REF!,N72,BC!$E$6:$E$120) ->  | P72: P
A73: BENEFICIOS SOCIALES E INDEMNIZACIONES | K73: 520103 | L73: =SUMIF(BC!#REF!,K73,BC!$E$6:$E$120) ->  | N73: 520203 | O73: =SUMIF(BC!#REF!,N73,BC!$E$6:$E$120) ->  | P73: P
A74: GASTO PLANES DE BENEFICIOS A EMPLEADOS | K74: 520104 | L74: =SUMIF(BC!#REF!,K74,BC!$E$6:$E$120) ->  | N74: 520204 | O74: =SUMIF(BC!#REF!,N74,BC!$E$6:$E$120) ->  | P74: P
A75: HONORARIOS, COMISIONES Y DIETAS A PERSONAS NATURALES | K75: 520105 | L75: =SUMIF(BC!#REF!,K75,BC!$E$6:$E$120) ->  | N75: 520205 | O75: =SUMIF(BC!#REF!,N75,BC!$E$6:$E$120) ->  | P75: P
A76: REMUNERACIONES A OTROS TRABAJADORES AUTÓNOMOS | K76: 520106 | L76: =SUMIF(BC!#REF!,K76,BC!$E$6:$E$120) ->  | N76: 520206 | O76: =SUMIF(BC!#REF!,N76,BC!$E$6:$E$120) ->  | P76: P
A77: HONORARIOS A EXTRANJEROS POR SERVICIOS OCASIONALES | K77: 520107 | L77: =SUMIF(BC!#REF!,K77,BC!$E$6:$E$120) ->  | N77: 520207 | O77: =SUMIF(BC!#REF!,N77,BC!$E$6:$E$120) ->  | P77: P
A78: MANTENIMIENTO Y REPARACIONES | K78: 520108 | L78: =SUMIF(BC!#REF!,K78,BC!$E$6:$E$120) ->  | N78: 520208 | O78: =SUMIF(BC!#REF!,N78,BC!$E$6:$E$120) ->  | P78: P
A79: ARRENDAMIENTO OPERATIVO | K79: 520109 | L79: =SUMIF(BC!#REF!,K79,BC!$E$6:$E$120) ->  | N79: 520209 | O79: =SUMIF(BC!#REF!,N79,BC!$E$6:$E$120) ->  | P79: P
A80: COMISIONES | K80: 520110 | L80: =SUMIF(BC!#REF!,K80,BC!$E$6:$E$120) ->  | N80: 520210 | O80: =SUMIF(BC!#REF!,N80,BC!$E$6:$E$120) ->  | P80: P
A81: PROMOCIÓN Y PUBLICIDAD | K81: 520111 | L81: =SUMIF(BC!#REF!,K81,BC!$E$6:$E$120) ->  | N81: 520211 | P81: P | Q81: BLOQUEAR LA CELDA 079 PARA QUE NO INGRESEN INFORMACIÓN
A82: COMBUSTIBLES | K82: 520112 | L82: =SUMIF(BC!#REF!,K82,BC!$E$6:$E$120) ->  | N82: 520212 | O82: =SUMIF(BC!#REF!,N82,BC!$E$6:$E$120) ->  | P82: P
A83: LUBRICANTES | K83: 520113 | L83: =SUMIF(BC!#REF!,K83,BC!$E$6:$E$120) ->  | N83: 520213 | O83: =SUMIF(BC!#REF!,N83,BC!$E$6:$E$120) ->  | P83: P
A84: SEGUROS Y REASEGUROS (primas y cesiones) | K84: 520114 | L84: =SUMIF(BC!#REF!,K84,BC!$E$6:$E$120) ->  | N84: 520214 | O84: =SUMIF(BC!#REF!,N84,BC!$E$6:$E$120) ->  | P84: P
A85: TRANSPORTE | K85: 520115 | L85: =SUMIF(BC!#REF!,K85,BC!$E$6:$E$120) ->  | N85: 520215 | O85: =SUMIF(BC!#REF!,N85,BC!$E$6:$E$120) ->  | P85: P
A86: GASTOS DE GESTIÓN (agasajos a accionistas, trabajadores y clientes) | K86: 520116 | L86: =SUMIF(BC!#REF!,K86,BC!$E$6:$E$120) ->  | N86: 520216 | O86: =SUMIF(BC!#REF!,N86,BC!$E$6:$E$120) ->  | P86: P
A87: GASTOS DE VIAJE | K87: 520117 | L87: =SUMIF(BC!#REF!,K87,BC!$E$6:$E$120) ->  | N87: 520217 | O87: =SUMIF(BC!#REF!,N87,BC!$E$6:$E$120) ->  | P87: P
A88: AGUA, ENERGÍA, LUZ, Y TELECOMUNICACIONES | K88: 520118 | L88: =SUMIF(BC!#REF!,K88,BC!$E$6:$E$120) ->  | N88: 520218 | O88: =SUMIF(BC!#REF!,N88,BC!$E$6:$E$120) ->  | P88: P
A89: NOTARIOS Y REGISTRADORES DE LA PROPIEDAD O MERCANTILES | K89: 520119 | L89: =SUMIF(BC!#REF!,K89,BC!$E$6:$E$120) ->  | N89: 520219 | O89: =SUMIF(BC!#REF!,N89,BC!$E$6:$E$120) ->  | P89: P
A90: IMPUESTOS, CONTRIBUCIONES Y OTROS | K90: 520120 | N90: 520220 | O90: =SUMIF(BC!#REF!,N90,BC!$E$6:$E$120) ->  | P90: P | Q90: BLOQUEAR LA CELDA L88 PARA QUE NO INGRESEN INFORMACIÓN
A91: DEPRECIACIONES: | K91: 520121 | L91: =+SUM(L92:L93) ->  | N91: 520221 | O91: =+SUM(O92:O93) -> 
A92: PROPIEDADES, PLANTA Y EQUIPO | K92: 52012101 | L92: =SUMIF(BC!#REF!,K92,BC!$E$6:$E$120) ->  | N92: 52022101 | O92: =SUMIF(BC!#REF!,N92,BC!$E$6:$E$120) ->  | P92: P
A93: PROPIEDADES DE INVERSIÓN | K93: 52012102 | L93: =SUMIF(BC!#REF!,K93,BC!$E$6:$E$120) ->  | N93: 52022102 | O93: =SUMIF(BC!#REF!,N93,BC!$E$6:$E$120) ->  | P93: P
A94: AMORTIZACIONES: | K94: 520122 | L94: =+SUM(L95:L96) ->  | N94: 520222 | O94: =+SUM(O95:O96) -> 
A95: INTANGIBLES | K95: 52012201 | L95: =SUMIF(BC!#REF!,K95,BC!$E$6:$E$120) ->  | N95: 52022201 | O95: =SUMIF(BC!#REF!,N95,BC!$E$6:$E$120) ->  | P95: P
A96: OTROS ACTIVOS | K96: 52012202 | L96: =SUMIF(BC!#REF!,K96,BC!$E$6:$E$120) ->  | N96: 52022202 | O96: =SUMIF(BC!#REF!,N96,BC!$E$6:$E$120) ->  | P96: P
A97: GASTO DETERIORO: | K97: 520123 | L97: =+SUM(L98:L103) ->  | N97: 520223 | O97: =+SUM(O98:O103) -> 
A98: PROPIEDADES, PLANTA Y EQUIPO | K98: 52012301 | L98: =SUMIF(BC!#REF!,K98,BC!$E$6:$E$120) ->  | N98: 52022301 | O98: =SUMIF(BC!#REF!,N98,BC!$E$6:$E$120) ->  | P98: P
A99: INVENTARIOS | K99: 52012302 | N99: 52022302 | O99: =SUMIF(BC!#REF!,N99,BC!$E$6:$E$120) ->  | P99: P | Q99: BLOQUEAR LAS CELDAS L97 A L100 PARA QUE NO INGRESEN INFORMACIÓN
A100: INSTRUMENTOS FINANCIEROS | K100: 52012303 | N100: 52022303 | O100: =SUMIF(BC!#REF!,N100,BC!$E$6:$E$120) ->  | P100: P
A101: INTANGIBLES | K101: 52012304 | N101: 52022304 | O101: =SUMIF(BC!#REF!,N101,BC!$E$6:$E$120) ->  | P101: P
A102: CUENTAS POR COBRAR | K102: 52012305 | N102: 52022305 | O102: =SUMIF(BC!#REF!,N102,BC!$E$6:$E$120) ->  | P102: P
A103: OTROS ACTIVOS | K103: 52012306 | L103: =SUMIF(BC!#REF!,K103,BC!$E$6:$E$120) ->  | N103: 52022306 | O103: =SUMIF(BC!#REF!,N103,BC!$E$6:$E$120) ->  | P103: P
A104: GASTOS POR CANTIDADES ANORMALES DE UTILIZACION EN EL PROCESO DE PRODUCCIÓN: | K104: 520124 | L104: =+SUM(L105:L107) ->  | N104: 520224 | O104: =+SUM(O105:O107) -> 
A105: MANO DE OBRA | K105: 52012401 | L105: =SUMIF(BC!#REF!,K105,BC!$E$6:$E$120) ->  | N105: 52022401 | O105: =SUMIF(BC!#REF!,N105,BC!$E$6:$E$120) ->  | P105: P
A106: MATERIALES | K106: 52012402 | L106: =SUMIF(BC!#REF!,K106,BC!$E$6:$E$120) ->  | N106: 52022402 | O106: =SUMIF(BC!#REF!,N106,BC!$E$6:$E$120) ->  | P106: P
A107: COSTOS DE PRODUCCION | K107: 52012403 | L107: =SUMIF(BC!#REF!,K107,BC!$E$6:$E$120) ->  | N107: 52022403 | O107: =SUMIF(BC!#REF!,N107,BC!$E$6:$E$120) ->  | P107: P
A108: GASTO POR REESTRUCTURACION | K108: 520125 | L108: =SUMIF(BC!#REF!,K108,BC!$E$6:$E$120) ->  | N108: 520225 | O108: =SUMIF(BC!#REF!,N108,BC!$E$6:$E$120) ->  | P108: P
A109: VALOR NETO DE REALIZACION DE INVENTARIOS | K109: 520126 | L109: =SUMIF(BC!#REF!,K109,BC!$E$6:$E$120) ->  | N109: 520226 | O109: =SUMIF(BC!#REF!,N109,BC!$E$6:$E$120) ->  | P109: P
A110: GASTO IMPUESTO A LA RENTA (ACTIVOS Y PASIVOS DIFERIDOS) | K110: 520127 | N110: 520227 | O110: =SUMIF(BC!#REF!,N110,BC!$E$6:$E$120) ->  | P110: P
A111: OTROS GASTOS | K111: 520128 | L111: =SUMIF(BC!#REF!,K111,BC!$E$6:$E$120) ->  | N111: 520228 | O111: =SUMIF(BC!#REF!,N111,BC!$E$6:$E$120) ->  | P111: P
A113: GASTOS FINANCIEROS | N113: 5203 | O113: =+SUM(O114:O118) -> 
A114: INTERESES | N114: 520301 | O114: =SUMIF(BC!#REF!,N114,BC!$E$6:$E$120) ->  | P114: P
A115: COMISIONES | N115: 520302 | O115: =SUMIF(BC!#REF!,N115,BC!$E$6:$E$120) ->  | P115: P
A116: GASTOS DE FINANCIAMIENTO DE ACTIVOS | N116: 520303 | O116: =SUMIF(BC!#REF!,N116,BC!$E$6:$E$120) ->  | P116: P
A117: DIFERENCIA EN CAMBIO | N117: 520304 | O117: =SUMIF(BC!#REF!,N117,BC!$E$6:$E$120) ->  | P117: P
A118: OTROS GASTOS FINANCIEROS | N118: 520305 | O118: =SUMIF(BC!#REF!,N118,BC!$E$6:$E$120) ->  | P118: P
A120: OTROS GASTOS | N120: 5204 | O120: =+SUM(O121:O122) -> 
A121: PERDIDA EN INVERSIONES EN ASOCIADAS / SUBSIDIARIAS Y OTRAS | N121: 520401 | O121: =SUMIF(BC!#REF!,N121,BC!$E$6:$E$120) ->  | P121: P
A122: OTROS | N122: 520402 | O122: =SUMIF(BC!#REF!,N122,BC!$E$6:$E$120) ->  | P122: P
Q123: Subtotal B (A + 43 - 52)
A124: GANANCIA (PÉRDIDA) ANTES DE 15% A TRABAJADORES E IMPUESTO A LA RENTA DE OPERACIONES CONTINUADAS | N124: 60 | O124: =+O58+O60-O67 ->  | R124: =+O124-#REF! ->  | T124: =+O124 ->  | V124: =+#REF! -> 
A125: 15% PARTICIPACIÓN TRABAJADORES | N125: 61 | O125: =-#REF! ->  | P125: P | Q125: Subtotal C (B-61) | R125: =+O125+R70 ->  | T125: =-O125 -> 
A126: GANANCIA (PÉRDIDA) ANTES DE IMPUESTOS | N126: 62 | O126: =+O124-O125 -> 
A127: IMPUESTO A LA RENTA CAUSADO | N127: 63 | O127: =-#REF! ->  | P127: P | Q127: Subtotal D (C-63) | T127: =-O127 -> 
A128: GANANCIA (PÉRDIDA) DE OPERACIONES CONTINUADAS ANTES DEL IMPUESTO DIFERIDO | N128: 64 | O128: =+O126-O127 -> 
A129: (-) GASTO POR IMPUESTO DIFERIDO | N129: 65 | P129: N
A130: (+) INGRESO POR IMPUESTO DIFERIDO | N130: 66 | O130: 5738 | P130: P | T130: =+O130 -> 5738
A131: GANANCIA (PERDIDA) DE OPERACIONES CONTINUADAS | N131: 67 | O131: =+O128+O129+O130 -> 
T132: =+O154 -> 
A133: INGRESOS POR OPERACIONES DISCONTINUADAS | N133: 71 | P133: P | U133: =+SUM(T125:T133) -> 
A134: GASTOS POR OPERACIONES DISCONTINUADAS | N134: 72 | P134: P | Q134: Subtotal E (71-72) | T134: =+T124+SUM(T125:T132) -> 
A135: GANANCIA (PÉRDIDA) ANTES DE 15% A TRABAJADORES E IMPUESTO A LA RENTA DE OPERACIONES DISCONTINUADAS | N135: 73 | O135: =+O133-O134 -> 0 | T135: =+T134-O156 -> 
A136: 15% PARTICIPACIÓN TRABAJADORES | N136: 74 | P136: P | Q136: Subtotal F (E-74) | U136: =+#REF!-#REF! -> 
A137: GANANCIA (PÉRDIDA) ANTES DE IMPUESTOS DE OPERACIONES DISCONTINUADAS | N137: 75 | O137: =+O135-O136 -> 0
A138: IMPUESTO A LA RENTA CAUSADO | N138: 76 | P138: P | Q138: Subtotal G (F-76)
A139: GANANCIA (PÉRDIDA) DE OPERACIONES DISCONTINUADAS | N139: 77 | O139: =+O137-O138 -> 0
Q140: Subtotal H (D+G)
A141: GANANCIA (PÉRDIDA) NETA DEL PERIODO | N141: 79 | O141: =+O131+O139 ->  | Q141: =+O141-'ESF-CLASIF.'!AK88 -> 
A142: PROPIETARIOS DE LA CONTROLADORA | N142: 7901
A143: PARTICIPACIÓN ATRIBUIBLE A LA NO CONTROLADORA (informativo) | N143: 7902
A145: OTRO RESULTADO INTEGRAL
A146: COMPONENTES DEL OTRO RESULTADO INTEGRAL | N146: 81 | O146: =+SUM(O147:O154) -> 
A147: DIFERENCIA DE CAMBIO POR CONVERSIÓN | N147: 8101 | O147: =SUMIF(BC!#REF!,N147,BC!$E$6:$E$120) ->  | P147: D
A148: VALUACION DE ACTIVOS FINANCIEROS DISPONIBLES PARA LA VENTA | N148: 8102 | O148: =SUMIF(BC!#REF!,N148,BC!$E$6:$E$120) ->  | P148: P
A149: GANANCIAS POR REVALUACIÓN DE PROPIEDADES, PLANTA Y EQUIPO | N149: 8103 | O149: =SUMIF(BC!#REF!,N149,BC!$E$6:$E$120) ->  | P149: P
A150: GANANCIAS (PÉRDIDAS) ACTUARIALES POR PLANES DE BENEFICIOS DEFINIDOS | N150: 8104 | O150: =SUMIF(BC!#REF!,N150,BC!$E$6:$E$120) ->  | P150: P
A151: REVERSION DEL DETERIORO (PÉRDIDA POR DETERIORO) DE UN ACTIVO REVALUADO | N151: 8105 | O151: =SUMIF(BC!#REF!,N151,BC!$E$6:$E$120) ->  | P151: N
A152: PARTICIPACION DE OTRO RESULTADO INTEGRAL DE ASOCIADAS | N152: 8106 | O152: =SUMIF(BC!#REF!,N152,BC!$E$6:$E$120) ->  | P152: D
A153: IMPUESTO SOBRE LAS GANANCIAS RELATIVO A OTRO RESULTADO INTEGRAL | N153: 8107 | O153: =SUMIF(BC!#REF!,N153,BC!$E$6:$E$120) ->  | P153: P
A154: OTROS (DETALLAR EN NOTAS) | N154: 8108 | O154: =-SUMIF(BC!#REF!,N154,BC!$E$6:$E$120) ->  | P154: D
Q155: Subtotal I (H + 81)
A156: RESULTADO INTEGRAL TOTAL DEL AÑO | N156: 82 | O156: =+O141+O146 ->  | P156: 82 | R156: 142570 | S156: =+R156-O156 -> 
A157: PROPIETARIOS DE LA CONTROLADORA | N157: 8201
A158: PARTICIPACIÓN NO CONTROLADORA ( informativo) | N158: 8202
A160: GANANCIA POR ACCION (SÓLO EMPRESAS QUE COTIZAN EN BOLSA): | N160: 90 | O160: =+O161+O164 -> 0
A161: Ganancia por acción básica | N161: 9001 | O161: =+SUM(O162:O163) -> 0
A162: Ganancia por acción básica en operaciones continuadas | N162: 900101 | P162: P
A163: Ganancia por acción básica en operaciones discontinuadas | N163: 900102 | P163: P
A164: Ganancia por acción diluída | N164: 9002 | O164: =+SUM(O165:O166) -> 0
A165: Ganancia por acción diluída en operaciones continuadas | N165: 900201 | P165: P
A166: Ganancia por acción diluída en operaciones discontinuadas | N166: 900202 | P166: P
A168: UTILIDAD A REINVERTIR (INFORMATIVO) | N168: 91
A170: DECLARO QUE LOS DATOS QUE CONSTAN EN ESTOS ESTADOS FINANCIEROS SON EXACTOS Y VERDADEROS.
A171: LOS ESTADOS FINANCIEROS ESTÁN ELABORADOS BAJO NORMAS INTERNACIONALES DE INFORMACIÓN FINANCIERA (NIC 1, PÁRRAFO 16)
C177: __________________________________________ | K177: __________________________________________
C178: FIRMA REPRESENTANTE LEGAL | K178: FIRMA CONTADOR
C179: NOMBRE: | K179: NOMBRE:
C180: CI / RUC: | K180: RUC:

Sheet ESF-CLASIF. (hidden)
K1: RAZÓN SOCIAL: | U1: Correo electrónico:
K2: Dirección Comercial: | S2: Teléfono: | Y2: P | Z2: POSITIVO
K3: No. Expediente | S3: AÑO: | Y3: N | Z3: NEGATIVO
K4: RUC: | Y4: D | Z4: POSITIVO O NEGATIVO (DUAL)
A5: FECHA DE LA JUNTA QUE APROBÓ ESTADOS FINANCIEROS (DD/MM/AAAA):
A7: ESTADO DE SITUACIÓN FINANCIERA CONSOLIDADO
A8: ACTIVO | R8: 1 | S8: =+S9+S50 ->  | U8: PASIVO | AJ8: 2 | AK8: =+AK9+AK39 -> 
A9: ACTIVO CORRIENTE | R9: 101 | S9: =+S10+S11+S23+S37+S42+S46+S47+S48 ->  | U9: PASIVO CORRIENTE | AJ9: 201 | AK9: =+SUM(AK10:AK12)+AK15+AK19+AK22+AK23+SUM(AK30:AK34)+AK37 -> 
A10: EFECTIVO Y EQUIVALENTES AL EFECTIVO | R10: 10101 | S10: =SUMIF(BC!#REF!,R10,BC!$E$6:$E$120) ->  | T10: =+S10-#REF! ->  | U10: PASIVOS FINANCIEROS A VALOR RAZONABLE CON CAMBIOS EN RESULTADOS | AJ10: 20101 | AK10: =-SUMIF(BC!#REF!,AJ10,BC!$E$6:$E$120) ->  | AL10: P
A11: ACTIVOS FINANCIEROS | R11: 10102 | S11: =+SUM(S12:S16)+SUM(S19:S22) ->  | U11: PASIVOS POR CONTRATOS DE ARRENDAMIENTO FINANCIEROS | AJ11: 20102 | AK11: =-SUMIF(BC!#REF!,AJ11,BC!$E$6:$E$120) ->  | AL11: P
A12: ACTIVOS FINANCIEROS A VALOR RAZONABLE CON CAMBIOS EN RESULTADOS | R12: 1010201 | S12: =SUMIF(BC!#REF!,R12,BC!$E$6:$E$120) ->  | T12: P | U12: CUENTAS Y DOCUMENTOS POR PAGAR | AJ12: 20103 | AK12: =+SUM(AK13:AK14) -> 
A13: ACTIVOS FINANCIEROS DISPONIBLES PARA LA VENTA | R13: 1010202 | S13: =SUMIF(BC!#REF!,R13,BC!$E$6:$E$120) ->  | T13: P | U13: LOCALES | AJ13: 2010301 | AK13: =-SUMIF(BC!#REF!,AJ13,BC!$E$6:$E$120) ->  | AL13: P
A14: ACTIVOS FINANCIEROS MANTENIDOS HASTA EL VENCIMIENTO | R14: 1010203 | S14: =SUMIF(BC!#REF!,R14,BC!$E$6:$E$120) ->  | T14: P | U14: DEL EXTERIOR | AJ14: 2010302 | AK14: =-SUMIF(BC!#REF!,AJ14,BC!$E$6:$E$120) ->  | AL14: P
A15: (-) PROVISION POR DETERIORO | R15: 1010204 | S15: =SUMIF(BC!#REF!,R15,BC!$E$6:$E$120) ->  | T15: N | U15: OBLIGACIONES CON INSTITUCIONES FINANCIERAS | AJ15: 20104 | AK15: =+SUM(AK16:AK18) -> 
A16: DOCUMENTOS Y CUENTAS POR COBRAR CLIENTES NO RELACIONADOS | R16: 1010205 | S16: =+SUM(S17:S18) ->  | T16: P | U16: LOCALES | AJ16: 2010401 | AK16: =-SUMIF(BC!#REF!,AJ16,BC!$E$6:$E$120) ->  | AL16: P
A17: DE ACTIVIDADES ORDINARIAS QUE GENEREN INTERESES | R17: 101020501 | S17: =SUMIF(BC!#REF!,R17,BC!$E$6:$E$120) ->  | T17: P
A18: DE ACTIVIDADES ORDINARIAS QUE NO GENEREN INTERESES | R18: 101020502 | S18: =SUMIF(BC!#REF!,R18,BC!$E$6:$E$120) ->  | T18: P | U18: DEL EXTERIOR | AJ18: 2010402 | AK18: =-SUMIF(BC!#REF!,AJ18,BC!$E$6:$E$120) ->  | AL18: P
A19: DOCUMENTOS Y CUENTAS POR COBRAR CLIENTES RELACIONADOS | R19: 1010206 | S19: =SUMIF(BC!#REF!,R19,BC!$E$6:$E$120) ->  | T19: P | U19: PROVISIONES | AJ19: 20105 | AK19: =+SUM(AK20:AK21) -> 
A20: OTRAS CUENTAS POR COBRAR RELACIONADAS | R20: 1010207 | S20: =SUMIF(BC!#REF!,R20,BC!$E$6:$E$120) ->  | T20: P | U20: LOCALES | AJ20: 2010501 | AK20: =-SUMIF(BC!#REF!,AJ20,BC!$E$6:$E$120) ->  | AL20: P
A21: OTRAS CUENTAS POR COBRAR | R21: 1010208 | S21: =SUMIF(BC!#REF!,R21,BC!$E$6:$E$120) ->  | T21: N | U21: DEL EXTERIOR | AJ21: 2010502 | AK21: =-SUMIF(BC!#REF!,AJ21,BC!$E$6:$E$120) ->  | AL21: P
A22: (-) PROVISIÓN CUENTAS INCOBRABLES Y DETERIORO | R22: 1010209 | S22: =SUMIF(BC!#REF!,R22,BC!$E$6:$E$120) ->  | U22: PORCIÓN CORRIENTE DE OBLIGACIONES EMITIDAS | AJ22: 20106 | AK22: =-SUMIF(BC!#REF!,AJ22,BC!$E$6:$E$120) ->  | AL22: P
A23: INVENTARIOS | R23: 10103 | S23: =+SUM(S24:S36) ->  | T23: P | U23: OTRAS OBLIGACIONES CORRIENTES | AJ23: 20107 | AK23: =+SUM(AK24:AK29) -> 
A24: INVENTARIOS DE MATERIA PRIMA | R24: 1010301 | S24: =SUMIF(BC!#REF!,R24,BC!$E$6:$E$120) ->  | T24: P | U24: CON LA ADMINISTRACIÓN TRIBUTARIA | AJ24: 2010701 | AK24: =-SUMIF(BC!#REF!,AJ24,BC!$E$6:$E$120) ->  | AL24: P
A25: INVENTARIOS DE PRODUCTOS EN PROCESO | R25: 1010302 | S25: =SUMIF(BC!#REF!,R25,BC!$E$6:$E$120) ->  | T25: P | U25: IMPUESTO A LA RENTA POR PAGAR DEL EJERCICIO | AJ25: 2010702 | AK25: =-SUMIF(BC!#REF!,AJ25,BC!$E$6:$E$120) ->  | AL25: P
A26: INVENTARIOS DE SUMINISTROS O MATERIALES A SER CONSUMIDOS EN EL PROCESO DE PRODUCCION | R26: 1010303 | S26: =SUMIF(BC!#REF!,R26,BC!$E$6:$E$120) ->  | T26: P | U26: CON EL IESS | AJ26: 2010703 | AK26: =-SUMIF(BC!#REF!,AJ26,BC!$E$6:$E$120) ->  | AL26: P
A27: INVENTARIOS DE SUMINISTROS O MATERIALES A SER CONSUMIDOS EN EL LA PRESTACION DEL SERVICIO | R27: 1010304 | S27: =SUMIF(BC!#REF!,R27,BC!$E$6:$E$120) ->  | T27: P | U27: POR BENEFICIOS DE LEY A EMPLEADOS | AJ27: 2010704 | AK27: =-SUMIF(BC!#REF!,AJ27,BC!$E$6:$E$120) ->  | AL27: P
A28: INVENTARIOS DE PROD. TERM. Y MERCAD. EN ALMACÉN - PRODUCIDO POR LA COMPAÑÍA | R28: 1010305 | S28: =SUMIF(BC!#REF!,R28,BC!$E$6:$E$120) ->  | T28: P | U28: PARTICIPACIÓN TRABAJADORES POR PAGAR DEL EJERCICIO | AJ28: 2010705 | AK28: =-SUMIF(BC!#REF!,AJ28,BC!$E$6:$E$120) ->  | AL28: P
A29: INVENTARIOS DE PROD. TERM. Y MERCAD. EN ALMACÉN - COMPRADO A DE TERCEROS | R29: 1010306 | S29: =SUMIF(BC!#REF!,R29,BC!$E$6:$E$120) ->  | T29: P | U29: DIVIDENDOS POR PAGAR | AJ29: 2010706 | AK29: =-SUMIF(BC!#REF!,AJ29,BC!$E$6:$E$120) ->  | AL29: P
A30: MERCADERÍAS EN TRÁNSITO | R30: 1010307 | S30: =SUMIF(BC!#REF!,R30,BC!$E$6:$E$120) ->  | T30: P | U30: CUENTAS POR PAGAR DIVERSAS/RELACIONADAS | AJ30: 20108 | AK30: =-SUMIF(BC!#REF!,AJ30,BC!$E$6:$E$120) ->  | AL30: P
A31: OBRAS EN CONSTRUCCION | M31: P | R31: 1010308 | S31: =SUMIF(BC!#REF!,R31,BC!$E$6:$E$120) ->  | T31: P | U31: OTROS PASIVOS FINANCIEROS | AJ31: 20109 | AK31: =-SUMIF(BC!#REF!,AJ31,BC!$E$6:$E$120) ->  | AL31: P
A32: OBRAS TERMINADAS | M32: P | R32: 1010309 | S32: =SUMIF(BC!#REF!,R32,BC!$E$6:$E$120) ->  | T32: P | U32: ANTICIPOS DE CLIENTES | AJ32: 20110 | AK32: =-SUMIF(BC!#REF!,AJ32,BC!$E$6:$E$120) ->  | AL32: P
A33: MATERIALES O BIENES PARA LA CONSTRUCCION | R33: 1010310 | S33: =SUMIF(BC!#REF!,R33,BC!$E$6:$E$120) ->  | T33: P | U33: PASIVOS DIRECTAMENTE ASOCIADOS CON LOS ACTIVOS NO CORRIENTES Y OPERACIONES DISCONTINUADAS | AJ33: 20111 | AK33: =-SUMIF(BC!#REF!,AJ33,BC!$E$6:$E$120) ->  | AL33: P
A34: INVENTARIOS REPUESTOS, HERRAMIENTAS Y ACCESORIOS | R34: 1010311 | S34: =SUMIF(BC!#REF!,R34,BC!$E$6:$E$120) ->  | T34: P | U34: PORCION CORRIENTE DE PROVISIONES POR BENEFICIOS A EMPLEADOS | AJ34: 20112 | AK34: =+SUM(AK35:AK36) -> 
A35: OTROS INVENTARIOS | R35: 1010312 | S35: =SUMIF(BC!#REF!,R35,BC!$E$6:$E$120) ->  | T35: N | U35: JUBILACION PATRONAL | AJ35: 2011201 | AK35: =-SUMIF(BC!#REF!,AJ35,BC!$E$6:$E$120) ->  | AL35: P
A36: (-) PROVISIÓN POR VALOR NETO DE REALIZACIÓN Y OTRAS PERDIDAS EN INVENTARIO | R36: 1010313 | S36: =SUMIF(BC!#REF!,R36,BC!$E$6:$E$120) ->  | U36: OTROS BENEFICIOS A LARGO PLAZO PARA LOS EMPLEADOS | AJ36: 2011202 | AK36: =-SUMIF(BC!#REF!,AJ36,BC!$E$6:$E$120) ->  | AL36: P
A37: SERVICIOS Y OTROS PAGOS ANTICIPADOS | R37: 10104 | S37: =+SUM(S38:S41) ->  | T37: | | U37: OTROS PASIVOS CORRIENTES | AJ37: 20113 | AK37: =-SUMIF(BC!#REF!,AJ37,BC!$E$6:$E$120) ->  | AL37: P
A38: SEGUROS PAGADOS POR ANTICIPADO | R38: 1010401 | S38: =SUMIF(BC!#REF!,R38,BC!$E$6:$E$120) ->  | T38: P
A39: ARRIENDOS PAGADOS POR ANTICIPADO | R39: 1010402 | S39: =SUMIF(BC!#REF!,R39,BC!$E$6:$E$120) ->  | T39: P | U39: PASIVO NO CORRIENTE | AJ39: 202 | AK39: =(AK41+AK42+AK45+AK48+SUM(AK51:AK53)+AK56+AK57+AK60) -> 
A40: ANTICIPOS A PROVEEDORES | R40: 1010403 | S40: =SUMIF(BC!#REF!,R40,BC!$E$6:$E$120) ->  | T40: P
A41: OTROS ANTICIPOS ENTREGADOS | R41: 1010404 | S41: =SUMIF(BC!#REF!,R41,BC!$E$6:$E$120) ->  | U41: PASIVOS POR CONTRATOS DE ARRENDAMIENTO FINANCIERO | AJ41: 20201 | AK41: =-SUMIF(BC!#REF!,AJ41,BC!$E$6:$E$120) ->  | AL41: P
A42: ACTIVOS POR IMPUESTOS CORRIENTES | R42: 10105 | S42: =+SUM(S43:S45) ->  | T42: P | U42: CUENTAS Y DOCUMENTOS POR PAGAR | AJ42: 20202 | AK42: =+SUM(AK43:AK44) -> 
A43: CRÉDITO TRIBUTARIO A FAVOR DE LA EMPRESA (IVA) | R43: 1010501 | S43: =SUMIF(BC!#REF!,R43,BC!$E$6:$E$120) ->  | T43: P | U43: LOCALES | AJ43: 2020201 | AK43: =-SUMIF(BC!#REF!,AJ43,BC!$E$6:$E$120) ->  | AL43: P
A44: CRÉDITO TRIBUTARIO A FAVOR DE LA EMPRESA ( I. R.) | R44: 1010502 | S44: =SUMIF(BC!#REF!,R44,BC!$E$6:$E$120) ->  | T44: P | U44: DEL EXTERIOR | AJ44: 2020202 | AK44: =-SUMIF(BC!#REF!,AJ44,BC!$E$6:$E$120) ->  | AL44: P
A45: ANTICIPO DE IMPUESTO A LA RENTA | R45: 1010503 | S45: =SUMIF(BC!#REF!,R45,BC!$E$6:$E$120) ->  | T45: P | U45: OBLIGACIONES CON INSTITUCIONES FINANCIERAS | AJ45: 20203 | AK45: =+SUM(AK46:AK47) -> 
A46: ACTIVOS NO CORRIENTES MANTENIDOS PARA LA VENTA Y OPERACIONES DISCONTINUADAS | R46: 10106 | S46: =SUMIF(BC!#REF!,R46,BC!$E$6:$E$120) ->  | T46: P | U46: LOCALES | AJ46: 2020301 | AK46: =-SUMIF(BC!#REF!,AJ46,BC!$E$6:$E$120) ->  | AL46: P
A47: CONSTRUCCIONES EN PROCESO (NIC 11 Y SECC.23 PYMES) | R47: 10107 | S47: =SUMIF(BC!#REF!,R47,BC!$E$6:$E$120) ->  | T47: P | U47: DEL EXTERIOR | AJ47: 2020302 | AK47: =-SUMIF(BC!#REF!,AJ47,BC!$E$6:$E$120) ->  | AL47: P
A48: OTROS ACTIVOS CORRIENTES | R48: 10108 | S48: =SUMIF(BC!#REF!,R48,BC!$E$6:$E$120) ->  | U48: CUENTAS POR PAGAR DIVERSAS/RELACIONADAS | AJ48: 20204 | AK48: =+SUM(AK49:AK50) -> 
S49: =SUMIF(BC!#REF!,R49,BC!$E$6:$E$120) ->  | U49: LOCALES | AJ49: 2020401 | AK49: =-SUMIF(BC!#REF!,AJ49,BC!$E$6:$E$120) ->  | AL49: P
A50: ACTIVO NO CORRIENTE | R50: 102 | S50: =+S52+S71+S77+S85+S92+S94+S99 ->  | U50: DEL EXTERIOR | AJ50: 2020402 | AK50: =-SUMIF(BC!#REF!,AJ50,BC!$E$6:$E$120) ->  | AL50: P
U51: OBLIGACIONES EMITIDAS | AJ51: 20205 | AK51: =-SUMIF(BC!#REF!,AJ51,BC!$E$6:$E$120) ->  | AL51: P
A52: PROPIEDADES, PLANTA Y EQUIPO | R52: 10201 | S52: =+SUM(S53:S66) ->  | T52: P | U52: ANTICIPOS DE CLIENTES | AJ52: 20206 | AK52: =-SUMIF(BC!#REF!,AJ52,BC!$E$6:$E$120) ->  | AL52: P
A53: TERRENOS | R53: 1020101 | S53: =SUMIF(BC!#REF!,R53,BC!$E$6:$E$120) ->  | T53: P | U53: PROVISIONES POR BENEFICIOS A EMPLEADOS | AJ53: 20207 | AK53: =+SUM(AK54:AK55) -> 
A54: EDIFICIOS | R54: 1020102 | S54: =SUMIF(BC!#REF!,R54,BC!$E$6:$E$120) ->  | T54: P | U54: JUBILACION PATRONAL | AJ54: 2020701 | AK54: =-SUMIF(BC!#REF!,AJ54,BC!$E$6:$E$120) ->  | AL54: P
A55: CONTRUCCIONES EN CURSO | R55: 1020103 | S55: =SUMIF(BC!#REF!,R55,BC!$E$6:$E$120) ->  | T55: P | U55: OTROS BENEFICIOS NO CORRIENTES PARA LOS EMPLEADOS | AJ55: 2020702 | AK55: =-SUMIF(BC!#REF!,AJ55,BC!$E$6:$E$120) ->  | AL55: P
A56: INSTALACIONES | R56: 1020104 | S56: =SUMIF(BC!#REF!,R56,BC!$E$6:$E$120) ->  | T56: P | U56: OTRAS PROVISIONES | AJ56: 20208 | AK56: =-SUMIF(BC!#REF!,AJ56,BC!$E$6:$E$120) ->  | AL56: P
A57: MUEBLES Y ENSERES | R57: 1020105 | S57: =SUMIF(BC!#REF!,R57,BC!$E$6:$E$120) ->  | T57: P | U57: PASIVO DIFERIDO | AJ57: 20209 | AK57: =+SUM(AK58:AK59) -> 
A58: MAQUINARIA Y EQUIPO | R58: 1020106 | S58: =SUMIF(BC!#REF!,R58,BC!$E$6:$E$120) ->  | T58: P | U58: INGRESOS DIFERIDOS | AJ58: 2020901 | AK58: =-SUMIF(BC!#REF!,AJ58,BC!$E$6:$E$120) ->  | AL58: P
A59: NAVES, AERONAVES, BARCAZAS Y SIMILARES | R59: 1020107 | S59: =SUMIF(BC!#REF!,R59,BC!$E$6:$E$120) ->  | T59: P | U59: PASIVOS POR IMPUESTOS DIFERIDOS | AJ59: 2020902 | AK59: =-SUMIF(BC!#REF!,AJ59,BC!$E$6:$E$120) ->  | AL59: P
A60: EQUIPO DE COMPUTACIÓN | R60: 1020108 | S60: =SUMIF(BC!#REF!,R60,BC!$E$6:$E$120) ->  | T60: P | U60: OTROS PASIVOS NO CORRIENTES | AJ60: 20210 | AK60: =-SUMIF(BC!#REF!,AJ60,BC!$E$6:$E$120) ->  | AL60: P
A61: VEHÍCULOS, EQUIPOS DE TRANSPORTE Y EQUIPO CAMINERO MÓVIL | R61: 1020109 | S61: =SUMIF(BC!#REF!,R61,BC!$E$6:$E$120) ->  | T61: P
A62: OTROS PROPIEDADES, PLANTA Y EQUIPO | R62: 1020110 | S62: =SUMIF(BC!#REF!,R62,BC!$E$6:$E$120) ->  | T62: P
A63: REPUESTOS Y HERRAMIENTAS | R63: 1020111 | S63: =SUMIF(BC!#REF!,R63,BC!$E$6:$E$120) ->  | T63: N | U63: PATRIMONIO NETO | AJ63: 3 | AK63: =+AK65+AK91 -> 
A64: (-) DEPRECIACIÓN ACUMULADA PROPIEDADES, PLANTA Y EQUIPO | R64: 1020112 | S64: =SUMIF(BC!#REF!,R64,BC!$E$6:$E$120) ->  | T64: N
A65: (-) DETERIORO ACUMULADO DE PROPIEDADES, PLANTA Y EQUIPO | R65: 1020113 | S65: =SUMIF(BC!#REF!,R65,BC!$E$6:$E$120) ->  | U65: PATRIMONIO ATRIBUIBLE A LOS PROPIETARIOS DE LA CONTROLADORA | AJ65: 30 | AK65: =+AK66+SUM(AK69:AK71)+AK74+AK79+AK87 -> 
A66: ACTIVOS DE EXPLORACION Y EXPLOTACION | R66: 1020114 | S66: =+SUM(S67:S69) ->  | T66: P | U66: CAPITAL | AJ66: 301 | AK66: =+SUM(AK67:AK68) -> 
A67: ACTIVOS DE EXPLORACION Y EXPLOTACION | R67: 102011401 | S67: =SUMIF(BC!#REF!,R67,BC!$E$6:$E$120) ->  | T67: N | U67: CAPITAL SUSCRITO o ASIGNADO | AJ67: 30101 | AK67: =-SUMIF(BC!#REF!,AJ67,BC!$E$6:$E$120) ->  | AL67: P
A68: (-) AMORTIZACION ACUMULADA DE ACTIVOS DE EXPLORACIÓN Y EXPLOTACIÓN | R68: 102011402 | S68: =SUMIF(BC!#REF!,R68,BC!$E$6:$E$120) ->  | T68: N | U68: (-) CAPITAL SUSCRITO NO PAGADO, ACCIONES EN TESORERÍA | AJ68: 30102 | AK68: =-SUMIF(BC!#REF!,AJ68,BC!$E$6:$E$120) ->  | AL68: N
A69: (-) DETERIORO ACUMULADO DE ACTIVOS DE EXPLORACIÓN Y EXPLOTACIÓN | R69: 102011403 | S69: =SUMIF(BC!#REF!,R69,BC!$E$6:$E$120) ->  | U69: APORTES DE SOCIOS O ACCIONISTAS PARA FUTURA CAPITALIZACIÓN | AJ69: 302 | AK69: =-SUMIF(BC!#REF!,AJ69,BC!$E$6:$E$120) ->  | AL69: P
U70: PRIMA POR EMISIÓN PRIMARIA DE ACCIONES | AJ70: 303 | AK70: =-SUMIF(BC!#REF!,AJ70,BC!$E$6:$E$120) ->  | AL70: P
A71: PROPIEDADES DE INVERSIÓN | R71: 10202 | S71: =+SUM(S72:S75) ->  | T71: P | U71: RESERVAS | AJ71: 304 | AK71: =+SUM(AK72:AK73) -> 
A72: TERRENOS | R72: 1020201 | S72: =SUMIF(BC!#REF!,R72,BC!$E$6:$E$120) ->  | T72: P | U72: RESERVA LEGAL | AJ72: 30401 | AK72: =-SUMIF(BC!#REF!,AJ72,BC!$E$6:$E$120) ->  | AL72: P
A73: EDIFICIOS | R73: 1020202 | S73: =SUMIF(BC!#REF!,R73,BC!$E$6:$E$120) ->  | T73: N | U73: RESERVAS FACULTATIVA Y ESTATUTARIA | AJ73: 30402 | AK73: =-SUMIF(BC!#REF!,AJ73,BC!$E$6:$E$120) ->  | AL73: P
A74: (-) DEPRECIACION ACUMULADA DE PROPIEDADES DE INVERSIÓN | R74: 1020203 | S74: =SUMIF(BC!#REF!,R74,BC!$E$6:$E$120) ->  | T74: N | U74: OTROS RESULTADOS INTEGRALES | AJ74: 305 | AK74: =+SUM(AK75:AK78) -> 
A75: (-) DETERIORO ACUMULADO DE PROPIEDADES DE INVERSIÓN | R75: 1020204 | S75: =SUMIF(BC!#REF!,R75,BC!$E$6:$E$120) ->  | U75: SUPERAVIT DE ACTIVOS FINANCIEROS DISPONIBLES PARA LA VENTA | AJ75: 30501 | AK75: =-SUMIF(BC!#REF!,AJ75,BC!$E$6:$E$120) ->  | AL75: P
U76: SUPERAVIT POR REVALUACIÓN DE PROPIEDADES, PLANTA Y EQUIPO | AJ76: 30502 | AK76: =-SUMIF(BC!#REF!,AJ76,BC!$E$6:$E$120) ->  | AL76: P
A77: ACTIVOS BIOLOGICOS | R77: 10203 | S77: =+SUM(S78:S83) ->  | T77: P | U77: SUPERAVIT POR REVALUACION DE ACTIVOS INTANGIBLES | AJ77: 30503 | AK77: =-SUMIF(BC!#REF!,AJ77,BC!$E$6:$E$120) ->  | AL77: P
A78: ANIMALES VIVOS EN CRECIMIENTO | R78: 1020301 | S78: =SUMIF(BC!#REF!,R78,BC!$E$6:$E$120) ->  | T78: P | U78: OTROS SUPERAVIT POR REVALUACION | AJ78: 30504 | AK78: =-SUMIF(BC!#REF!,AJ78,BC!$E$6:$E$120) ->  | AL78: P
A79: ANIMALES VIVOS EN PRODUCCION | R79: 1020302 | S79: =SUMIF(BC!#REF!,R79,BC!$E$6:$E$120) ->  | T79: P | U79: RESULTADOS ACUMULADOS | AJ79: 306 | AK79: =+SUM(AK80:AK86) -> 
A80: PLANTAS EN CRECIMIENTO | R80: 1020303 | S80: =SUMIF(BC!#REF!,R80,BC!$E$6:$E$120) ->  | T80: P | U80: GANANCIAS ACUMULADAS | AJ80: 30601 | AK80: =-SUMIF(BC!#REF!,AJ80,BC!$E$6:$E$120)+8382.05 ->  | AL80: P
A81: PLANTAS EN PRODUCCION | R81: 1020304 | S81: =SUMIF(BC!#REF!,R81,BC!$E$6:$E$120) ->  | T81: N | U81: (-) PÉRDIDAS ACUMULADAS | AJ81: 30602 | AK81: =-SUMIF(BC!#REF!,AJ81,BC!$E$6:$E$120) ->  | AL81: N
A82: (-) DEPRECIACION ACUMULADA DE ACTIVOS BIOLÓGICOS | R82: 1020305 | S82: =SUMIF(BC!#REF!,R82,BC!$E$6:$E$120) ->  | T82: N | U82: RESULTADOS ACUMULADOS PROVENIENTES DE LA ADOPCION POR PRIMERA VEZ DE LAS NIIF | AJ82: 30603 | AK82: =-SUMIF(BC!#REF!,AJ82,BC!$E$6:$E$120) ->  | AL82: D
A83: (-) DETERIORO ACUMULADO DE ACTIVOS BIOLOGÍCOS | R83: 1020306 | S83: =SUMIF(BC!#REF!,R83,BC!$E$6:$E$120) ->  | U83: RESERVA DE CAPITAL | AJ83: 30604 | AK83: =-SUMIF(BC!#REF!,AJ83,BC!$E$6:$E$120) ->  | AL83: D
U84: RESERVA POR DONACIONES | AJ84: 30605 | AK84: =-SUMIF(BC!#REF!,AJ84,BC!$E$6:$E$120) ->  | AL84: P
A85: ACTIVO INTANGIBLE | R85: 10204 | S85: =+SUM(S86:S91) ->  | T85: P | U85: RESERVA POR VALUACIÓN | AJ85: 30606 | AK85: =-SUMIF(BC!#REF!,AJ85,BC!$E$6:$E$120) ->  | AL85: D
A86: PLUSVALÍAS | R86: 1020401 | S86: =SUMIF(BC!#REF!,R86,BC!$E$6:$E$120) ->  | T86: P | U86: SUPERÁVIT POR REVALUACIÓN DE INVERSIONES | AJ86: 30607 | AK86: =-SUMIF(BC!#REF!,AJ86,BC!$E$6:$E$120) ->  | AL86: D
A87: MARCAS, PATENTES, DERECHOS DE LLAVE , CUOTAS PATRIMONIALES Y OTROS SIMILARES | R87: 1020402 | S87: =SUMIF(BC!#REF!,R87,BC!$E$6:$E$120) ->  | T87: P | U87: RESULTADOS DEL EJERCICIO | AJ87: 307 | AK87: =+SUM(AK88:AK89) -> 
A88: ACTIVOS DE EXPLORACION Y EXPLOTACION | R88: 1020403 | S88: =SUMIF(BC!#REF!,R88,BC!$E$6:$E$120) ->  | T88: N | U88: GANANCIA NETA DEL PERIODO | AJ88: 30701 | AK88: =+#REF!-8382.05 ->  | AL88: P
A89: (-) AMORTIZACIÓN ACUMULADA DE ACTIVOS INTANGIBLE | R89: 1020404 | S89: =SUMIF(BC!#REF!,R89,BC!$E$6:$E$120) ->  | T89: N | U89: (-) PÉRDIDA NETA DEL PERIODO | AJ89: 30702 | AK89: =-SUMIF(BC!#REF!,AJ89,BC!$E$6:$E$120) ->  | AL89: N
A90: (-) DETERIORO ACUMULADO DE ACTIVO INTANGIBLE | R90: 1020405 | S90: =SUMIF(BC!#REF!,R90,BC!$E$6:$E$120) ->  | T90: P
A91: OTROS INTANGIBLES | R91: 1020406 | S91: =SUMIF(BC!#REF!,R91,BC!$E$6:$E$120) ->  | T91: P | U91: PARTICIPACION NO CONTROLADORAS | AJ91: 31 | AK91: =-SUMIF(BC!#REF!,AJ91,BC!$E$6:$E$120) ->  | AL91: P
A92: ACTIVOS POR IMPUESTOS DIFERIDOS | R92: 10205 | S92: =SUMIF(BC!#REF!,R92,BC!$E$6:$E$120) -> 
A94: ACTIVOS FINANCIEROS NO CORRIENTES | R94: 10206 | S94: =+SUM(S95:S98) ->  | T94: P
A95: ACTIVOS FINANCIEROS MANTENIDOS HASTA EL VENCIMIENTO | R95: 1020601 | S95: =SUMIF(BC!#REF!,R95,BC!$E$6:$E$120) ->  | T95: N
A96: (-) PROVISION POR DETERIORO DE ACTIVOS FINANCIEROS MANTENIDOS HASTA EL VENCIMIENTO | R96: 1020602 | S96: =SUMIF(BC!#REF!,R96,BC!$E$6:$E$120) ->  | T96: P
A97: DOCUMENTOS Y CUENTAS POR COBRAR | R97: 1020603 | S97: =SUMIF(BC!#REF!,R97,BC!$E$6:$E$120) ->  | T97: N
A98: (-) PROVISIÓN CUENTAS INCOBRABLES DE ACTIVOS FINANCIEROS NO CORRIENTES | R98: 1020604 | S98: =SUMIF(BC!#REF!,R98,BC!$E$6:$E$120) -> 
A99: OTROS ACTIVOS NO CORRIENTES | R99: 10207 | S99: =+SUM(S100:S105) -> 0 | T99: P
A100: INVERSIONES SUBSIDIARIAS | R100: 1020701 | T100: P
A101: INVERSIONES ASOCIADAS | R101: 1020702 | T101: P
A102: INVERSIONES NEGOCIOS CONJUNTOS | R102: 1020703 | T102: P
A103: OTRAS INVERSIONES | R103: 1020704 | T103: N
A104: (-) PROVISIÓN VALUACIÓN DE INVERSIONES | R104: 1020705 | T104: P
A105: OTROS ACTIVOS NO CORRIENTES | R105: 1020706
S106: =+AK65+AK8-S8 -> 
A108: ACTIVOS CONTINGENTES (Informativo) | U108: PASIVOS CONTINGENTES (Informativo)
A109: DECLARO QUE LOS DATOS QUE CONSTAN EN ESTOS ESTADOS FINANCIEROS SON EXACTOS Y VERDADEROS.
A110: LOS ESTADOS FINANCIEROS ESTÁN ELABORADOS BAJO NORMAS INTERNACIONALES DE INFORMACIÓN FINANCIERA (NIC 1, PÁRRAFO 16)
E114: __________________________________________ | Z114: __________________________________________
E115: FIRMA REPRESENTANTE LEGAL | Z115: FIRMA CONTADOR
E116: NOMBRE: | Z116: NOMBRE:
E117: CI / RUC:

Sheet PREPARACION
A1: codi | B1: nombre | C1: grupo
A2: 4 | B2: INGRESOS | C2: TRUE
A3: 41 | B3: INGRESOS POR ACTIVIDADES | C3: TRUE
A4: 411 | B4: INGRESOS POR INVENTARIOS | C4: TRUE
A5: 41101 | B5: INVENTARIO DE PRODUCTOS | C5: TRUE | E5: =+SUM(D6:D10) -> -2641373.54
A6: 4110101 | B6: VENTAS GRAVADAS 12% LOCALES (401) | C6: FALSE | D6: =+SUMIF(BC!A:A,PREPARACION!A6,BC!E:E) -> -2640745.84
A7: 4110102 | B7: VENTAS GRAVADAS 0% LOCALES (403) | C7: FALSE | D7: =+SUMIF(BC!A:A,PREPARACION!A7,BC!E:E) -> -3200
A8: 4110103 | B8: VENTAS GRAVADAS 0% EXTERIOR (407) | C8: FALSE | D8: =+SUMIF(BC!A:A,PREPARACION!A8,BC!E:E) -> 0
A9: 4110111 | B9: DEVOLUCION EN VENTAS (401) | C9: FALSE | D9: =+SUMIF(BC!A:A,PREPARACION!A9,BC!E:E) -> 0
A10: 4110112 | B10: ( - ) DESCUENTOS EN VENTAS (401) | C10: FALSE | D10: =+SUMIF(BC!A:A,PREPARACION!A10,BC!E:E) -> 2572.3
A11: 41102 | B11: OTROS INGRESOS | C11: TRUE | E11: =+SUM(D12:D22) -> -6328.76
A12: 4110201 | B12: INTERESES BANCARIOS | C12: FALSE | D12: =+SUMIF(BC!A:A,PREPARACION!A12,BC!E:E) -> 0
A13: 4110202 | B13: GANANCIA EN CAMBIO | C13: FALSE | D13: =+SUMIF(BC!A:A,PREPARACION!A13,BC!E:E) -> -867.3
A14: 4110203 | B14: PERDIDA EN CAMBIO | C14: FALSE | D14: =+SUMIF(BC!A:A,PREPARACION!A14,BC!E:E) -> 0
A15: 4110204 | B15: OTROS INGRESOS | C15: FALSE | D15: =+SUMIF(BC!A:A,PREPARACION!A15,BC!E:E) -> -5406.56
A16: 4110205 | B16: PERDIDA EN VENTA ACTIVOS FIJOS | C16: FALSE | D16: =+SUMIF(BC!A:A,PREPARACION!A16,BC!E:E) -> 0
A17: 4110206 | B17: OTROS INGRESOS FINANCIEROS | C17: FALSE | D17: =+SUMIF(BC!A:A,PREPARACION!A17,BC!E:E) -> -54.9
A18: 4110207 | C18: FALSE | D18: =+SUMIF(BC!A:A,PREPARACION!A18,BC!E:E) -> 0
A19: 4110209 | C19: FALSE | D19: =+SUMIF(BC!A:A,PREPARACION!A19,BC!E:E) -> 0
A20: 4110210 | B20: INGRESO POR REEMBOLSOS | C20: FALSE | D20: =+SUMIF(BC!A:A,PREPARACION!A20,BC!E:E) -> 0
A21: 4110211 | B21: RETENCION JUDICIAL | C21: FALSE | D21: =+SUMIF(BC!A:A,PREPARACION!A21,BC!E:E) -> 0
A22: 4110220 | B22: MULTAS Y DESCUENTOS A EMPLEADOS | C22: FALSE | D22: =+SUMIF(BC!A:A,PREPARACION!A22,BC!E:E) -> 0
A23: 5 | B23: EGRESOS | C23: TRUE | E23: =+SUMIF(BC!A:A,PREPARACION!A23,BC!E:E) -> 0
A24: 51 | B24: COSTO DE VENTAS | C24: TRUE | E24: =+SUMIF(BC!A:A,PREPARACION!A24,BC!E:E) -> 0
A25: 511 | B25: COSTO DE VENTAS | C25: TRUE | E25: =+SUMIF(BC!A:A,PREPARACION!A25,BC!E:E) -> 0
A26: 51101 | B26: COSTO DE VENTAS | C26: TRUE | E26: =+SUM(D27:D28) -> 1680198.5
A27: 5110101 | B27: COSTO DE VENTAS | C27: FALSE | D27: =+SUMIF(BC!A:A,PREPARACION!A27,BC!E:E) -> 1680198.5
A28: 5110102 | B28: COSTO DE VENTAS | C28: FALSE | D28: =+SUMIF(BC!A:A,PREPARACION!A28,BC!E:E) -> 0
A29: 512 | B29: INVENTARIOS | C29: TRUE | E29: =+SUMIF(BC!A:A,PREPARACION!A29,BC!E:E) -> 0
A30: 51201 | B30: INVENTARIO INICIAL | C30: TRUE | E30: =+SUMIF(BC!A:A,PREPARACION!A30,BC!E:E) -> 0
A31: 5120101 | B31: INVENTARIO INICIAL MERCADERIAS | C31: FALSE | D31: =+SUMIF(BC!A:A,PREPARACION!A31,BC!E:E) -> 0
A32: 51202 | B32: INVENTARIO FINAL | C32: TRUE | E32: =+SUMIF(BC!A:A,PREPARACION!A32,BC!E:E) -> 0
A33: 5120201 | B33: INVENTARIO FINAL MERCADERIAS | C33: FALSE | D33: =+SUMIF(BC!A:A,PREPARACION!A33,BC!E:E) -> 0
A34: 513 | B34: COMPRAS | C34: TRUE | E34: =+SUMIF(BC!A:A,PREPARACION!A34,BC!E:E) -> 0
A35: 51301 | B35: COMPRAS LOCALES | C35: TRUE | E35: =+SUMIF(BC!A:A,PREPARACION!A35,BC!E:E) -> 0
A36: 5130101 | B36: COMPRAS | C36: FALSE | D36: =+SUMIF(BC!A:A,PREPARACION!A36,BC!E:E) -> 0
A37: 5130103 | B37: DEVOLUCIONES EN COMPRAS | C37: FALSE | D37: =+SUMIF(BC!A:A,PREPARACION!A37,BC!E:E) -> 0
A38: 5130104 | B38: DESCUENTO EN COMPRAS | C38: FALSE | D38: =+SUMIF(BC!A:A,PREPARACION!A38,BC!E:E) -> 0
A39: 51302 | B39: COMPRAS EXTERNAS | C39: TRUE | E39: =+SUMIF(BC!A:A,PREPARACION!A39,BC!E:E) -> 0
A40: 5130202 | B40: IMPORTACIONES | C40: FALSE | D40: =+SUMIF(BC!A:A,PREPARACION!A40,BC!E:E) -> 0
A41: 514 | B41: MANO DE OBRA | C41: TRUE | E41: =+SUMIF(BC!A:A,PREPARACION!A41,BC!E:E) -> 0
A42: 51401 | B42: MANO OBRA DIRECTA | C42: TRUE | E42: =+SUM(D43:D46) -> 120403.33
A43: 5140101 | B43: MOD-SALARIOS PRODUCCION | C43: FALSE | D43: =+SUMIF(BC!A:A,PREPARACION!A43,BC!E:E) -> 118110
A44: 5140102 | B44: MOD-HORAS EXTRAS PRODUCCION | C44: FALSE | D44: =+SUMIF(BC!A:A,PREPARACION!A44,BC!E:E) -> 2293.33
A45: 5140103 | C45: FALSE | D45: =+SUMIF(BC!A:A,PREPARACION!A45,BC!E:E) -> 0
A46: 5140104 | B46: MOD-BONIFICACIONES,INDENMINIZACIONES P | C46: FALSE | D46: =+SUMIF(BC!A:A,PREPARACION!A46,BC!E:E) -> 0
A47: 51402 | B47: BENEFICIOS SOCIALES | C47: TRUE | E47: =+SUM(D48:D55) -> 55977.61
A48: 5140201 | B48: MOD-DECIMO TERCER SUELDO PRODUCCION | C48: FALSE | D48: =+SUMIF(BC!A:A,PREPARACION!A48,BC!E:E) -> 10033.65
A49: 5140202 | B49: MOD-DECIMO CUARTO SUELDO PRODUCCION | C49: FALSE | D49: =+SUMIF(BC!A:A,PREPARACION!A49,BC!E:E) -> 2094.5
A50: 5140203 | B50: MOD-VACACIONES PRODUCCION | C50: FALSE | D50: =+SUMIF(BC!A:A,PREPARACION!A50,BC!E:E) -> 3049.91
A51: 5140205 | B51: MOD-APORTE PATRONAL PRODUCCION | C51: FALSE | D51: =+SUMIF(BC!A:A,PREPARACION!A51,BC!E:E) -> 14629.1
A52: 5140206 | B52: MOD-FONDO DE RESERVA PRODUCCION | C52: FALSE | D52: =+SUMIF(BC!A:A,PREPARACION!A52,BC!E:E) -> 9829.79
A53: 5140207 | B53: MOD-REFRIGERIOS PRODUCCION | C53: FALSE | D53: =+SUMIF(BC!A:A,PREPARACION!A53,BC!E:E) -> 1752.5
A54: 5140208 | B54: MOD-JUBILACION PATRONAL-DESAHUCIO | C54: FALSE | D54: =+SUMIF(BC!A:A,PREPARACION!A54,BC!E:E) -> 14588.16
A55: 5140209 | B55: MOD-DESAHUCIO | C55: FALSE | D55: =+SUMIF(BC!A:A,PREPARACION!A55,BC!E:E) -> 0
A56: 51403 | B56: ( - ) PROVISION M O D | C56: TRUE | E56: =+SUMIF(BC!A:A,PREPARACION!A56,BC!E:E) -> 0
A57: 5140301 | B57: ( - ) PROVISION M O D | C57: FALSE | D57: =+SUMIF(BC!A:A,PREPARACION!A57,BC!E:E) -> -176380.94
A58: 515 | B58: GASTOS DE FABRICACION | C58: TRUE | E58: =+SUMIF(BC!A:A,PREPARACION!A58,BC!E:E) -> 0
A59: 51501 | B59: GASTOS FABRICACION | C59: TRUE | E59: =+SUM(D60:D81) -> -7.566995919e-10
A60: 5150102 | B60: CIF-MANO DE OBRA INDIRECTA | C60: FALSE | D60: =+SUMIF(BC!A:A,PREPARACION!A60,BC!E:E) -> 5403.63
A61: 5150103 | B61: CIF-TRABAJOS OCACIONALES | C61: FALSE | D61: =+SUMIF(BC!A:A,PREPARACION!A61,BC!E:E) -> 25357.22
A62: 5150105 | B62: CIF-UNIFORMES PERSONAL PRODUCC | C62: FALSE | D62: =+SUMIF(BC!A:A,PREPARACION!A62,BC!E:E) -> 3107.69
A63: 5150106 | B63: CIF-REPUESTOS,HERRAMIENTAS,PIE | C63: FALSE | D63: =+SUMIF(BC!A:A,PREPARACION!A63,BC!E:E) -> 46913.22
A64: 5150107 | B64: CIF-FLETES Y TRANSPORTES | C64: FALSE | D64: =+SUMIF(BC!A:A,PREPARACION!A64,BC!E:E) -> 29961.83
A65: 5150108 | B65: CIF-LUZ ELECTRICA | C65: FALSE | D65: =+SUMIF(BC!A:A,PREPARACION!A65,BC!E:E) -> 32913.56
A66: 5150109 | B66: CIF-AGUA POTABLE | C66: FALSE | D66: =+SUMIF(BC!A:A,PREPARACION!A66,BC!E:E) -> 351.29
A67: 5150110 | B67: CIF-REPARACION Y MANTENIMIENTO | C67: FALSE | D67: =+SUMIF(BC!A:A,PREPARACION!A67,BC!E:E) -> 8584.85
A68: 5150111 | B68: CIF-POLIZA SEGUROS MAQUINARIA | C68: FALSE | D68: =+SUMIF(BC!A:A,PREPARACION!A68,BC!E:E) -> 17194.79
A69: 5150112 | B69: CIF-MEJORAS INSTALACIONES Y AD | C69: FALSE | D69: =+SUMIF(BC!A:A,PREPARACION!A69,BC!E:E) -> 18387.57
A70: 5150114 | B70: CIF-MATERIALES,SUMINISTROS,VAR | C70: FALSE | D70: =+SUMIF(BC!A:A,PREPARACION!A70,BC!E:E) -> 17556.13
A71: 5150115 | B71: CIF-DEPRECIACIONES | C71: FALSE | D71: =+SUMIF(BC!A:A,PREPARACION!A71,BC!E:E) -> 55020
A72: 5150116 | B72: CIF-OTROS GASTOS DE FABRICACIO | C72: FALSE | D72: =+SUMIF(BC!A:A,PREPARACION!A72,BC!E:E) -> 300.05
A73: 5150118 | B73: CIF-OTROS GASTOS ADMINISTRATIV | C73: FALSE | D73: =+SUMIF(BC!A:A,PREPARACION!A73,BC!E:E) -> 320.81
A74: 5150119 | B74: CIF-TELEFONO, INTERNET | C74: FALSE | D74: =+SUMIF(BC!A:A,PREPARACION!A74,BC!E:E) -> 11065.3
A75: 5150121 | B75: CIF-GASTOS LEGALES,NOTARIAS | C75: FALSE | D75: =+SUMIF(BC!A:A,PREPARACION!A75,BC!E:E) -> 571.23
A76: 5150125 | B76: CIF-PUBLICIDAD Y PROPAGANDA | C76: FALSE | D76: =+SUMIF(BC!A:A,PREPARACION!A76,BC!E:E) -> 4540.69
A77: 5150126 | B77: CIF-PERDIDA EN CAMBIO | C77: FALSE | D77: =+SUMIF(BC!A:A,PREPARACION!A77,BC!E:E) -> 4449.82
A78: 5150127 | B78: CIF-GASTOS NO DEDUCIBLES | C78: FALSE | D78: =+SUMIF(BC!A:A,PREPARACION!A78,BC!E:E) -> 250.35
A79: 5150190 | B79: ( - ) PROVISION C I F | C79: FALSE | D79: =+SUMIF(BC!A:A,PREPARACION!A79,BC!E:E) -> -282250.03
D80: =+SUMIF(BC!A:A,PREPARACION!A80,BC!E:E) -> 0
D81: =+SUMIF(BC!A:A,PREPARACION!A81,BC!E:E) -> 0

Sheet ESTADO DE COSTOS
B1: Dashboard
B3: =+PORTADA!B1 -> HERES GESTION EMPRESARIAL | G3: =+B3 -> HERES GESTION EMPRESARIAL | N3: =+G3 -> HERES GESTION EMPRESARIAL
B4: BASE DE PREPARACION | G4: Estado Del Costo De Productos Vendidos | N4: ESTADO DE COSTO DE PRODUCTOS VENDIDOS
B5: =+PORTADA!B2 -> Al 31 de diciembre del 2016 | G5: =+B5 -> Al 31 de diciembre del 2016 | N5: =+G5 -> Al 31 de diciembre del 2016
B7: I N G R E S O S | H7: INGRESOS | L7: =+SUM(J9:J10) -> 2641373.54 | M7: =+L7-D10 -> 0
G8: ( + ) | H8: VENTAS NETAS | O8: MATERIALES DIRECTOS (UTILIZADOS) | U8: =+T15+T16 -> 1258002.55
B9: Ingresos por Actividades | E9: =SUM(D10:D16) -> 2647702.3 | H9: VENTAS | I9: + | J9: =+C11+C13+C14 -> 2643945.84
B10: Operacionales | D10: =SUM(C11:C14) -> 2641373.54 | H10: DEVOLUCION EN VENTAS | I10: - | J10: =+C12 -> -2572.3 | N10: ( = ) | O10: MATERIALES DIRECTOS (INV INICIAL) | T10: =+J13 -> 112899.32
B11: Ventas Locales Gravadas con 12% | C11: =-PREPARACION!D6 -> 2640745.84 | H11: COSTO DE VENTAS | L11: =+SUM(K12:K37) -> 1697006.73 | M11: =+L11-E26 -> 0
B12: Descuento | C12: =-PREPARACION!D10 -> -2572.3 | G12: ( + ) | H12: INV. INICIAL | K12: =+SUM(J12:J15) -> 238965.23 | O12: COMPRAS MATERIALES DIRECTOS | R12: =+J21+J22 -> 1236110.13
B13: Ventas Locales Gravadas con 0% | C13: =-PREPARACION!D7 -> 3200 | H13: MATERIA PRIMA | I13: + | J13: =+C28 -> 112899.32 | N13: ( - ) | O13: DEVOLUCION COMPRAS MATERIALES DIRECTOS | R13: =+J23 -> 0
B14: Exportaciones | C14: =-PREPARACION!D8 -> 0 | H14: PRODUCTOS EN PROCESO | I14: + | J14: 0 | N14: ( = ) | O14: COMPRAS MATERIALES DIRECTOS (NETAS) | T14: =+SUM(R12:R13) -> 1236110.13
B15: No Operacionales | D15: =SUM(C16:C17) -> 6328.76 | H15: PRODUCTOS TERMINADOS | I15: + | J15: =+C33 -> 126065.91 | O15: MATERIALES DIRECTOS (DISPONIBLES) | T15: =+T10+T14 -> 1349009.45
B16: Intereses Bancarios | C16: 0 | G16: ( - ) | H16: INV. FINAL | K16: =SUM(J16:J19) -> -236699.6 | N16: ( - ) | O16: MATERIALES DIRECTOS (IF) | T16: =+J17 -> -91006.9
B17: Otros Ingresos | C17: =-PREPARACION!E11 -> 6328.76 | H17: MATERIA PRIMA | I17: - | J17: =+C31 -> -91006.9
B18: Otros Resultados Integrales | E18: =+C19 -> 0 | H18: PRODUCTOS EN PROCESOS | I18: - | J18: 0 | N18: ( + ) | O18: MANO DE OBRA DIRECTA (UTILIZADA) | U18: =+K27 -> 176380.94
B19: Otros Resultados Integrales | H19: PRODUCTOS TERMINADOS | I19: - | J19: =+C34 -> -145692.7
G20: ( + ) | H20: COMPRAS | K20: =+SUM(J20:J23) -> 1236110.13 | N20: ( = ) | O20: COSTO PRIMO | U20: =SUM(U8:U18) -> 1434383.49
B21: TOTAL INGRESOS | E21: =SUM(E9:E20) -> 2647702.3 | H21: MATERIA PRIMA DIRECTA | I21: + | J21: =+C29 -> 597340.8951
H22: IMPORTACIONES | I22: + | J22: =+C30 -> 638769.2345 | N22: ( + ) | O22: COSTO INDIRECTO DE FABRICACION - APLICADOS | U22: =+K33+K30+K24 -> 282250.03
H23: DEVOLUCION COMPRAS MATERIA PRIMA DIRECTA | I23: - | J23: 0
B24: E G R E S O S | G24: ( + ) | H24: COMPRAS MATERIA PRIMA INDIRECTA | K24: =+SUM(J24:J26) -> 0 | N24: ( = ) | O24: COSTO DE FABRICACION DEL PERIODO | U24: =+U20+U22 -> 1716633.52
H25: MATERIA PRIMA INDIRECTA | I25: + | J25: 0 | N25: ( + ) | O25: PRODUCTOS EN PROCESO (II) | U25: =+J14 -> 0
B26: Costo De Ventas Y Producción | E26: =SUM(D27:D38) -> 1697006.73 | H26: DEVOLUCION MATERIA PRIMA INDIRECTA | I26: - | J26: 0
B27: Materia Prima | D27: =+SUM(C28:C31) -> 1258002.55 | G27: ( + ) | H27: MANO DE OBRA DIRECTA | K27: =SUM(J27:J29) -> 176380.94 | N27: ( = ) | O27: COSTO DE PRODUCCION EN PROCESO DISPONIBLE | U27: =+U24+U25 -> 1716633.52
B28: Inventario Inicial De Materia Prima | C28: =+CV!$E$5 -> 112899.32 | H28: SUELDOS | I28: + | J28: =+C36 -> 120403.33
B29: Compras Netas Locales De Materia Prima | C29: =+CV!$F$10 -> 597340.8951 | H29: PROVISIONES | I29: + | J29: =+C37 -> 55977.61 | N29: ( - ) | O29: PRODUCTOS EN PROCESO (IF) | U29: =+J18 -> 0
B30: Importaciones De Materia Prima | C30: =+CV!$F$14 -> 638769.2345 | G30: ( + ) | H30: MANO DE OBRA INDIRECTA | K30: =SUM(J30:J32) -> 0
B31: (-) Inventario Final De Materia Prima | C31: =+CV!$E$19 -> -91006.9 | H31: SUELDOS | I31: + | J31: 0 | N31: ( = ) | O31: COSTO DE PRODUCCION ARTICULOS TERMINADOS-PERIODO | U31: =+U27+U29 -> 1716633.52
B32: Productos Terminados | D32: =+SUM(C33:C34) -> -19626.79 | H32: PROVISIONES | I32: + | J32: 0 | N32: ( + ) | O32: PRODUCTOS EN TERMINADO (II) | U32: =+J15 -> 126065.91
B33: Inventario Inicial Productos Terminados | C33: =+CV!$E$6 -> 126065.91 | G33: ( + ) | H33: OTROS CIF | K33: =SUM(J33:J61) -> 282250.03 | N33: ( = ) | O33: DISPONIBLE EN ARTICULOS TERMINADOS | U33: =+U31+U32 -> 1842699.43
B34: (-) Inventario Final De Productos Terminados | C34: =+CV!$E$20 -> -145692.7 | H34: =+B39 -> CIF-MANO DE OBRA INDIRECTA | I34: + | J34: =+C39 -> 5403.63 | N34: ( - ) | O34: PRODUCTOS TERMINADO (IF) | U34: =+J19 -> -145692.7
B35: Mano De Obra Directa | D35: =SUM(C36:C37) -> 176380.94 | H35: =+B40 -> CIF-TRABAJOS OCACIONALES | I35: + | J35: =+C40 -> 25357.22 | N35: ( = ) | O35: COSTO DE PRODUCCTOS VENDIDOS | U35: =+U33+U34 -> 1697006.73
B36: Sueldos y Salarios de Produccion | C36: =+PREPARACION!E42 -> 120403.33 | H36: CIF-UNIFORMES PERSONAL PRODUCC | I36: + | J36: 3107.69 | U36: =+U35-E26 -> 0
B37: Beneficios Sociales | C37: =+PREPARACION!E47 -> 55977.61 | H37: CIF-REPUESTOS,HERRAMIENTAS,PIE | I37: + | J37: 46913.22
B38: Otros Costos Indirectos De Fabricacion | D38: =SUM(C39:C57) -> 282250.03 | H38: CIF-FLETES Y TRANSPORTES | I38: + | J38: 29961.83
A39: 5150102 | B39: CIF-MANO DE OBRA INDIRECTA | C39: =+PREPARACION!D60 -> 5403.63 | H39: =+B44 -> CIF-LUZ ELECTRICA | I39: + | J39: =+C44 -> 32913.56
A40: 5150103 | B40: CIF-TRABAJOS OCACIONALES | C40: =+PREPARACION!D61 -> 25357.22 | H40: CIF-AGUA POTABLE | I40: + | J40: 351.29
A41: 5150105 | B41: CIF-UNIFORMES PERSONAL PRODUCC | C41: =+PREPARACION!D62 -> 3107.69 | H41: CIF-REPARACION Y MANTENIMIENTO | I41: + | J41: 8584.85
A42: 5150106 | B42: CIF-REPUESTOS,HERRAMIENTAS,PIE | C42: =+PREPARACION!D63 -> 46913.22 | H42: CIF-POLIZA SEGUROS MAQUINARIA | I42: + | J42: 17194.79
A43: 5150107 | B43: CIF-FLETES Y TRANSPORTES | C43: =+PREPARACION!D64 -> 29961.83 | H43: CIF-MEJORAS INSTALACIONES Y AD | I43: + | J43: 18387.57
A44: 5150108 | B44: CIF-LUZ ELECTRICA | C44: =+PREPARACION!D65 -> 32913.56 | H44: CIF-MATERIALES,SUMINISTROS,VAR | I44: + | J44: 17556.13
A45: 5150109 | B45: CIF-AGUA POTABLE | C45: =+PREPARACION!D66 -> 351.29 | H45: CIF-DEPRECIACIONES | I45: + | J45: 55020
A46: 5150110 | B46: CIF-REPARACION Y MANTENIMIENTO | C46: =+PREPARACION!D67 -> 8584.85 | H46: CIF-OTROS GASTOS DE FABRICACIO | I46: + | J46: 300.05
A47: 5150111 | B47: CIF-POLIZA SEGUROS MAQUINARIA | C47: =+PREPARACION!D68 -> 17194.79 | H47: CIF-OTROS GASTOS ADMINISTRATIV | I47: + | J47: 320.81
A48: 5150112 | B48: CIF-MEJORAS INSTALACIONES Y AD | C48: =+PREPARACION!D69 -> 18387.57 | H48: CIF-TELEFONO, INTERNET | I48: + | J48: 11065.3
A49: 5150114 | B49: CIF-MATERIALES,SUMINISTROS,VAR | C49: =+PREPARACION!D70 -> 17556.13 | H49: CIF-GASTOS LEGALES,NOTARIAS | I49: + | J49: 571.23
A50: 5150115 | B50: CIF-DEPRECIACIONES | C50: =+PREPARACION!D71 -> 55020 | H50: CIF-PUBLICIDAD Y PROPAGANDA | I50: + | J50: 4540.69
A51: 5150116 | B51: CIF-OTROS GASTOS DE FABRICACIO | C51: =+PREPARACION!D72 -> 300.05 | H51: CIF-PERDIDA EN CAMBIO | I51: + | J51: 4449.82
A52: 5150118 | B52: CIF-OTROS GASTOS ADMINISTRATIV | C52: =+PREPARACION!D73 -> 320.81 | H52: CIF-GASTOS NO DEDUCIBLES | I52: + | J52: 250.35 | P52: =+PORTADA!B3 -> Gerente General | R52: =+PORTADA!B5 -> HERES
A53: 5150119 | B53: CIF-TELEFONO, INTERNET | C53: =+PREPARACION!D74 -> 11065.3 | P53: GERENTE | R53: CONTADOR
A54: 5150121 | B54: CIF-GASTOS LEGALES,NOTARIAS | C54: =+PREPARACION!D75 -> 571.23 | P54: =+PORTADA!B4 -> 171717171-2 | R54: =+PORTADA!B6 -> 1717171717001
A55: 5150125 | B55: CIF-PUBLICIDAD Y PROPAGANDA | C55: =+PREPARACION!D76 -> 4540.69 | R55: =+PORTADA!B7 -> Nº 17-00001
A56: 5150126 | B56: CIF-PERDIDA EN CAMBIO | C56: =+PREPARACION!D77 -> 4449.82
A57: 5150127 | B57: CIF-GASTOS NO DEDUCIBLES | C57: =+PREPARACION!D78 -> 250.35
